Body Name,Date Paid,Transaction Number,Amount,Supplier Name,Supplier Type,Expense Area ,Cost Centre Description,Expense Type
Cambridgeshire County Council,12-Sep-19,51301167428,"-45,429.60",GLENHOLME HEALTHCARE LTD,CARE ESTABLISHMENT,LD - Young Adults Team,LD - Young Adults - Care,Residential Care
Cambridgeshire County Council,25-Sep-19,51301195452,"-24,587.40",ANGLIAN WATER SERVICES LIMITED,COMPANY,MID - Ely Crossing,MID - Ely Crossing,Construction - External Professional Fees
Cambridgeshire County Council,09-Sep-19,51301134507,"-13,528.86",PRIORY BELSTEAD ROAD,CARE ESTABLISHMENT,LAC Placements,Placements - residential homes,Agency Placements - Out of  County
Cambridgeshire County Council,30-Sep-19,51301040843,"-12,390.00",Broadlands Hall,EDUCATION,SEN Placements,Placements - Education,Independent School Placements
Cambridgeshire County Council,20-Sep-19,51301195282,"-10,727.00",ST GEORGE'S COURT,CARE ESTABLISHMENT,OP - City & South Blocks,City and South - Long term blocks,Residential Care
Cambridgeshire County Council,20-Sep-19,51301195282,"-10,727.00",ST GEORGE'S COURT,CARE ESTABLISHMENT,OP - City & South Blocks,City and South - Long term blocks,Residential Care
Cambridgeshire County Council,20-Sep-19,51301195282,"-10,727.00",ST GEORGE'S COURT,CARE ESTABLISHMENT,OP - City & South Blocks,City and South - Long term blocks,Residential Care
Cambridgeshire County Council,20-Sep-19,51301195282,"-10,727.00",ST GEORGE'S COURT,CARE ESTABLISHMENT,OP - City & South Blocks,City and South - Long term blocks,Residential Care
Cambridgeshire County Council,20-Sep-19,51301195282,"-10,727.00",ST GEORGE'S COURT,CARE ESTABLISHMENT,OP - City & South Blocks,City and South - Long term blocks,Residential Care
Cambridgeshire County Council,20-Sep-19,51301195282,"-10,727.00",ST GEORGE'S COURT,CARE ESTABLISHMENT,OP - City & South Blocks,City and South - Long term blocks,Residential Care
Cambridgeshire County Council,20-Sep-19,51301195282,"-10,727.00",ST GEORGE'S COURT,CARE ESTABLISHMENT,OP - City & South Blocks,City and South - Long term blocks,Residential Care
Cambridgeshire County Council,20-Sep-19,51301195282,"-10,727.00",ST GEORGE'S COURT,CARE ESTABLISHMENT,OP - City & South Blocks,City and South - Long term blocks,Residential Care
Cambridgeshire County Council,20-Sep-19,51301195282,"-10,727.00",ST GEORGE'S COURT,CARE ESTABLISHMENT,OP - City & South Blocks,City and South - Long term blocks,Residential Care
Cambridgeshire County Council,20-Sep-19,51301195282,"-10,727.00",ST GEORGE'S COURT,CARE ESTABLISHMENT,OP - City & South Blocks,City and South - Long term blocks,Residential Care
Cambridgeshire County Council,20-Sep-19,51301195282,"-10,727.00",ST GEORGE'S COURT,CARE ESTABLISHMENT,OP - City & South Blocks,City and South - Long term blocks,Residential Care
Cambridgeshire County Council,20-Sep-19,51301195282,"-10,727.00",ST GEORGE'S COURT,CARE ESTABLISHMENT,OP - City & South Blocks,City and South - Long term blocks,Residential Care
Cambridgeshire County Council,20-Sep-19,51301195282,"-10,727.00",ST GEORGE'S COURT,CARE ESTABLISHMENT,OP - City & South Blocks,City and South - Long term blocks,Residential Care
Cambridgeshire County Council,30-Sep-19,51301202717,"-10,420.21",Broadlands Hall,EDUCATION,SEN Placements,Placements - Education,Independent School Placements
Cambridgeshire County Council,16-Sep-19,51301076942,"-10,380.00",DARTT LIMITED,TRADE SUPPLIER,MID - Public Transport,Guided Bus,External Legal Fees
Cambridgeshire County Council,20-Sep-19,51301195280,"-9,540.00",FITZWILLIAM HEALTHCARE LTD,CARE ESTABLISHMENT,OP - City & South Blocks,City and South - Long term blocks,Residential Care
Cambridgeshire County Council,20-Sep-19,51301195280,"-9,540.00",FITZWILLIAM HEALTHCARE LTD,CARE ESTABLISHMENT,OP - City & South Blocks,City and South - Long term blocks,Residential Care
Cambridgeshire County Council,20-Sep-19,51301195280,"-9,540.00",FITZWILLIAM HEALTHCARE LTD,CARE ESTABLISHMENT,OP - City & South Blocks,City and South - Long term blocks,Residential Care
Cambridgeshire County Council,20-Sep-19,51301195280,"-9,540.00",FITZWILLIAM HEALTHCARE LTD,CARE ESTABLISHMENT,OP - City & South Blocks,City and South - Long term blocks,Residential Care
Cambridgeshire County Council,20-Sep-19,51301195280,"-9,540.00",FITZWILLIAM HEALTHCARE LTD,CARE ESTABLISHMENT,OP - City & South Blocks,City and South - Long term blocks,Residential Care
Cambridgeshire County Council,20-Sep-19,51301195280,"-9,540.00",FITZWILLIAM HEALTHCARE LTD,CARE ESTABLISHMENT,OP - City & South Blocks,City and South - Long term blocks,Residential Care
Cambridgeshire County Council,20-Sep-19,51301195280,"-9,540.00",FITZWILLIAM HEALTHCARE LTD,CARE ESTABLISHMENT,OP - City & South Blocks,City and South - Long term blocks,Residential Care
Cambridgeshire County Council,20-Sep-19,51301195280,"-9,540.00",FITZWILLIAM HEALTHCARE LTD,CARE ESTABLISHMENT,OP - City & South Blocks,City and South - Long term blocks,Residential Care
Cambridgeshire County Council,20-Sep-19,51301195280,"-9,540.00",FITZWILLIAM HEALTHCARE LTD,CARE ESTABLISHMENT,OP - City & South Blocks,City and South - Long term blocks,Residential Care
Cambridgeshire County Council,20-Sep-19,51301195280,"-9,540.00",FITZWILLIAM HEALTHCARE LTD,CARE ESTABLISHMENT,OP - City & South Blocks,City and South - Long term blocks,Residential Care
Cambridgeshire County Council,20-Sep-19,51301195280,"-9,540.00",FITZWILLIAM HEALTHCARE LTD,CARE ESTABLISHMENT,OP - City & South Blocks,City and South - Long term blocks,Residential Care
Cambridgeshire County Council,20-Sep-19,51301195280,"-9,540.00",FITZWILLIAM HEALTHCARE LTD,CARE ESTABLISHMENT,OP - City & South Blocks,City and South - Long term blocks,Residential Care
Cambridgeshire County Council,20-Sep-19,51301195280,"-9,540.00",FITZWILLIAM HEALTHCARE LTD,CARE ESTABLISHMENT,OP - City & South Blocks,City and South - Long term blocks,Residential Care
Cambridgeshire County Council,20-Sep-19,51301195280,"-9,540.00",FITZWILLIAM HEALTHCARE LTD,CARE ESTABLISHMENT,OP - City & South Blocks,City and South - Long term blocks,Residential Care
Cambridgeshire County Council,20-Sep-19,51301195280,"-9,540.00",FITZWILLIAM HEALTHCARE LTD,CARE ESTABLISHMENT,OP - City & South Blocks,City and South - Long term blocks,Residential Care
Cambridgeshire County Council,20-Sep-19,51301195280,"-9,540.00",FITZWILLIAM HEALTHCARE LTD,CARE ESTABLISHMENT,OP - City & South Blocks,City and South - Long term blocks,Residential Care
Cambridgeshire County Council,20-Sep-19,51301195280,"-9,540.00",FITZWILLIAM HEALTHCARE LTD,CARE ESTABLISHMENT,OP - City & South Blocks,City and South - Long term blocks,Residential Care
Cambridgeshire County Council,20-Sep-19,51301195280,"-9,540.00",FITZWILLIAM HEALTHCARE LTD,CARE ESTABLISHMENT,OP - City & South Blocks,City and South - Long term blocks,Residential Care
Cambridgeshire County Council,20-Sep-19,51301195280,"-9,540.00",FITZWILLIAM HEALTHCARE LTD,CARE ESTABLISHMENT,OP - City & South Blocks,City and South - Long term blocks,Residential Care
Cambridgeshire County Council,20-Sep-19,51301195280,"-9,540.00",FITZWILLIAM HEALTHCARE LTD,CARE ESTABLISHMENT,OP - City & South Blocks,City and South - Long term blocks,Residential Care
Cambridgeshire County Council,20-Sep-19,51301195280,"-9,540.00",FITZWILLIAM HEALTHCARE LTD,CARE ESTABLISHMENT,OP - City & South Blocks,City and South - Long term blocks,Residential Care
Cambridgeshire County Council,20-Sep-19,51301195280,"-9,540.00",FITZWILLIAM HEALTHCARE LTD,CARE ESTABLISHMENT,OP - City & South Blocks,City and South - Long term blocks,Residential Care
Cambridgeshire County Council,20-Sep-19,51301195280,"-9,540.00",FITZWILLIAM HEALTHCARE LTD,CARE ESTABLISHMENT,OP - City & South Blocks,City and South - Long term blocks,Residential Care
Cambridgeshire County Council,09-Sep-19,51301166069,"-9,025.00",WESTMINSTER HOMECARE LIMITED,CARE ESTABLISHMENT,Commissioning - Dom Cars,Hunts - Dom Blocks,Domiciliary Care
Cambridgeshire County Council,09-Sep-19,51301166069,"-9,025.00",WESTMINSTER HOMECARE LIMITED,CARE ESTABLISHMENT,Commissioning - Dom Cars,Hunts - Dom Blocks,Domiciliary Care
Cambridgeshire County Council,09-Sep-19,51301166069,"-9,025.00",WESTMINSTER HOMECARE LIMITED,CARE ESTABLISHMENT,Commissioning - Dom Cars,Hunts - Dom Blocks,Domiciliary Care
Cambridgeshire County Council,09-Sep-19,51301166069,"-9,025.00",WESTMINSTER HOMECARE LIMITED,CARE ESTABLISHMENT,Commissioning - Dom Cars,Hunts - Dom Blocks,Domiciliary Care
Cambridgeshire County Council,09-Sep-19,51301166069,"-9,025.00",WESTMINSTER HOMECARE LIMITED,CARE ESTABLISHMENT,Commissioning - Dom Cars,Hunts - Dom Blocks,Domiciliary Care
Cambridgeshire County Council,09-Sep-19,51301166069,"-9,025.00",WESTMINSTER HOMECARE LIMITED,CARE ESTABLISHMENT,Commissioning - Dom Cars,Hunts - Dom Blocks,Domiciliary Care
Cambridgeshire County Council,09-Sep-19,51301166069,"-9,025.00",WESTMINSTER HOMECARE LIMITED,CARE ESTABLISHMENT,Commissioning - Dom Cars,Hunts - Dom Blocks,Domiciliary Care
Cambridgeshire County Council,09-Sep-19,51301166069,"-9,025.00",WESTMINSTER HOMECARE LIMITED,CARE ESTABLISHMENT,Commissioning - Dom Cars,Hunts - Dom Blocks,Domiciliary Care
Cambridgeshire County Council,09-Sep-19,51301166069,"-9,025.00",WESTMINSTER HOMECARE LIMITED,CARE ESTABLISHMENT,Commissioning - Dom Cars,Hunts - Dom Blocks,Domiciliary Care
Cambridgeshire County Council,09-Sep-19,51301166069,"-9,025.00",WESTMINSTER HOMECARE LIMITED,CARE ESTABLISHMENT,Commissioning - Dom Cars,Hunts - Dom Blocks,Domiciliary Care
Cambridgeshire County Council,09-Sep-19,51301166069,"-9,025.00",WESTMINSTER HOMECARE LIMITED,CARE ESTABLISHMENT,Commissioning - Dom Cars,Hunts - Dom Blocks,Domiciliary Care
Cambridgeshire County Council,09-Sep-19,51301166069,"-9,025.00",WESTMINSTER HOMECARE LIMITED,CARE ESTABLISHMENT,Commissioning - Dom Cars,Hunts - Dom Blocks,Domiciliary Care
Cambridgeshire County Council,09-Sep-19,51301166069,"-9,025.00",WESTMINSTER HOMECARE LIMITED,CARE ESTABLISHMENT,Commissioning - Dom Cars,Hunts - Dom Blocks,Domiciliary Care
Cambridgeshire County Council,09-Sep-19,51301166069,"-9,025.00",WESTMINSTER HOMECARE LIMITED,CARE ESTABLISHMENT,Commissioning - Dom Cars,Hunts - Dom Blocks,Domiciliary Care
Cambridgeshire County Council,09-Sep-19,51301166069,"-9,025.00",WESTMINSTER HOMECARE LIMITED,CARE ESTABLISHMENT,Commissioning - Dom Cars,Hunts - Dom Blocks,Domiciliary Care
Cambridgeshire County Council,09-Sep-19,51301166069,"-9,025.00",WESTMINSTER HOMECARE LIMITED,CARE ESTABLISHMENT,Commissioning - Dom Cars,Hunts - Dom Blocks,Domiciliary Care
Cambridgeshire County Council,09-Sep-19,51301166069,"-9,025.00",WESTMINSTER HOMECARE LIMITED,CARE ESTABLISHMENT,Commissioning - Dom Cars,Hunts - Dom Blocks,Domiciliary Care
Cambridgeshire County Council,09-Sep-19,51301166069,"-9,025.00",WESTMINSTER HOMECARE LIMITED,CARE ESTABLISHMENT,Commissioning - Dom Cars,Hunts - Dom Blocks,Domiciliary Care
Cambridgeshire County Council,09-Sep-19,51301166069,"-9,025.00",WESTMINSTER HOMECARE LIMITED,CARE ESTABLISHMENT,Commissioning - Dom Cars,Hunts - Dom Blocks,Domiciliary Care
Cambridgeshire County Council,20-Sep-19,51301195280,"-8,177.14",FITZWILLIAM HEALTHCARE LTD,CARE ESTABLISHMENT,OP - City & South Blocks,City and South - Long term blocks,Residential Care
Cambridgeshire County Council,23-Sep-19,51300509079,"-8,100.00",CYCLE WORKS LTD,TRADE SUPPLIER,Control Accounts,Control Accounts - Payables,Migration Only - Marked as Do Not Use
Cambridgeshire County Council,09-Sep-19,51301166069,"-7,735.71",WESTMINSTER HOMECARE LIMITED,CARE ESTABLISHMENT,Commissioning - Dom Cars,Hunts - Dom Blocks,Domiciliary Care
Cambridgeshire County Council,26-Sep-19,51300570129,"-6,780.80",RUSHMOOR SCHOOL LTD,EDUCATION,High Needs Top Up,High-needs top-up - Other institutions,SEN Funding
Cambridgeshire County Council,09-Sep-19,51301166070,"-6,725.00",WESTMINSTER HOMECARE LIMITED,CARE ESTABLISHMENT,Commissioning - Dom Cars,City and South - Dom Blocks,Domiciliary Care
Cambridgeshire County Council,09-Sep-19,51301166070,"-6,725.00",WESTMINSTER HOMECARE LIMITED,CARE ESTABLISHMENT,Commissioning - Dom Cars,City and South - Dom Blocks,Domiciliary Care
Cambridgeshire County Council,09-Sep-19,51301166070,"-6,725.00",WESTMINSTER HOMECARE LIMITED,CARE ESTABLISHMENT,Commissioning - Dom Cars,City and South - Dom Blocks,Domiciliary Care
Cambridgeshire County Council,09-Sep-19,51301166070,"-6,725.00",WESTMINSTER HOMECARE LIMITED,CARE ESTABLISHMENT,Commissioning - Dom Cars,City and South - Dom Blocks,Domiciliary Care
Cambridgeshire County Council,09-Sep-19,51301166070,"-6,725.00",WESTMINSTER HOMECARE LIMITED,CARE ESTABLISHMENT,Commissioning - Dom Cars,City and South - Dom Blocks,Domiciliary Care
Cambridgeshire County Council,09-Sep-19,51301166070,"-6,725.00",WESTMINSTER HOMECARE LIMITED,CARE ESTABLISHMENT,Commissioning - Dom Cars,City and South - Dom Blocks,Domiciliary Care
Cambridgeshire County Council,09-Sep-19,51301166070,"-6,725.00",WESTMINSTER HOMECARE LIMITED,CARE ESTABLISHMENT,Commissioning - Dom Cars,City and South - Dom Blocks,Domiciliary Care
Cambridgeshire County Council,09-Sep-19,51301166070,"-6,725.00",WESTMINSTER HOMECARE LIMITED,CARE ESTABLISHMENT,Commissioning - Dom Cars,City and South - Dom Blocks,Domiciliary Care
Cambridgeshire County Council,09-Sep-19,51301166070,"-6,725.00",WESTMINSTER HOMECARE LIMITED,CARE ESTABLISHMENT,Commissioning - Dom Cars,City and South - Dom Blocks,Domiciliary Care
Cambridgeshire County Council,09-Sep-19,51301166070,"-6,725.00",WESTMINSTER HOMECARE LIMITED,CARE ESTABLISHMENT,Commissioning - Dom Cars,City and South - Dom Blocks,Domiciliary Care
Cambridgeshire County Council,09-Sep-19,51301166070,"-6,725.00",WESTMINSTER HOMECARE LIMITED,CARE ESTABLISHMENT,Commissioning - Dom Cars,City and South - Dom Blocks,Domiciliary Care
Cambridgeshire County Council,09-Sep-19,51301166070,"-6,725.00",WESTMINSTER HOMECARE LIMITED,CARE ESTABLISHMENT,Commissioning - Dom Cars,City and South - Dom Blocks,Domiciliary Care
Cambridgeshire County Council,09-Sep-19,51301166070,"-6,725.00",WESTMINSTER HOMECARE LIMITED,CARE ESTABLISHMENT,Commissioning - Dom Cars,City and South - Dom Blocks,Domiciliary Care
Cambridgeshire County Council,09-Sep-19,51301166070,"-6,725.00",WESTMINSTER HOMECARE LIMITED,CARE ESTABLISHMENT,Commissioning - Dom Cars,City and South - Dom Blocks,Domiciliary Care
Cambridgeshire County Council,09-Sep-19,51301166070,"-6,725.00",WESTMINSTER HOMECARE LIMITED,CARE ESTABLISHMENT,Commissioning - Dom Cars,City and South - Dom Blocks,Domiciliary Care
Cambridgeshire County Council,09-Sep-19,51301166070,"-6,725.00",WESTMINSTER HOMECARE LIMITED,CARE ESTABLISHMENT,Commissioning - Dom Cars,City and South - Dom Blocks,Domiciliary Care
Cambridgeshire County Council,09-Sep-19,51301166070,"-6,725.00",WESTMINSTER HOMECARE LIMITED,CARE ESTABLISHMENT,Commissioning - Dom Cars,City and South - Dom Blocks,Domiciliary Care
Cambridgeshire County Council,09-Sep-19,51301166070,"-6,725.00",WESTMINSTER HOMECARE LIMITED,CARE ESTABLISHMENT,Commissioning - Dom Cars,City and South - Dom Blocks,Domiciliary Care
Cambridgeshire County Council,09-Sep-19,51301166070,"-6,725.00",WESTMINSTER HOMECARE LIMITED,CARE ESTABLISHMENT,Commissioning - Dom Cars,City and South - Dom Blocks,Domiciliary Care
Cambridgeshire County Council,26-Sep-19,51300570128,"-6,357.00",RUSHMOOR SCHOOL LTD,EDUCATION,SEN Placements,Placements - Education,Independent School Placements
Cambridgeshire County Council,20-Sep-19,51301195280,"-6,310.00",FITZWILLIAM HEALTHCARE LTD,CARE ESTABLISHMENT,OP - City & South Blocks,City and South - Long term blocks,Residential Care
Cambridgeshire County Council,20-Sep-19,51301195280,"-6,310.00",FITZWILLIAM HEALTHCARE LTD,CARE ESTABLISHMENT,OP - City & South Blocks,City and South - Long term blocks,Residential Care
Cambridgeshire County Council,20-Sep-19,51301195280,"-6,310.00",FITZWILLIAM HEALTHCARE LTD,CARE ESTABLISHMENT,OP - City & South Blocks,City and South - Long term blocks,Residential Care
Cambridgeshire County Council,20-Sep-19,51301195280,"-6,310.00",FITZWILLIAM HEALTHCARE LTD,CARE ESTABLISHMENT,OP - City & South Blocks,City and South - Long term blocks,Residential Care
Cambridgeshire County Council,20-Sep-19,51301195280,"-6,310.00",FITZWILLIAM HEALTHCARE LTD,CARE ESTABLISHMENT,OP - City & South Blocks,City and South - Long term blocks,Residential Care
Cambridgeshire County Council,20-Sep-19,51301195280,"-6,310.00",FITZWILLIAM HEALTHCARE LTD,CARE ESTABLISHMENT,OP - City & South Blocks,City and South - Long term blocks,Residential Care
Cambridgeshire County Council,09-Sep-19,51301166066,"-6,045.22",BROOKFIELD CARE,CARE ESTABLISHMENT,Commissioning - Dom Cars,Hunts - Dom Blocks,Domiciliary Care
Cambridgeshire County Council,09-Sep-19,51301166066,"-6,045.22",BROOKFIELD CARE,CARE ESTABLISHMENT,Commissioning - Dom Cars,Hunts - Dom Blocks,Domiciliary Care
Cambridgeshire County Council,09-Sep-19,51301166066,"-6,045.22",BROOKFIELD CARE,CARE ESTABLISHMENT,Commissioning - Dom Cars,Hunts - Dom Blocks,Domiciliary Care
Cambridgeshire County Council,09-Sep-19,51301166066,"-6,045.22",BROOKFIELD CARE,CARE ESTABLISHMENT,Commissioning - Dom Cars,Hunts - Dom Blocks,Domiciliary Care
Cambridgeshire County Council,09-Sep-19,51301166066,"-6,045.22",BROOKFIELD CARE,CARE ESTABLISHMENT,Commissioning - Dom Cars,Hunts - Dom Blocks,Domiciliary Care
Cambridgeshire County Council,09-Sep-19,51301166066,"-6,045.22",BROOKFIELD CARE,CARE ESTABLISHMENT,Commissioning - Dom Cars,Hunts - Dom Blocks,Domiciliary Care
Cambridgeshire County Council,09-Sep-19,51301166066,"-6,045.22",BROOKFIELD CARE,CARE ESTABLISHMENT,Commissioning - Dom Cars,Hunts - Dom Blocks,Domiciliary Care
Cambridgeshire County Council,09-Sep-19,51301166066,"-6,045.22",BROOKFIELD CARE,CARE ESTABLISHMENT,Commissioning - Dom Cars,Hunts - Dom Blocks,Domiciliary Care
Cambridgeshire County Council,09-Sep-19,51301166066,"-6,045.22",BROOKFIELD CARE,CARE ESTABLISHMENT,Commissioning - Dom Cars,Hunts - Dom Blocks,Domiciliary Care
Cambridgeshire County Council,09-Sep-19,51301166066,"-6,045.22",BROOKFIELD CARE,CARE ESTABLISHMENT,Commissioning - Dom Cars,Hunts - Dom Blocks,Domiciliary Care
Cambridgeshire County Council,09-Sep-19,51301166066,"-6,045.22",BROOKFIELD CARE,CARE ESTABLISHMENT,Commissioning - Dom Cars,Hunts - Dom Blocks,Domiciliary Care
Cambridgeshire County Council,09-Sep-19,51301166066,"-6,045.22",BROOKFIELD CARE,CARE ESTABLISHMENT,Commissioning - Dom Cars,Hunts - Dom Blocks,Domiciliary Care
Cambridgeshire County Council,09-Sep-19,51301166066,"-6,045.22",BROOKFIELD CARE,CARE ESTABLISHMENT,Commissioning - Dom Cars,Hunts - Dom Blocks,Domiciliary Care
Cambridgeshire County Council,09-Sep-19,51301166066,"-6,045.22",BROOKFIELD CARE,CARE ESTABLISHMENT,Commissioning - Dom Cars,Hunts - Dom Blocks,Domiciliary Care
Cambridgeshire County Council,09-Sep-19,51301166066,"-6,045.22",BROOKFIELD CARE,CARE ESTABLISHMENT,Commissioning - Dom Cars,Hunts - Dom Blocks,Domiciliary Care
Cambridgeshire County Council,09-Sep-19,51301166066,"-6,045.22",BROOKFIELD CARE,CARE ESTABLISHMENT,Commissioning - Dom Cars,Hunts - Dom Blocks,Domiciliary Care
Cambridgeshire County Council,09-Sep-19,51301166066,"-6,045.22",BROOKFIELD CARE,CARE ESTABLISHMENT,Commissioning - Dom Cars,Hunts - Dom Blocks,Domiciliary Care
Cambridgeshire County Council,09-Sep-19,51301166066,"-6,045.22",BROOKFIELD CARE,CARE ESTABLISHMENT,Commissioning - Dom Cars,Hunts - Dom Blocks,Domiciliary Care
Cambridgeshire County Council,09-Sep-19,51301166066,"-6,045.22",BROOKFIELD CARE,CARE ESTABLISHMENT,Commissioning - Dom Cars,Hunts - Dom Blocks,Domiciliary Care
Cambridgeshire County Council,09-Sep-19,51301166070,"-5,764.29",WESTMINSTER HOMECARE LIMITED,CARE ESTABLISHMENT,Commissioning - Dom Cars,City and South - Dom Blocks,Domiciliary Care
Cambridgeshire County Council,20-Sep-19,51301195282,"-5,300.00",ST GEORGE'S COURT,CARE ESTABLISHMENT,OP - City & South Blocks,City and South - Long term blocks,Residential Care
Cambridgeshire County Council,20-Sep-19,51301195282,"-5,300.00",ST GEORGE'S COURT,CARE ESTABLISHMENT,OP - City & South Blocks,City and South - Long term blocks,Residential Care
Cambridgeshire County Council,20-Sep-19,51301195282,"-5,300.00",ST GEORGE'S COURT,CARE ESTABLISHMENT,OP - City & South Blocks,City and South - Long term blocks,Residential Care
Cambridgeshire County Council,20-Sep-19,51301195282,"-5,300.00",ST GEORGE'S COURT,CARE ESTABLISHMENT,OP - City & South Blocks,City and South - Long term blocks,Residential Care
Cambridgeshire County Council,20-Sep-19,51301195282,"-5,300.00",ST GEORGE'S COURT,CARE ESTABLISHMENT,OP - City & South Blocks,City and South - Long term blocks,Residential Care
Cambridgeshire County Council,20-Sep-19,51301195282,"-5,300.00",ST GEORGE'S COURT,CARE ESTABLISHMENT,OP - City & South Blocks,City and South - Long term blocks,Residential Care
Cambridgeshire County Council,20-Sep-19,51301195282,"-5,300.00",ST GEORGE'S COURT,CARE ESTABLISHMENT,OP - City & South Blocks,City and South - Long term blocks,Residential Care
Cambridgeshire County Council,20-Sep-19,51301195282,"-5,300.00",ST GEORGE'S COURT,CARE ESTABLISHMENT,OP - City & South Blocks,City and South - Long term blocks,Residential Care
Cambridgeshire County Council,20-Sep-19,51301195282,"-5,300.00",ST GEORGE'S COURT,CARE ESTABLISHMENT,OP - City & South Blocks,City and South - Long term blocks,Residential Care
Cambridgeshire County Council,20-Sep-19,51301195282,"-5,300.00",ST GEORGE'S COURT,CARE ESTABLISHMENT,OP - City & South Blocks,City and South - Long term blocks,Residential Care
Cambridgeshire County Council,20-Sep-19,51301195282,"-5,300.00",ST GEORGE'S COURT,CARE ESTABLISHMENT,OP - City & South Blocks,City and South - Long term blocks,Residential Care
Cambridgeshire County Council,20-Sep-19,51301195282,"-5,300.00",ST GEORGE'S COURT,CARE ESTABLISHMENT,OP - City & South Blocks,City and South - Long term blocks,Residential Care
Cambridgeshire County Council,20-Sep-19,51301195282,"-5,300.00",ST GEORGE'S COURT,CARE ESTABLISHMENT,OP - City & South Blocks,City and South - Long term blocks,Residential Care
Cambridgeshire County Council,09-Sep-19,51301166066,"-5,181.62",BROOKFIELD CARE,CARE ESTABLISHMENT,Commissioning - Dom Cars,Hunts - Dom Blocks,Domiciliary Care
Cambridgeshire County Council,09-Sep-19,51301166054,"-5,076.92",Beaumont HEALTHCARE LTD,CARE ESTABLISHMENT,Commissioning - Dom Cars,City and South - Dom Blocks,Domiciliary Care
Cambridgeshire County Council,09-Sep-19,51301166054,"-5,076.92",Beaumont HEALTHCARE LTD,CARE ESTABLISHMENT,Commissioning - Dom Cars,City and South - Dom Blocks,Domiciliary Care
Cambridgeshire County Council,09-Sep-19,51301166054,"-5,076.92",Beaumont HEALTHCARE LTD,CARE ESTABLISHMENT,Commissioning - Dom Cars,City and South - Dom Blocks,Domiciliary Care
Cambridgeshire County Council,09-Sep-19,51301166054,"-5,076.92",Beaumont HEALTHCARE LTD,CARE ESTABLISHMENT,Commissioning - Dom Cars,City and South - Dom Blocks,Domiciliary Care
Cambridgeshire County Council,09-Sep-19,51301166054,"-5,076.92",Beaumont HEALTHCARE LTD,CARE ESTABLISHMENT,Commissioning - Dom Cars,City and South - Dom Blocks,Domiciliary Care
Cambridgeshire County Council,09-Sep-19,51301166054,"-5,076.92",Beaumont HEALTHCARE LTD,CARE ESTABLISHMENT,Commissioning - Dom Cars,City and South - Dom Blocks,Domiciliary Care
Cambridgeshire County Council,09-Sep-19,51301166054,"-5,076.92",Beaumont HEALTHCARE LTD,CARE ESTABLISHMENT,Commissioning - Dom Cars,City and South - Dom Blocks,Domiciliary Care
Cambridgeshire County Council,09-Sep-19,51301166054,"-5,076.92",Beaumont HEALTHCARE LTD,CARE ESTABLISHMENT,Commissioning - Dom Cars,City and South - Dom Blocks,Domiciliary Care
Cambridgeshire County Council,09-Sep-19,51301166054,"-5,076.92",Beaumont HEALTHCARE LTD,CARE ESTABLISHMENT,Commissioning - Dom Cars,City and South - Dom Blocks,Domiciliary Care
Cambridgeshire County Council,09-Sep-19,51301166054,"-5,076.92",Beaumont HEALTHCARE LTD,CARE ESTABLISHMENT,Commissioning - Dom Cars,City and South - Dom Blocks,Domiciliary Care
Cambridgeshire County Council,09-Sep-19,51301166054,"-5,076.92",Beaumont HEALTHCARE LTD,CARE ESTABLISHMENT,Commissioning - Dom Cars,City and South - Dom Blocks,Domiciliary Care
Cambridgeshire County Council,09-Sep-19,51301166054,"-5,076.92",Beaumont HEALTHCARE LTD,CARE ESTABLISHMENT,Commissioning - Dom Cars,City and South - Dom Blocks,Domiciliary Care
Cambridgeshire County Council,09-Sep-19,51301166054,"-5,076.92",Beaumont HEALTHCARE LTD,CARE ESTABLISHMENT,Commissioning - Dom Cars,City and South - Dom Blocks,Domiciliary Care
Cambridgeshire County Council,09-Sep-19,51301166054,"-5,076.92",Beaumont HEALTHCARE LTD,CARE ESTABLISHMENT,Commissioning - Dom Cars,City and South - Dom Blocks,Domiciliary Care
Cambridgeshire County Council,09-Sep-19,51301166054,"-5,076.92",Beaumont HEALTHCARE LTD,CARE ESTABLISHMENT,Commissioning - Dom Cars,City and South - Dom Blocks,Domiciliary Care
Cambridgeshire County Council,09-Sep-19,51301166054,"-5,076.92",Beaumont HEALTHCARE LTD,CARE ESTABLISHMENT,Commissioning - Dom Cars,City and South - Dom Blocks,Domiciliary Care
Cambridgeshire County Council,09-Sep-19,51301166054,"-5,076.92",Beaumont HEALTHCARE LTD,CARE ESTABLISHMENT,Commissioning - Dom Cars,City and South - Dom Blocks,Domiciliary Care
Cambridgeshire County Council,09-Sep-19,51301166054,"-5,076.92",Beaumont HEALTHCARE LTD,CARE ESTABLISHMENT,Commissioning - Dom Cars,City and South - Dom Blocks,Domiciliary Care
Cambridgeshire County Council,09-Sep-19,51301166054,"-5,076.92",Beaumont HEALTHCARE LTD,CARE ESTABLISHMENT,Commissioning - Dom Cars,City and South - Dom Blocks,Domiciliary Care
Cambridgeshire County Council,11-Sep-19,51301166379,"-5,014.29",FIVE RIVERS CHILD CARE LIMITED,CARE ESTABLISHMENT,LAC Placements,Placements - independent fostering,Agency Placements - Out of  County
Cambridgeshire County Council,09-Sep-19,51301166064,"-4,914.00",BROOKFIELD CARE,CARE ESTABLISHMENT,Commissioning - Dom Cars,City and South - Dom Blocks,Domiciliary Care
Cambridgeshire County Council,09-Sep-19,51301166064,"-4,914.00",BROOKFIELD CARE,CARE ESTABLISHMENT,Commissioning - Dom Cars,City and South - Dom Blocks,Domiciliary Care
Cambridgeshire County Council,09-Sep-19,51301166064,"-4,914.00",BROOKFIELD CARE,CARE ESTABLISHMENT,Commissioning - Dom Cars,City and South - Dom Blocks,Domiciliary Care
Cambridgeshire County Council,09-Sep-19,51301166064,"-4,914.00",BROOKFIELD CARE,CARE ESTABLISHMENT,Commissioning - Dom Cars,City and South - Dom Blocks,Domiciliary Care
Cambridgeshire County Council,09-Sep-19,51301166064,"-4,914.00",BROOKFIELD CARE,CARE ESTABLISHMENT,Commissioning - Dom Cars,City and South - Dom Blocks,Domiciliary Care
Cambridgeshire County Council,09-Sep-19,51301166064,"-4,914.00",BROOKFIELD CARE,CARE ESTABLISHMENT,Commissioning - Dom Cars,City and South - Dom Blocks,Domiciliary Care
Cambridgeshire County Council,09-Sep-19,51301166064,"-4,914.00",BROOKFIELD CARE,CARE ESTABLISHMENT,Commissioning - Dom Cars,City and South - Dom Blocks,Domiciliary Care
Cambridgeshire County Council,09-Sep-19,51301166064,"-4,914.00",BROOKFIELD CARE,CARE ESTABLISHMENT,Commissioning - Dom Cars,City and South - Dom Blocks,Domiciliary Care
Cambridgeshire County Council,09-Sep-19,51301166064,"-4,914.00",BROOKFIELD CARE,CARE ESTABLISHMENT,Commissioning - Dom Cars,City and South - Dom Blocks,Domiciliary Care
Cambridgeshire County Council,09-Sep-19,51301166064,"-4,914.00",BROOKFIELD CARE,CARE ESTABLISHMENT,Commissioning - Dom Cars,City and South - Dom Blocks,Domiciliary Care
Cambridgeshire County Council,09-Sep-19,51301166064,"-4,914.00",BROOKFIELD CARE,CARE ESTABLISHMENT,Commissioning - Dom Cars,City and South - Dom Blocks,Domiciliary Care
Cambridgeshire County Council,09-Sep-19,51301166064,"-4,914.00",BROOKFIELD CARE,CARE ESTABLISHMENT,Commissioning - Dom Cars,City and South - Dom Blocks,Domiciliary Care
Cambridgeshire County Council,09-Sep-19,51301166064,"-4,914.00",BROOKFIELD CARE,CARE ESTABLISHMENT,Commissioning - Dom Cars,City and South - Dom Blocks,Domiciliary Care
Cambridgeshire County Council,09-Sep-19,51301166064,"-4,914.00",BROOKFIELD CARE,CARE ESTABLISHMENT,Commissioning - Dom Cars,City and South - Dom Blocks,Domiciliary Care
Cambridgeshire County Council,09-Sep-19,51301166064,"-4,914.00",BROOKFIELD CARE,CARE ESTABLISHMENT,Commissioning - Dom Cars,City and South - Dom Blocks,Domiciliary Care
Cambridgeshire County Council,09-Sep-19,51301166064,"-4,914.00",BROOKFIELD CARE,CARE ESTABLISHMENT,Commissioning - Dom Cars,City and South - Dom Blocks,Domiciliary Care
Cambridgeshire County Council,09-Sep-19,51301166064,"-4,914.00",BROOKFIELD CARE,CARE ESTABLISHMENT,Commissioning - Dom Cars,City and South - Dom Blocks,Domiciliary Care
Cambridgeshire County Council,09-Sep-19,51301166064,"-4,914.00",BROOKFIELD CARE,CARE ESTABLISHMENT,Commissioning - Dom Cars,City and South - Dom Blocks,Domiciliary Care
Cambridgeshire County Council,09-Sep-19,51301166064,"-4,914.00",BROOKFIELD CARE,CARE ESTABLISHMENT,Commissioning - Dom Cars,City and South - Dom Blocks,Domiciliary Care
Cambridgeshire County Council,06-Sep-19,51301141162,"-4,655.00",Accomplish Group Support Limited,CARE ESTABLISHMENT,LD - Hunts Locality - Cost of Care,LD - Huntingdonshire - Care,Rehabilitation And Respite Care
Cambridgeshire County Council,06-Sep-19,51301122048,"-4,655.00",Accomplish Group Support Limited,CARE ESTABLISHMENT,LD - Hunts Locality - Cost of Care,LD - Huntingdonshire - Care,Rehabilitation And Respite Care
Cambridgeshire County Council,06-Sep-19,51301141154,"-4,655.00",Accomplish Group Support Limited,CARE ESTABLISHMENT,LD - Hunts Locality - Cost of Care,LD - Huntingdonshire - Care,Rehabilitation And Respite Care
Cambridgeshire County Council,06-Sep-19,51301122042,"-4,655.00",Accomplish Group Support Limited,CARE ESTABLISHMENT,LD - Hunts Locality - Cost of Care,LD - Huntingdonshire - Care,Rehabilitation And Respite Care
Cambridgeshire County Council,06-Sep-19,51301162896,"-4,655.00",Accomplish Group Support Limited,CARE ESTABLISHMENT,LD - Hunts Locality - Cost of Care,LD - Huntingdonshire - Care,Rehabilitation And Respite Care
Cambridgeshire County Council,06-Sep-19,51301162910,"-4,655.00",Accomplish Group Support Limited,CARE ESTABLISHMENT,LD - Hunts Locality - Cost of Care,LD - Huntingdonshire - Care,Rehabilitation And Respite Care
Cambridgeshire County Council,06-Sep-19,51301162908,"-4,655.00",Accomplish Group Support Limited,CARE ESTABLISHMENT,LD - Hunts Locality - Cost of Care,LD - Huntingdonshire - Care,Rehabilitation And Respite Care
Cambridgeshire County Council,06-Sep-19,51301162903,"-4,655.00",Accomplish Group Support Limited,CARE ESTABLISHMENT,LD - Hunts Locality - Cost of Care,LD - Huntingdonshire - Care,Rehabilitation And Respite Care
Cambridgeshire County Council,06-Sep-19,51301141153,"-4,655.00",Accomplish Group Support Limited,CARE ESTABLISHMENT,LD - Hunts Locality - Cost of Care,LD - Huntingdonshire - Care,Rehabilitation And Respite Care
Cambridgeshire County Council,06-Sep-19,51301141163,"-4,655.00",Accomplish Group Support Limited,CARE ESTABLISHMENT,LD - Hunts Locality - Cost of Care,LD - Huntingdonshire - Care,Rehabilitation And Respite Care
Cambridgeshire County Council,06-Sep-19,51301141160,"-4,655.00",Accomplish Group Support Limited,CARE ESTABLISHMENT,LD - Hunts Locality - Cost of Care,LD - Huntingdonshire - Care,Rehabilitation And Respite Care
Cambridgeshire County Council,06-Sep-19,51301122045,"-4,655.00",Accomplish Group Support Limited,CARE ESTABLISHMENT,LD - Hunts Locality - Cost of Care,LD - Huntingdonshire - Care,Rehabilitation And Respite Care
Cambridgeshire County Council,06-Sep-19,51301141156,"-4,655.00",Accomplish Group Support Limited,CARE ESTABLISHMENT,LD - Hunts Locality - Cost of Care,LD - Huntingdonshire - Care,Rehabilitation And Respite Care
Cambridgeshire County Council,06-Sep-19,51301141157,"-4,655.00",Accomplish Group Support Limited,CARE ESTABLISHMENT,LD - Hunts Locality - Cost of Care,LD - Huntingdonshire - Care,Rehabilitation And Respite Care
Cambridgeshire County Council,06-Sep-19,51301162895,"-4,655.00",Accomplish Group Support Limited,CARE ESTABLISHMENT,LD - Hunts Locality - Cost of Care,LD - Huntingdonshire - Special Needs,Rehabilitation And Respite Care
Cambridgeshire County Council,06-Sep-19,51301122044,"-4,655.00",Accomplish Group Support Limited,CARE ESTABLISHMENT,LD - Hunts Locality - Cost of Care,LD - Huntingdonshire - Special Needs,Rehabilitation And Respite Care
Cambridgeshire County Council,06-Sep-19,51301162900,"-4,655.00",Accomplish Group Support Limited,CARE ESTABLISHMENT,LD - Hunts Locality - Cost of Care,LD - Huntingdonshire - Special Needs,Rehabilitation And Respite Care
Cambridgeshire County Council,06-Sep-19,51301122052,"-4,655.00",Accomplish Group Support Limited,CARE ESTABLISHMENT,LD - Hunts Locality - Cost of Care,LD - Huntingdonshire - Special Needs,Rehabilitation And Respite Care
Cambridgeshire County Council,06-Sep-19,51301162907,"-4,655.00",Accomplish Group Support Limited,CARE ESTABLISHMENT,LD - Hunts Locality - Cost of Care,LD - Huntingdonshire - Special Needs,Rehabilitation And Respite Care
Cambridgeshire County Council,06-Sep-19,51301122037,"-4,655.00",Accomplish Group Support Limited,CARE ESTABLISHMENT,LD - Hunts Locality - Cost of Care,LD - Huntingdonshire - Special Needs,Rehabilitation And Respite Care
Cambridgeshire County Council,06-Sep-19,51301122049,"-4,655.00",Accomplish Group Support Limited,CARE ESTABLISHMENT,LD - Hunts Locality - Cost of Care,LD - Huntingdonshire - Special Needs,Rehabilitation And Respite Care
Cambridgeshire County Council,06-Sep-19,51301162909,"-4,655.00",Accomplish Group Support Limited,CARE ESTABLISHMENT,LD - Hunts Locality - Cost of Care,LD - Huntingdonshire - Special Needs,Rehabilitation And Respite Care
Cambridgeshire County Council,06-Sep-19,51301122038,"-4,655.00",Accomplish Group Support Limited,CARE ESTABLISHMENT,LD - Hunts Locality - Cost of Care,LD - Huntingdonshire - Special Needs,Rehabilitation And Respite Care
Cambridgeshire County Council,06-Sep-19,51301162911,"-4,655.00",Accomplish Group Support Limited,CARE ESTABLISHMENT,LD - Hunts Locality - Cost of Care,LD - Huntingdonshire - Special Needs,Rehabilitation And Respite Care
Cambridgeshire County Council,06-Sep-19,51301141151,"-4,655.00",Accomplish Group Support Limited,CARE ESTABLISHMENT,LD - Hunts Locality - Cost of Care,LD - Huntingdonshire - Special Needs,Rehabilitation And Respite Care
Cambridgeshire County Council,06-Sep-19,51301122039,"-4,655.00",Accomplish Group Support Limited,CARE ESTABLISHMENT,LD - Hunts Locality - Cost of Care,LD - Huntingdonshire - Special Needs,Rehabilitation And Respite Care
Cambridgeshire County Council,06-Sep-19,51301141158,"-4,655.00",Accomplish Group Support Limited,CARE ESTABLISHMENT,LD - Hunts Locality - Cost of Care,LD - Huntingdonshire - Special Needs,Rehabilitation And Respite Care
Cambridgeshire County Council,16-Sep-19,51301175151,"-4,655.00",Accomplish Group Support Limited,CARE ESTABLISHMENT,LD - Hunts Locality - Cost of Care,LD - Huntingdonshire - Care,Rehabilitation And Respite Care
Cambridgeshire County Council,16-Sep-19,51301175155,"-4,655.00",Accomplish Group Support Limited,CARE ESTABLISHMENT,LD - Hunts Locality - Cost of Care,LD - Huntingdonshire - Care,Rehabilitation And Respite Care
Cambridgeshire County Council,16-Sep-19,51301175152,"-4,655.00",Accomplish Group Support Limited,CARE ESTABLISHMENT,LD - Hunts Locality - Cost of Care,LD - Huntingdonshire - Care,Rehabilitation And Respite Care
Cambridgeshire County Council,16-Sep-19,51301175150,"-4,655.00",Accomplish Group Support Limited,CARE ESTABLISHMENT,LD - Hunts Locality - Cost of Care,LD - Huntingdonshire - Care,Rehabilitation And Respite Care
Cambridgeshire County Council,16-Sep-19,51301175156,"-4,655.00",Accomplish Group Support Limited,CARE ESTABLISHMENT,LD - Hunts Locality - Cost of Care,LD - Huntingdonshire - Special Needs,Rehabilitation And Respite Care
Cambridgeshire County Council,16-Sep-19,51301175146,"-4,655.00",Accomplish Group Support Limited,CARE ESTABLISHMENT,LD - Hunts Locality - Cost of Care,LD - Huntingdonshire - Special Needs,Rehabilitation And Respite Care
Cambridgeshire County Council,16-Sep-19,51301175162,"-4,655.00",Accomplish Group Support Limited,CARE ESTABLISHMENT,LD - Hunts Locality - Cost of Care,LD - Huntingdonshire - Special Needs,Rehabilitation And Respite Care
Cambridgeshire County Council,16-Sep-19,51301175158,"-4,655.00",Accomplish Group Support Limited,CARE ESTABLISHMENT,LD - Hunts Locality - Cost of Care,LD - Huntingdonshire - Special Needs,Rehabilitation And Respite Care
Cambridgeshire County Council,16-Sep-19,51301175153,"-4,655.00",Accomplish Group Support Limited,CARE ESTABLISHMENT,LD - Hunts Locality - Cost of Care,LD - Huntingdonshire - Special Needs,Rehabilitation And Respite Care
Cambridgeshire County Council,19-Sep-19,51301194089,"-4,655.00",Accomplish Group Support Limited,CARE ESTABLISHMENT,LD - Hunts Locality - Cost of Care,LD - Huntingdonshire - Care,Rehabilitation And Respite Care
Cambridgeshire County Council,19-Sep-19,51301194087,"-4,655.00",Accomplish Group Support Limited,CARE ESTABLISHMENT,LD - Hunts Locality - Cost of Care,LD - Huntingdonshire - Special Needs,Rehabilitation And Respite Care
Cambridgeshire County Council,09-Sep-19,51301166054,"-4,351.65",Beaumont HEALTHCARE LTD,CARE ESTABLISHMENT,Commissioning - Dom Cars,City and South - Dom Blocks,Domiciliary Care
Cambridgeshire County Council,24-Sep-19,51301142457,"-4,224.00",NETWORK RAIL LTD,COMPANY,Network Management,Network Management,Capital - Assets Under Construction
Cambridgeshire County Council,09-Sep-19,51301166064,"-4,212.00",BROOKFIELD CARE,CARE ESTABLISHMENT,Commissioning - Dom Cars,City and South - Dom Blocks,Domiciliary Care
Cambridgeshire County Council,06-Sep-19,51300822377,"-4,147.67",ALDERWOOD LLA LTD,CARE ESTABLISHMENT,LD - Hunts Locality - Cost of Care,LD - Huntingdonshire - Special Needs,Residential Care
Cambridgeshire County Council,06-Sep-19,51300822386,"-4,147.67",ALDERWOOD LLA LTD,CARE ESTABLISHMENT,LD - Hunts Locality - Cost of Care,LD - Huntingdonshire - Special Needs,Residential Care
Cambridgeshire County Council,06-Sep-19,51300822390,"-4,147.67",ALDERWOOD LLA LTD,CARE ESTABLISHMENT,LD - Hunts Locality - Cost of Care,LD - Huntingdonshire - Special Needs,Residential Care
Cambridgeshire County Council,06-Sep-19,51300822389,"-4,147.67",ALDERWOOD LLA LTD,CARE ESTABLISHMENT,LD - Hunts Locality - Cost of Care,LD - Huntingdonshire - Special Needs,Residential Care
Cambridgeshire County Council,06-Sep-19,51300822395,"-4,147.67",ALDERWOOD LLA LTD,CARE ESTABLISHMENT,LD - Hunts Locality - Cost of Care,LD - Huntingdonshire - Special Needs,Residential Care
Cambridgeshire County Council,06-Sep-19,51300822376,"-4,147.67",ALDERWOOD LLA LTD,CARE ESTABLISHMENT,LD - Hunts Locality - Cost of Care,LD - Huntingdonshire - Special Needs,Residential Care
Cambridgeshire County Council,06-Sep-19,51300822397,"-4,147.67",ALDERWOOD LLA LTD,CARE ESTABLISHMENT,LD - Hunts Locality - Cost of Care,LD - Huntingdonshire - Special Needs,Residential Care
Cambridgeshire County Council,06-Sep-19,51300822378,"-4,147.67",ALDERWOOD LLA LTD,CARE ESTABLISHMENT,LD - Hunts Locality - Cost of Care,LD - Huntingdonshire - Special Needs,Residential Care
Cambridgeshire County Council,20-Sep-19,51301169024,"-3,786.56",Action For Children Services Ltd,EDUCATION,Community Support Service,Community Support Service ECF,Grants to Voluntary Bodies
Cambridgeshire County Council,06-Sep-19,51300822393,"-3,555.15",ALDERWOOD LLA LTD,CARE ESTABLISHMENT,LD - Hunts Locality - Cost of Care,LD - Huntingdonshire - Special Needs,Residential Care
Cambridgeshire County Council,30-Sep-19,51301142337,"-3,444.00",HUMANWARE EUROPE LTD,TRADE SUPPLIER,ICT Service,ICT Service Sales,Materials for resale
Cambridgeshire County Council,09-Sep-19,51301166053,"-3,384.62",Beaumont HEALTHCARE LTD,CARE ESTABLISHMENT,Commissioning - Dom Cars,Hunts - Dom Blocks,Domiciliary Care
Cambridgeshire County Council,09-Sep-19,51301166053,"-3,384.62",Beaumont HEALTHCARE LTD,CARE ESTABLISHMENT,Commissioning - Dom Cars,Hunts - Dom Blocks,Domiciliary Care
Cambridgeshire County Council,09-Sep-19,51301166053,"-3,384.62",Beaumont HEALTHCARE LTD,CARE ESTABLISHMENT,Commissioning - Dom Cars,Hunts - Dom Blocks,Domiciliary Care
Cambridgeshire County Council,09-Sep-19,51301166053,"-3,384.62",Beaumont HEALTHCARE LTD,CARE ESTABLISHMENT,Commissioning - Dom Cars,Hunts - Dom Blocks,Domiciliary Care
Cambridgeshire County Council,09-Sep-19,51301166053,"-3,384.62",Beaumont HEALTHCARE LTD,CARE ESTABLISHMENT,Commissioning - Dom Cars,Hunts - Dom Blocks,Domiciliary Care
Cambridgeshire County Council,09-Sep-19,51301166053,"-3,384.62",Beaumont HEALTHCARE LTD,CARE ESTABLISHMENT,Commissioning - Dom Cars,Hunts - Dom Blocks,Domiciliary Care
Cambridgeshire County Council,09-Sep-19,51301166053,"-3,384.62",Beaumont HEALTHCARE LTD,CARE ESTABLISHMENT,Commissioning - Dom Cars,Hunts - Dom Blocks,Domiciliary Care
Cambridgeshire County Council,09-Sep-19,51301166053,"-3,384.62",Beaumont HEALTHCARE LTD,CARE ESTABLISHMENT,Commissioning - Dom Cars,Hunts - Dom Blocks,Domiciliary Care
Cambridgeshire County Council,09-Sep-19,51301166053,"-3,384.62",Beaumont HEALTHCARE LTD,CARE ESTABLISHMENT,Commissioning - Dom Cars,Hunts - Dom Blocks,Domiciliary Care
Cambridgeshire County Council,09-Sep-19,51301166053,"-3,384.62",Beaumont HEALTHCARE LTD,CARE ESTABLISHMENT,Commissioning - Dom Cars,Hunts - Dom Blocks,Domiciliary Care
Cambridgeshire County Council,09-Sep-19,51301166053,"-3,384.62",Beaumont HEALTHCARE LTD,CARE ESTABLISHMENT,Commissioning - Dom Cars,Hunts - Dom Blocks,Domiciliary Care
Cambridgeshire County Council,09-Sep-19,51301166053,"-3,384.62",Beaumont HEALTHCARE LTD,CARE ESTABLISHMENT,Commissioning - Dom Cars,Hunts - Dom Blocks,Domiciliary Care
Cambridgeshire County Council,09-Sep-19,51301166053,"-3,384.62",Beaumont HEALTHCARE LTD,CARE ESTABLISHMENT,Commissioning - Dom Cars,Hunts - Dom Blocks,Domiciliary Care
Cambridgeshire County Council,09-Sep-19,51301166053,"-3,384.62",Beaumont HEALTHCARE LTD,CARE ESTABLISHMENT,Commissioning - Dom Cars,Hunts - Dom Blocks,Domiciliary Care
Cambridgeshire County Council,09-Sep-19,51301166053,"-3,384.62",Beaumont HEALTHCARE LTD,CARE ESTABLISHMENT,Commissioning - Dom Cars,Hunts - Dom Blocks,Domiciliary Care
Cambridgeshire County Council,09-Sep-19,51301166053,"-3,384.62",Beaumont HEALTHCARE LTD,CARE ESTABLISHMENT,Commissioning - Dom Cars,Hunts - Dom Blocks,Domiciliary Care
Cambridgeshire County Council,09-Sep-19,51301166053,"-3,384.62",Beaumont HEALTHCARE LTD,CARE ESTABLISHMENT,Commissioning - Dom Cars,Hunts - Dom Blocks,Domiciliary Care
Cambridgeshire County Council,09-Sep-19,51301166053,"-3,384.62",Beaumont HEALTHCARE LTD,CARE ESTABLISHMENT,Commissioning - Dom Cars,Hunts - Dom Blocks,Domiciliary Care
Cambridgeshire County Council,09-Sep-19,51301166053,"-3,384.62",Beaumont HEALTHCARE LTD,CARE ESTABLISHMENT,Commissioning - Dom Cars,Hunts - Dom Blocks,Domiciliary Care
Cambridgeshire County Council,06-Sep-19,51301141147,"-3,325.00",Accomplish Group Support Limited,CARE ESTABLISHMENT,LD - Hunts Locality - Cost of Care,LD - Huntingdonshire - Special Needs,Rehabilitation And Respite Care
Cambridgeshire County Council,06-Sep-19,51301162899,"-3,325.00",Accomplish Group Support Limited,CARE ESTABLISHMENT,LD - Hunts Locality - Cost of Care,LD - Huntingdonshire - Care,Rehabilitation And Respite Care
Cambridgeshire County Council,06-Sep-19,51301122036,"-3,325.00",Accomplish Group Support Limited,CARE ESTABLISHMENT,LD - Hunts Locality - Cost of Care,LD - Huntingdonshire - Care,Rehabilitation And Respite Care
Cambridgeshire County Council,16-Sep-19,51301175154,"-3,325.00",Accomplish Group Support Limited,CARE ESTABLISHMENT,LD - Hunts Locality - Cost of Care,LD - Huntingdonshire - Special Needs,Rehabilitation And Respite Care
Cambridgeshire County Council,24-Sep-19,51301142634,"-3,271.72",Compass Fostering East Ltd,CARE ESTABLISHMENT,LAC Placements,Placements - independent fostering,Agency Placements - Out of  County
Cambridgeshire County Council,09-Sep-19,51301166065,"-3,166.81",BROOKFIELD CARE,CARE ESTABLISHMENT,Commissioning - Dom Cars,East Cambs - Dom Blocks,Domiciliary Care
Cambridgeshire County Council,09-Sep-19,51301166065,"-3,166.81",BROOKFIELD CARE,CARE ESTABLISHMENT,Commissioning - Dom Cars,East Cambs - Dom Blocks,Domiciliary Care
Cambridgeshire County Council,09-Sep-19,51301166065,"-3,166.81",BROOKFIELD CARE,CARE ESTABLISHMENT,Commissioning - Dom Cars,East Cambs - Dom Blocks,Domiciliary Care
Cambridgeshire County Council,09-Sep-19,51301166065,"-3,166.81",BROOKFIELD CARE,CARE ESTABLISHMENT,Commissioning - Dom Cars,East Cambs - Dom Blocks,Domiciliary Care
Cambridgeshire County Council,09-Sep-19,51301166065,"-3,166.81",BROOKFIELD CARE,CARE ESTABLISHMENT,Commissioning - Dom Cars,East Cambs - Dom Blocks,Domiciliary Care
Cambridgeshire County Council,09-Sep-19,51301166065,"-3,166.81",BROOKFIELD CARE,CARE ESTABLISHMENT,Commissioning - Dom Cars,East Cambs - Dom Blocks,Domiciliary Care
Cambridgeshire County Council,09-Sep-19,51301166065,"-3,166.81",BROOKFIELD CARE,CARE ESTABLISHMENT,Commissioning - Dom Cars,East Cambs - Dom Blocks,Domiciliary Care
Cambridgeshire County Council,09-Sep-19,51301166065,"-3,166.81",BROOKFIELD CARE,CARE ESTABLISHMENT,Commissioning - Dom Cars,East Cambs - Dom Blocks,Domiciliary Care
Cambridgeshire County Council,09-Sep-19,51301166065,"-3,166.81",BROOKFIELD CARE,CARE ESTABLISHMENT,Commissioning - Dom Cars,East Cambs - Dom Blocks,Domiciliary Care
Cambridgeshire County Council,09-Sep-19,51301166065,"-3,166.81",BROOKFIELD CARE,CARE ESTABLISHMENT,Commissioning - Dom Cars,East Cambs - Dom Blocks,Domiciliary Care
Cambridgeshire County Council,09-Sep-19,51301166065,"-3,166.81",BROOKFIELD CARE,CARE ESTABLISHMENT,Commissioning - Dom Cars,East Cambs - Dom Blocks,Domiciliary Care
Cambridgeshire County Council,09-Sep-19,51301166065,"-3,166.81",BROOKFIELD CARE,CARE ESTABLISHMENT,Commissioning - Dom Cars,East Cambs - Dom Blocks,Domiciliary Care
Cambridgeshire County Council,09-Sep-19,51301166065,"-3,166.81",BROOKFIELD CARE,CARE ESTABLISHMENT,Commissioning - Dom Cars,East Cambs - Dom Blocks,Domiciliary Care
Cambridgeshire County Council,09-Sep-19,51301166065,"-3,166.81",BROOKFIELD CARE,CARE ESTABLISHMENT,Commissioning - Dom Cars,East Cambs - Dom Blocks,Domiciliary Care
Cambridgeshire County Council,09-Sep-19,51301166065,"-3,166.81",BROOKFIELD CARE,CARE ESTABLISHMENT,Commissioning - Dom Cars,East Cambs - Dom Blocks,Domiciliary Care
Cambridgeshire County Council,09-Sep-19,51301166065,"-3,166.81",BROOKFIELD CARE,CARE ESTABLISHMENT,Commissioning - Dom Cars,East Cambs - Dom Blocks,Domiciliary Care
Cambridgeshire County Council,09-Sep-19,51301166065,"-3,166.81",BROOKFIELD CARE,CARE ESTABLISHMENT,Commissioning - Dom Cars,East Cambs - Dom Blocks,Domiciliary Care
Cambridgeshire County Council,09-Sep-19,51301166065,"-3,166.81",BROOKFIELD CARE,CARE ESTABLISHMENT,Commissioning - Dom Cars,East Cambs - Dom Blocks,Domiciliary Care
Cambridgeshire County Council,09-Sep-19,51301166065,"-3,166.81",BROOKFIELD CARE,CARE ESTABLISHMENT,Commissioning - Dom Cars,East Cambs - Dom Blocks,Domiciliary Care
Cambridgeshire County Council,09-Sep-19,51301166053,"-2,901.10",Beaumont HEALTHCARE LTD,CARE ESTABLISHMENT,Commissioning - Dom Cars,Hunts - Dom Blocks,Domiciliary Care
Cambridgeshire County Council,20-Sep-19,51301195282,"-2,894.86",ST GEORGE'S COURT,CARE ESTABLISHMENT,OP - City & South Blocks,City and South - Long term blocks,Residential Care
Cambridgeshire County Council,06-Sep-19,51301165430,"-2,808.00",HARDWICK DENE,CARE ESTABLISHMENT,OPMH - City & South,Older People Mental Health City & South,Residential Care
Cambridgeshire County Council,06-Sep-19,51300820094,"-2,802.09",HEATHERS (JEESAL RESIDENTIAL CARE),CARE ESTABLISHMENT,LD - Fenland Locality - Cost of Care,LD - Fenland  - Special Needs,Residential Care
Cambridgeshire County Council,06-Sep-19,51300820086,"-2,802.09",HEATHERS (JEESAL RESIDENTIAL CARE),CARE ESTABLISHMENT,LD - Fenland Locality - Cost of Care,LD - Fenland  - Special Needs,Residential Care
Cambridgeshire County Council,06-Sep-19,51300820085,"-2,802.09",HEATHERS (JEESAL RESIDENTIAL CARE),CARE ESTABLISHMENT,LD - Fenland Locality - Cost of Care,LD - Fenland  - Special Needs,Residential Care
Cambridgeshire County Council,06-Sep-19,51300820090,"-2,802.09",HEATHERS (JEESAL RESIDENTIAL CARE),CARE ESTABLISHMENT,LD - Fenland Locality - Cost of Care,LD - Fenland  - Special Needs,Residential Care
Cambridgeshire County Council,06-Sep-19,51300820091,"-2,802.09",HEATHERS (JEESAL RESIDENTIAL CARE),CARE ESTABLISHMENT,LD - Fenland Locality - Cost of Care,LD - Fenland  - Special Needs,Residential Care
Cambridgeshire County Council,06-Sep-19,51300820092,"-2,802.09",HEATHERS (JEESAL RESIDENTIAL CARE),CARE ESTABLISHMENT,LD - Fenland Locality - Cost of Care,LD - Fenland  - Special Needs,Residential Care
Cambridgeshire County Council,06-Sep-19,51300820087,"-2,802.09",HEATHERS (JEESAL RESIDENTIAL CARE),CARE ESTABLISHMENT,LD - Fenland Locality - Cost of Care,LD - Fenland  - Special Needs,Residential Care
Cambridgeshire County Council,06-Sep-19,51300820089,"-2,802.09",HEATHERS (JEESAL RESIDENTIAL CARE),CARE ESTABLISHMENT,LD - Fenland Locality - Cost of Care,LD - Fenland  - Special Needs,Residential Care
Cambridgeshire County Council,09-Sep-19,51301166065,"-2,714.41",BROOKFIELD CARE,CARE ESTABLISHMENT,Commissioning - Dom Cars,East Cambs - Dom Blocks,Domiciliary Care
Cambridgeshire County Council,20-Sep-19,51301195280,"-2,624.29",FITZWILLIAM HEALTHCARE LTD,CARE ESTABLISHMENT,OP - City & South Blocks,City and South - Long term blocks,Residential Care
Cambridgeshire County Council,06-Sep-19,51300822324,"-2,607.66",SENSE (MIDLANDS),CARE ESTABLISHMENT,LD - Hunts Locality - Cost of Care,LD - Huntingdonshire - Care,Residential Care
Cambridgeshire County Council,06-Sep-19,51300822349,"-2,607.66",SENSE (MIDLANDS),CARE ESTABLISHMENT,LD - Hunts Locality - Cost of Care,LD - Huntingdonshire - Care,Residential Care
Cambridgeshire County Council,06-Sep-19,51300822342,"-2,607.66",SENSE (MIDLANDS),CARE ESTABLISHMENT,LD - Hunts Locality - Cost of Care,LD - Huntingdonshire - Care,Residential Care
Cambridgeshire County Council,06-Sep-19,51300822335,"-2,607.66",SENSE (MIDLANDS),CARE ESTABLISHMENT,LD - Hunts Locality - Cost of Care,LD - Huntingdonshire - Care,Residential Care
Cambridgeshire County Council,06-Sep-19,51300822323,"-2,607.66",SENSE (MIDLANDS),CARE ESTABLISHMENT,LD - Hunts Locality - Cost of Care,LD - Huntingdonshire - Care,Residential Care
Cambridgeshire County Council,06-Sep-19,51300822338,"-2,607.66",SENSE (MIDLANDS),CARE ESTABLISHMENT,LD - Hunts Locality - Cost of Care,LD - Huntingdonshire - Care,Residential Care
Cambridgeshire County Council,06-Sep-19,51301091928,"-2,607.66",SENSE (MIDLANDS),CARE ESTABLISHMENT,LD - Hunts Locality - Cost of Care,LD - Huntingdonshire - Care,Residential Client Care Contributions
Cambridgeshire County Council,06-Sep-19,51301037620,"-2,607.66",SENSE (MIDLANDS),CARE ESTABLISHMENT,LD - Hunts Locality - Cost of Care,LD - Huntingdonshire - Care,Residential Client Care Contributions
Cambridgeshire County Council,06-Sep-19,51301091928,"-2,607.66",SENSE (MIDLANDS),CARE ESTABLISHMENT,LD - Hunts Locality - Cost of Care,LD - Huntingdonshire - Care,Residential Client Care Contributions
Cambridgeshire County Council,06-Sep-19,51301037620,"-2,607.66",SENSE (MIDLANDS),CARE ESTABLISHMENT,LD - Hunts Locality - Cost of Care,LD - Huntingdonshire - Care,Residential Client Care Contributions
Cambridgeshire County Council,06-Sep-19,51301091928,"-2,607.66",SENSE (MIDLANDS),CARE ESTABLISHMENT,LD - Hunts Locality - Cost of Care,LD - Huntingdonshire - Care,Residential Client Care Contributions
Cambridgeshire County Council,06-Sep-19,51301037620,"-2,607.66",SENSE (MIDLANDS),CARE ESTABLISHMENT,LD - Hunts Locality - Cost of Care,LD - Huntingdonshire - Care,Residential Client Care Contributions
Cambridgeshire County Council,06-Sep-19,51301091928,"-2,607.66",SENSE (MIDLANDS),CARE ESTABLISHMENT,LD - Hunts Locality - Cost of Care,LD - Huntingdonshire - Care,Residential Client Care Contributions
Cambridgeshire County Council,06-Sep-19,51301037620,"-2,607.66",SENSE (MIDLANDS),CARE ESTABLISHMENT,LD - Hunts Locality - Cost of Care,LD - Huntingdonshire - Care,Residential Client Care Contributions
Cambridgeshire County Council,06-Sep-19,51300835342,"-2,542.70",AN DARACH HOUSE ( KISIMUL GROUP LTD),CARE ESTABLISHMENT,LD - City Locality - Cost of Care,LD - City - Special Needs,Residential Care
Cambridgeshire County Council,06-Sep-19,51300835381,"-2,542.70",AN DARACH HOUSE ( KISIMUL GROUP LTD),CARE ESTABLISHMENT,LD - City Locality - Cost of Care,LD - City - Special Needs,Residential Care
Cambridgeshire County Council,06-Sep-19,51300835366,"-2,542.70",AN DARACH HOUSE ( KISIMUL GROUP LTD),CARE ESTABLISHMENT,LD - City Locality - Cost of Care,LD - City - Special Needs,Residential Care
Cambridgeshire County Council,06-Sep-19,51300835374,"-2,542.70",AN DARACH HOUSE ( KISIMUL GROUP LTD),CARE ESTABLISHMENT,LD - City Locality - Cost of Care,LD - City - Special Needs,Residential Care
Cambridgeshire County Council,06-Sep-19,51300835380,"-2,542.70",AN DARACH HOUSE ( KISIMUL GROUP LTD),CARE ESTABLISHMENT,LD - City Locality - Cost of Care,LD - City - Special Needs,Residential Care
Cambridgeshire County Council,06-Sep-19,51300835350,"-2,542.70",AN DARACH HOUSE ( KISIMUL GROUP LTD),CARE ESTABLISHMENT,LD - City Locality - Cost of Care,LD - City - Special Needs,Residential Care
Cambridgeshire County Council,06-Sep-19,51300835346,"-2,542.70",AN DARACH HOUSE ( KISIMUL GROUP LTD),CARE ESTABLISHMENT,LD - City Locality - Cost of Care,LD - City - Special Needs,Residential Care
Cambridgeshire County Council,06-Sep-19,51300835363,"-2,542.70",AN DARACH HOUSE ( KISIMUL GROUP LTD),CARE ESTABLISHMENT,LD - City Locality - Cost of Care,LD - City - Special Needs,Residential Care
Cambridgeshire County Council,06-Sep-19,51300820093,"-2,401.79",HEATHERS (JEESAL RESIDENTIAL CARE),CARE ESTABLISHMENT,LD - Fenland Locality - Cost of Care,LD - Fenland  - Special Needs,Residential Care
Cambridgeshire County Council,06-Sep-19,51300814083,"-2,371.61",RAPKYNS CARE CENTRE,CARE ESTABLISHMENT,LD - Hunts Locality - Cost of Care,LD - Huntingdonshire - Special Needs,Nursing Care
Cambridgeshire County Council,06-Sep-19,51300814106,"-2,371.61",RAPKYNS CARE CENTRE,CARE ESTABLISHMENT,LD - Hunts Locality - Cost of Care,LD - Huntingdonshire - Special Needs,Nursing Care
Cambridgeshire County Council,06-Sep-19,51300814112,"-2,371.61",RAPKYNS CARE CENTRE,CARE ESTABLISHMENT,LD - Hunts Locality - Cost of Care,LD - Huntingdonshire - Special Needs,Nursing Care
Cambridgeshire County Council,06-Sep-19,51300814088,"-2,371.61",RAPKYNS CARE CENTRE,CARE ESTABLISHMENT,LD - Hunts Locality - Cost of Care,LD - Huntingdonshire - Special Needs,Nursing Care
Cambridgeshire County Council,06-Sep-19,51300814097,"-2,371.61",RAPKYNS CARE CENTRE,CARE ESTABLISHMENT,LD - Hunts Locality - Cost of Care,LD - Huntingdonshire - Special Needs,Nursing Care
Cambridgeshire County Council,06-Sep-19,51300814103,"-2,371.61",RAPKYNS CARE CENTRE,CARE ESTABLISHMENT,LD - Hunts Locality - Cost of Care,LD - Huntingdonshire - Special Needs,Nursing Care
Cambridgeshire County Council,06-Sep-19,51300814085,"-2,371.61",RAPKYNS CARE CENTRE,CARE ESTABLISHMENT,LD - Hunts Locality - Cost of Care,LD - Huntingdonshire - Special Needs,Nursing Care
Cambridgeshire County Council,06-Sep-19,51300814094,"-2,371.61",RAPKYNS CARE CENTRE,CARE ESTABLISHMENT,LD - Hunts Locality - Cost of Care,LD - Huntingdonshire - Special Needs,Nursing Care
Cambridgeshire County Council,20-Sep-19,51301194503,"-2,346.68",DAME HANNAH ROGERS TRUST,TRUST (OTHER),LD - South Locality - Cost of Care,LD - South Cambs - Care,Residential Care
Cambridgeshire County Council,20-Sep-19,51301194543,"-2,346.68",DAME HANNAH ROGERS TRUST,TRUST (OTHER),LD - South Locality - Cost of Care,LD - South Cambs - Care,Residential Care
Cambridgeshire County Council,20-Sep-19,51301194447,"-2,346.68",DAME HANNAH ROGERS TRUST,TRUST (OTHER),LD - South Locality - Cost of Care,LD - South Cambs - Care,Residential Care
Cambridgeshire County Council,20-Sep-19,51301194477,"-2,346.68",DAME HANNAH ROGERS TRUST,TRUST (OTHER),LD - South Locality - Cost of Care,LD - South Cambs - Care,Residential Care
Cambridgeshire County Council,20-Sep-19,51301194445,"-2,346.68",DAME HANNAH ROGERS TRUST,TRUST (OTHER),LD - South Locality - Cost of Care,LD - South Cambs - Care,Residential Care
Cambridgeshire County Council,20-Sep-19,51301194399,"-2,346.68",DAME HANNAH ROGERS TRUST,TRUST (OTHER),LD - South Locality - Cost of Care,LD - South Cambs - Care,Residential Care
Cambridgeshire County Council,20-Sep-19,51301194405,"-2,346.68",DAME HANNAH ROGERS TRUST,TRUST (OTHER),LD - South Locality - Cost of Care,LD - South Cambs - Care,Residential Care
Cambridgeshire County Council,20-Sep-19,51301194444,"-2,346.68",DAME HANNAH ROGERS TRUST,TRUST (OTHER),LD - South Locality - Cost of Care,LD - South Cambs - Care,Residential Care
Cambridgeshire County Council,20-Sep-19,51301194448,"-2,346.68",DAME HANNAH ROGERS TRUST,TRUST (OTHER),LD - South Locality - Cost of Care,LD - South Cambs - Care,Residential Care
Cambridgeshire County Council,20-Sep-19,51301194449,"-2,346.68",DAME HANNAH ROGERS TRUST,TRUST (OTHER),LD - South Locality - Cost of Care,LD - South Cambs - Care,Residential Care
Cambridgeshire County Council,20-Sep-19,51301194501,"-2,346.68",DAME HANNAH ROGERS TRUST,TRUST (OTHER),LD - South Locality - Cost of Care,LD - South Cambs - Care,Residential Care
Cambridgeshire County Council,20-Sep-19,51301194507,"-2,346.68",DAME HANNAH ROGERS TRUST,TRUST (OTHER),LD - South Locality - Cost of Care,LD - South Cambs - Care,Residential Care
Cambridgeshire County Council,20-Sep-19,51301194397,"-2,346.68",DAME HANNAH ROGERS TRUST,TRUST (OTHER),LD - South Locality - Cost of Care,LD - South Cambs - Care,Residential Care
Cambridgeshire County Council,20-Sep-19,51301194400,"-2,346.68",DAME HANNAH ROGERS TRUST,TRUST (OTHER),LD - South Locality - Cost of Care,LD - South Cambs - Care,Residential Care
Cambridgeshire County Council,20-Sep-19,51301194485,"-2,346.68",DAME HANNAH ROGERS TRUST,TRUST (OTHER),LD - South Locality - Cost of Care,LD - South Cambs - Care,Residential Care
Cambridgeshire County Council,20-Sep-19,51301194487,"-2,346.68",DAME HANNAH ROGERS TRUST,TRUST (OTHER),LD - South Locality - Cost of Care,LD - South Cambs - Care,Residential Care
Cambridgeshire County Council,20-Sep-19,51301194512,"-2,346.68",DAME HANNAH ROGERS TRUST,TRUST (OTHER),LD - South Locality - Cost of Care,LD - South Cambs - Care,Residential Care
Cambridgeshire County Council,20-Sep-19,51301194537,"-2,346.68",DAME HANNAH ROGERS TRUST,TRUST (OTHER),LD - South Locality - Cost of Care,LD - South Cambs - Care,Residential Care
Cambridgeshire County Council,20-Sep-19,51301194538,"-2,346.68",DAME HANNAH ROGERS TRUST,TRUST (OTHER),LD - South Locality - Cost of Care,LD - South Cambs - Care,Residential Care
Cambridgeshire County Council,20-Sep-19,51301194545,"-2,346.68",DAME HANNAH ROGERS TRUST,TRUST (OTHER),LD - South Locality - Cost of Care,LD - South Cambs - Care,Residential Care
Cambridgeshire County Council,20-Sep-19,51301194514,"-2,346.68",DAME HANNAH ROGERS TRUST,TRUST (OTHER),LD - South Locality - Cost of Care,LD - South Cambs - Care,Residential Care
Cambridgeshire County Council,20-Sep-19,51301194552,"-2,346.68",DAME HANNAH ROGERS TRUST,TRUST (OTHER),LD - South Locality - Cost of Care,LD - South Cambs - Care,Residential Care
Cambridgeshire County Council,20-Sep-19,51301194476,"-2,346.68",DAME HANNAH ROGERS TRUST,TRUST (OTHER),LD - South Locality - Cost of Care,LD - South Cambs - Care,Residential Care
Cambridgeshire County Council,20-Sep-19,51301194404,"-2,346.68",DAME HANNAH ROGERS TRUST,TRUST (OTHER),LD - South Locality - Cost of Care,LD - South Cambs - Care,Residential Care
Cambridgeshire County Council,20-Sep-19,51301194513,"-2,346.68",DAME HANNAH ROGERS TRUST,TRUST (OTHER),LD - South Locality - Cost of Care,LD - South Cambs - Care,Residential Care
Cambridgeshire County Council,20-Sep-19,51301194547,"-2,346.68",DAME HANNAH ROGERS TRUST,TRUST (OTHER),LD - South Locality - Cost of Care,LD - South Cambs - Care,Residential Care
Cambridgeshire County Council,20-Sep-19,51301194548,"-2,346.68",DAME HANNAH ROGERS TRUST,TRUST (OTHER),LD - South Locality - Cost of Care,LD - South Cambs - Care,Residential Care
Cambridgeshire County Council,20-Sep-19,51301194541,"-2,346.68",DAME HANNAH ROGERS TRUST,TRUST (OTHER),LD - South Locality - Cost of Care,LD - South Cambs - Care,Residential Care
Cambridgeshire County Council,20-Sep-19,51301194484,"-2,346.68",DAME HANNAH ROGERS TRUST,TRUST (OTHER),LD - South Locality - Cost of Care,LD - South Cambs - Care,Residential Care
Cambridgeshire County Council,20-Sep-19,51301194408,"-2,346.68",DAME HANNAH ROGERS TRUST,TRUST (OTHER),LD - South Locality - Cost of Care,LD - South Cambs - Care,Residential Care
Cambridgeshire County Council,20-Sep-19,51301194502,"-2,346.68",DAME HANNAH ROGERS TRUST,TRUST (OTHER),LD - South Locality - Cost of Care,LD - South Cambs - Care,Residential Care
Cambridgeshire County Council,20-Sep-19,51301194532,"-2,346.68",DAME HANNAH ROGERS TRUST,TRUST (OTHER),LD - South Locality - Cost of Care,LD - South Cambs - Care,Residential Care
Cambridgeshire County Council,20-Sep-19,51301194511,"-2,346.68",DAME HANNAH ROGERS TRUST,TRUST (OTHER),LD - South Locality - Cost of Care,LD - South Cambs - Care,Residential Care
Cambridgeshire County Council,20-Sep-19,51301194542,"-2,346.68",DAME HANNAH ROGERS TRUST,TRUST (OTHER),LD - South Locality - Cost of Care,LD - South Cambs - Care,Residential Care
Cambridgeshire County Council,20-Sep-19,51301194398,"-2,346.68",DAME HANNAH ROGERS TRUST,TRUST (OTHER),LD - South Locality - Cost of Care,LD - South Cambs - Care,Residential Care
Cambridgeshire County Council,20-Sep-19,51301194409,"-2,346.68",DAME HANNAH ROGERS TRUST,TRUST (OTHER),LD - South Locality - Cost of Care,LD - South Cambs - Care,Residential Care
Cambridgeshire County Council,20-Sep-19,51301194440,"-2,346.68",DAME HANNAH ROGERS TRUST,TRUST (OTHER),LD - South Locality - Cost of Care,LD - South Cambs - Care,Residential Care
Cambridgeshire County Council,20-Sep-19,51301194446,"-2,346.68",DAME HANNAH ROGERS TRUST,TRUST (OTHER),LD - South Locality - Cost of Care,LD - South Cambs - Care,Residential Care
Cambridgeshire County Council,20-Sep-19,51301194516,"-2,346.68",DAME HANNAH ROGERS TRUST,TRUST (OTHER),LD - South Locality - Cost of Care,LD - South Cambs - Care,Residential Care
Cambridgeshire County Council,20-Sep-19,51301194535,"-2,346.68",DAME HANNAH ROGERS TRUST,TRUST (OTHER),LD - South Locality - Cost of Care,LD - South Cambs - Care,Residential Care
Cambridgeshire County Council,20-Sep-19,51301194540,"-2,346.68",DAME HANNAH ROGERS TRUST,TRUST (OTHER),LD - South Locality - Cost of Care,LD - South Cambs - Care,Residential Care
Cambridgeshire County Council,20-Sep-19,51301194402,"-2,346.68",DAME HANNAH ROGERS TRUST,TRUST (OTHER),LD - South Locality - Cost of Care,LD - South Cambs - Care,Residential Care
Cambridgeshire County Council,20-Sep-19,51301194403,"-2,346.68",DAME HANNAH ROGERS TRUST,TRUST (OTHER),LD - South Locality - Cost of Care,LD - South Cambs - Care,Residential Care
Cambridgeshire County Council,20-Sep-19,51301194406,"-2,346.68",DAME HANNAH ROGERS TRUST,TRUST (OTHER),LD - South Locality - Cost of Care,LD - South Cambs - Care,Residential Care
Cambridgeshire County Council,20-Sep-19,51301194451,"-2,346.68",DAME HANNAH ROGERS TRUST,TRUST (OTHER),LD - South Locality - Cost of Care,LD - South Cambs - Care,Residential Care
Cambridgeshire County Council,20-Sep-19,51301194489,"-2,346.68",DAME HANNAH ROGERS TRUST,TRUST (OTHER),LD - South Locality - Cost of Care,LD - South Cambs - Care,Residential Care
Cambridgeshire County Council,20-Sep-19,51301194500,"-2,346.68",DAME HANNAH ROGERS TRUST,TRUST (OTHER),LD - South Locality - Cost of Care,LD - South Cambs - Care,Residential Care
Cambridgeshire County Council,20-Sep-19,51301194506,"-2,346.68",DAME HANNAH ROGERS TRUST,TRUST (OTHER),LD - South Locality - Cost of Care,LD - South Cambs - Care,Residential Care
Cambridgeshire County Council,20-Sep-19,51301194510,"-2,346.68",DAME HANNAH ROGERS TRUST,TRUST (OTHER),LD - South Locality - Cost of Care,LD - South Cambs - Care,Residential Care
Cambridgeshire County Council,20-Sep-19,51301194519,"-2,346.68",DAME HANNAH ROGERS TRUST,TRUST (OTHER),LD - South Locality - Cost of Care,LD - South Cambs - Care,Residential Care
Cambridgeshire County Council,20-Sep-19,51301194524,"-2,346.68",DAME HANNAH ROGERS TRUST,TRUST (OTHER),LD - South Locality - Cost of Care,LD - South Cambs - Care,Residential Care
Cambridgeshire County Council,20-Sep-19,51301194553,"-2,346.68",DAME HANNAH ROGERS TRUST,TRUST (OTHER),LD - South Locality - Cost of Care,LD - South Cambs - Care,Residential Care
Cambridgeshire County Council,20-Sep-19,51301194539,"-2,346.68",DAME HANNAH ROGERS TRUST,TRUST (OTHER),LD - South Locality - Cost of Care,LD - South Cambs - Care,Residential Care
Cambridgeshire County Council,20-Sep-19,51301194544,"-2,346.68",DAME HANNAH ROGERS TRUST,TRUST (OTHER),LD - South Locality - Cost of Care,LD - South Cambs - Care,Residential Care
Cambridgeshire County Council,13-Sep-19,51301170393,"-2,337.29",DIMENSIONS (UK) LTD,CARE ESTABLISHMENT,LD - City Locality - Cost of Care,LD - City - Special Needs,Supported Living
Cambridgeshire County Council,13-Sep-19,51301170395,"-2,337.29",DIMENSIONS (UK) LTD,CARE ESTABLISHMENT,LD - City Locality - Cost of Care,LD - City - Special Needs,Supported Living
Cambridgeshire County Council,13-Sep-19,51301139334,"-2,337.29",DIMENSIONS (UK) LTD,CARE ESTABLISHMENT,LD - City Locality - Cost of Care,LD - City - Special Needs,Supported Living
Cambridgeshire County Council,13-Sep-19,51301157406,"-2,337.29",DIMENSIONS (UK) LTD,CARE ESTABLISHMENT,LD - City Locality - Cost of Care,LD - City - Special Needs,Supported Living
Cambridgeshire County Council,13-Sep-19,51301157405,"-2,337.29",DIMENSIONS (UK) LTD,CARE ESTABLISHMENT,LD - City Locality - Cost of Care,LD - City - Special Needs,Supported Living
Cambridgeshire County Council,13-Sep-19,51301139344,"-2,337.29",DIMENSIONS (UK) LTD,CARE ESTABLISHMENT,LD - City Locality - Cost of Care,LD - City - Special Needs,Supported Living
Cambridgeshire County Council,13-Sep-19,51301170414,"-2,337.29",DIMENSIONS (UK) LTD,CARE ESTABLISHMENT,LD - City Locality - Cost of Care,LD - City - Special Needs,Supported Living
Cambridgeshire County Council,13-Sep-19,51301170406,"-2,337.29",DIMENSIONS (UK) LTD,CARE ESTABLISHMENT,LD - City Locality - Cost of Care,LD - City - Special Needs,Supported Living
Cambridgeshire County Council,13-Sep-19,51301131583,"-2,337.29",DIMENSIONS (UK) LTD,CARE ESTABLISHMENT,LD - City Locality - Cost of Care,LD - City - Special Needs,Supported Living
Cambridgeshire County Council,13-Sep-19,51301170404,"-2,337.29",DIMENSIONS (UK) LTD,CARE ESTABLISHMENT,LD - City Locality - Cost of Care,LD - City - Special Needs,Supported Living
Cambridgeshire County Council,13-Sep-19,51301131579,"-2,337.29",DIMENSIONS (UK) LTD,CARE ESTABLISHMENT,LD - City Locality - Cost of Care,LD - City - Special Needs,Supported Living
Cambridgeshire County Council,13-Sep-19,51301170409,"-2,337.29",DIMENSIONS (UK) LTD,CARE ESTABLISHMENT,LD - City Locality - Cost of Care,LD - City - Special Needs,Supported Living
Cambridgeshire County Council,13-Sep-19,51301131575,"-2,337.29",DIMENSIONS (UK) LTD,CARE ESTABLISHMENT,LD - City Locality - Cost of Care,LD - City - Special Needs,Supported Living
Cambridgeshire County Council,13-Sep-19,51301131581,"-2,337.29",DIMENSIONS (UK) LTD,CARE ESTABLISHMENT,LD - City Locality - Cost of Care,LD - City - Special Needs,Supported Living
Cambridgeshire County Council,13-Sep-19,51301157418,"-2,337.29",DIMENSIONS (UK) LTD,CARE ESTABLISHMENT,LD - City Locality - Cost of Care,LD - City - Special Needs,Supported Living
Cambridgeshire County Council,13-Sep-19,51301157407,"-2,337.29",DIMENSIONS (UK) LTD,CARE ESTABLISHMENT,LD - City Locality - Cost of Care,LD - City - Special Needs,Supported Living
Cambridgeshire County Council,13-Sep-19,51301131577,"-2,337.29",DIMENSIONS (UK) LTD,CARE ESTABLISHMENT,LD - South Locality - Cost of Care,LD - South Cambs - Special Needs,Supported Living
Cambridgeshire County Council,13-Sep-19,51301139339,"-2,337.29",DIMENSIONS (UK) LTD,CARE ESTABLISHMENT,LD - South Locality - Cost of Care,LD - South Cambs - Special Needs,Supported Living
Cambridgeshire County Council,13-Sep-19,51301170410,"-2,337.29",DIMENSIONS (UK) LTD,CARE ESTABLISHMENT,LD - South Locality - Cost of Care,LD - South Cambs - Special Needs,Supported Living
Cambridgeshire County Council,13-Sep-19,51301157416,"-2,337.29",DIMENSIONS (UK) LTD,CARE ESTABLISHMENT,LD - South Locality - Cost of Care,LD - South Cambs - Special Needs,Supported Living
Cambridgeshire County Council,13-Sep-19,51301131576,"-2,337.29",DIMENSIONS (UK) LTD,CARE ESTABLISHMENT,LD - South Locality - Cost of Care,LD - South Cambs - Special Needs,Supported Living
Cambridgeshire County Council,13-Sep-19,51301139347,"-2,337.29",DIMENSIONS (UK) LTD,CARE ESTABLISHMENT,LD - South Locality - Cost of Care,LD - South Cambs - Special Needs,Supported Living
Cambridgeshire County Council,13-Sep-19,51301139350,"-2,337.29",DIMENSIONS (UK) LTD,CARE ESTABLISHMENT,LD - South Locality - Cost of Care,LD - South Cambs - Special Needs,Supported Living
Cambridgeshire County Council,13-Sep-19,51301131578,"-2,337.29",DIMENSIONS (UK) LTD,CARE ESTABLISHMENT,LD - South Locality - Cost of Care,LD - South Cambs - Special Needs,Supported Living
Cambridgeshire County Council,13-Sep-19,51301170394,"-2,337.29",DIMENSIONS (UK) LTD,CARE ESTABLISHMENT,LD - South Locality - Cost of Care,LD - South Cambs - Special Needs,Supported Living
Cambridgeshire County Council,13-Sep-19,51301157410,"-2,337.29",DIMENSIONS (UK) LTD,CARE ESTABLISHMENT,LD - South Locality - Cost of Care,LD - South Cambs - Special Needs,Supported Living
Cambridgeshire County Council,13-Sep-19,51301131588,"-2,337.29",DIMENSIONS (UK) LTD,CARE ESTABLISHMENT,LD - South Locality - Cost of Care,LD - South Cambs - Special Needs,Supported Living
Cambridgeshire County Council,13-Sep-19,51301139341,"-2,337.29",DIMENSIONS (UK) LTD,CARE ESTABLISHMENT,LD - South Locality - Cost of Care,LD - South Cambs - Special Needs,Supported Living
Cambridgeshire County Council,13-Sep-19,51301157411,"-2,337.29",DIMENSIONS (UK) LTD,CARE ESTABLISHMENT,LD - South Locality - Cost of Care,LD - South Cambs - Special Needs,Supported Living
Cambridgeshire County Council,13-Sep-19,51301139338,"-2,337.29",DIMENSIONS (UK) LTD,CARE ESTABLISHMENT,LD - South Locality - Cost of Care,LD - South Cambs - Special Needs,Supported Living
Cambridgeshire County Council,13-Sep-19,51301139336,"-2,337.29",DIMENSIONS (UK) LTD,CARE ESTABLISHMENT,LD - South Locality - Cost of Care,LD - South Cambs - Special Needs,Supported Living
Cambridgeshire County Council,13-Sep-19,51301157412,"-2,337.29",DIMENSIONS (UK) LTD,CARE ESTABLISHMENT,LD - South Locality - Cost of Care,LD - South Cambs - Special Needs,Supported Living
Cambridgeshire County Council,26-Sep-19,51301200010,"-2,337.29",DIMENSIONS (UK) LTD,CARE ESTABLISHMENT,LD - City Locality - Cost of Care,LD - City - Special Needs,Supported Living
Cambridgeshire County Council,26-Sep-19,51301192613,"-2,337.29",DIMENSIONS (UK) LTD,CARE ESTABLISHMENT,LD - City Locality - Cost of Care,LD - City - Special Needs,Supported Living
Cambridgeshire County Council,26-Sep-19,51301192618,"-2,337.29",DIMENSIONS (UK) LTD,CARE ESTABLISHMENT,LD - City Locality - Cost of Care,LD - City - Special Needs,Supported Living
Cambridgeshire County Council,26-Sep-19,51301200006,"-2,337.29",DIMENSIONS (UK) LTD,CARE ESTABLISHMENT,LD - City Locality - Cost of Care,LD - City - Special Needs,Supported Living
Cambridgeshire County Council,26-Sep-19,51301200018,"-2,337.29",DIMENSIONS (UK) LTD,CARE ESTABLISHMENT,LD - City Locality - Cost of Care,LD - City - Special Needs,Supported Living
Cambridgeshire County Council,26-Sep-19,51301200013,"-2,337.29",DIMENSIONS (UK) LTD,CARE ESTABLISHMENT,LD - City Locality - Cost of Care,LD - City - Special Needs,Supported Living
Cambridgeshire County Council,26-Sep-19,51301192612,"-2,337.29",DIMENSIONS (UK) LTD,CARE ESTABLISHMENT,LD - City Locality - Cost of Care,LD - City - Special Needs,Supported Living
Cambridgeshire County Council,26-Sep-19,51301200005,"-2,337.29",DIMENSIONS (UK) LTD,CARE ESTABLISHMENT,LD - City Locality - Cost of Care,LD - City - Special Needs,Supported Living
Cambridgeshire County Council,26-Sep-19,51301200022,"-2,337.29",DIMENSIONS (UK) LTD,CARE ESTABLISHMENT,LD - City Locality - Cost of Care,LD - City - Special Needs,Supported Living
Cambridgeshire County Council,26-Sep-19,51301192610,"-2,337.29",DIMENSIONS (UK) LTD,CARE ESTABLISHMENT,LD - South Locality - Cost of Care,LD - South Cambs - Special Needs,Supported Living
Cambridgeshire County Council,26-Sep-19,51301200012,"-2,337.29",DIMENSIONS (UK) LTD,CARE ESTABLISHMENT,LD - South Locality - Cost of Care,LD - South Cambs - Special Needs,Supported Living
Cambridgeshire County Council,26-Sep-19,51301192611,"-2,337.29",DIMENSIONS (UK) LTD,CARE ESTABLISHMENT,LD - South Locality - Cost of Care,LD - South Cambs - Special Needs,Supported Living
Cambridgeshire County Council,26-Sep-19,51301200015,"-2,337.29",DIMENSIONS (UK) LTD,CARE ESTABLISHMENT,LD - South Locality - Cost of Care,LD - South Cambs - Special Needs,Supported Living
Cambridgeshire County Council,06-Sep-19,51300819086,"-2,264.50",GRETTON HOMES,CARE ESTABLISHMENT,LD - South Locality - Cost of Care,LD - South Cambs - Special Needs,Residential Care
Cambridgeshire County Council,06-Sep-19,51300819083,"-2,264.50",GRETTON HOMES,CARE ESTABLISHMENT,LD - South Locality - Cost of Care,LD - South Cambs - Special Needs,Residential Care
Cambridgeshire County Council,06-Sep-19,51300819094,"-2,264.50",GRETTON HOMES,CARE ESTABLISHMENT,LD - South Locality - Cost of Care,LD - South Cambs - Special Needs,Residential Care
Cambridgeshire County Council,06-Sep-19,51300819085,"-2,264.50",GRETTON HOMES,CARE ESTABLISHMENT,LD - South Locality - Cost of Care,LD - South Cambs - Special Needs,Residential Care
Cambridgeshire County Council,06-Sep-19,51300819087,"-2,264.50",GRETTON HOMES,CARE ESTABLISHMENT,LD - South Locality - Cost of Care,LD - South Cambs - Special Needs,Residential Care
Cambridgeshire County Council,06-Sep-19,51300819091,"-2,264.50",GRETTON HOMES,CARE ESTABLISHMENT,LD - South Locality - Cost of Care,LD - South Cambs - Special Needs,Residential Care
Cambridgeshire County Council,06-Sep-19,51300819092,"-2,264.50",GRETTON HOMES,CARE ESTABLISHMENT,LD - South Locality - Cost of Care,LD - South Cambs - Special Needs,Residential Care
Cambridgeshire County Council,06-Sep-19,51300819089,"-2,264.50",GRETTON HOMES,CARE ESTABLISHMENT,LD - South Locality - Cost of Care,LD - South Cambs - Special Needs,Residential Care
Cambridgeshire County Council,06-Sep-19,51300822346,"-2,235.14",SENSE (MIDLANDS),CARE ESTABLISHMENT,LD - Hunts Locality - Cost of Care,LD - Huntingdonshire - Care,Residential Care
Cambridgeshire County Council,25-Sep-19,51300868621,"-2,189.40",BOX IT EAST,TRADE SUPPLIER,Information Management,Information Management,Storage and Archiving
Cambridgeshire County Council,06-Sep-19,51300835341,"-2,179.46",AN DARACH HOUSE ( KISIMUL GROUP LTD),CARE ESTABLISHMENT,LD - City Locality - Cost of Care,LD - City - Special Needs,Residential Care
Cambridgeshire County Council,06-Sep-19,51300833349,"-2,156.70",CONSENSUS (CROMER HOUSE),CARE ESTABLISHMENT,LD - South Locality - Cost of Care,LD - South Cambs - Care,Residential Care
Cambridgeshire County Council,06-Sep-19,51300833358,"-2,156.70",CONSENSUS (CROMER HOUSE),CARE ESTABLISHMENT,LD - South Locality - Cost of Care,LD - South Cambs - Care,Residential Care
Cambridgeshire County Council,06-Sep-19,51300833357,"-2,156.70",CONSENSUS (CROMER HOUSE),CARE ESTABLISHMENT,LD - South Locality - Cost of Care,LD - South Cambs - Care,Residential Care
Cambridgeshire County Council,06-Sep-19,51300833350,"-2,156.70",CONSENSUS (CROMER HOUSE),CARE ESTABLISHMENT,LD - South Locality - Cost of Care,LD - South Cambs - Care,Residential Care
Cambridgeshire County Council,06-Sep-19,51300833351,"-2,156.70",CONSENSUS (CROMER HOUSE),CARE ESTABLISHMENT,LD - South Locality - Cost of Care,LD - South Cambs - Care,Residential Care
Cambridgeshire County Council,06-Sep-19,51300833352,"-2,156.70",CONSENSUS (CROMER HOUSE),CARE ESTABLISHMENT,LD - South Locality - Cost of Care,LD - South Cambs - Care,Residential Care
Cambridgeshire County Council,06-Sep-19,51300833361,"-2,156.70",CONSENSUS (CROMER HOUSE),CARE ESTABLISHMENT,LD - South Locality - Cost of Care,LD - South Cambs - Care,Residential Care
Cambridgeshire County Council,06-Sep-19,51300823177,"-2,088.67",AN DARACH HOUSE ( KISIMUL GROUP LTD),CARE ESTABLISHMENT,LD - City Locality - Cost of Care,LD - City - Special Needs,Residential Care
Cambridgeshire County Council,06-Sep-19,51300823194,"-2,088.67",AN DARACH HOUSE ( KISIMUL GROUP LTD),CARE ESTABLISHMENT,LD - City Locality - Cost of Care,LD - City - Special Needs,Residential Care
Cambridgeshire County Council,06-Sep-19,51300823179,"-2,088.67",AN DARACH HOUSE ( KISIMUL GROUP LTD),CARE ESTABLISHMENT,LD - City Locality - Cost of Care,LD - City - Special Needs,Residential Care
Cambridgeshire County Council,06-Sep-19,51300823181,"-2,088.67",AN DARACH HOUSE ( KISIMUL GROUP LTD),CARE ESTABLISHMENT,LD - City Locality - Cost of Care,LD - City - Special Needs,Residential Care
Cambridgeshire County Council,06-Sep-19,51300823193,"-2,088.67",AN DARACH HOUSE ( KISIMUL GROUP LTD),CARE ESTABLISHMENT,LD - City Locality - Cost of Care,LD - City - Special Needs,Residential Care
Cambridgeshire County Council,06-Sep-19,51300823175,"-2,088.67",AN DARACH HOUSE ( KISIMUL GROUP LTD),CARE ESTABLISHMENT,LD - City Locality - Cost of Care,LD - City - Special Needs,Residential Care
Cambridgeshire County Council,06-Sep-19,51300823192,"-2,088.67",AN DARACH HOUSE ( KISIMUL GROUP LTD),CARE ESTABLISHMENT,LD - City Locality - Cost of Care,LD - City - Special Needs,Residential Care
Cambridgeshire County Council,06-Sep-19,51300823182,"-2,088.67",AN DARACH HOUSE ( KISIMUL GROUP LTD),CARE ESTABLISHMENT,LD - City Locality - Cost of Care,LD - City - Special Needs,Residential Care
Cambridgeshire County Council,06-Sep-19,51300814128,"-2,032.81",RAPKYNS CARE CENTRE,CARE ESTABLISHMENT,LD - Hunts Locality - Cost of Care,LD - Huntingdonshire - Special Needs,Nursing Care
Cambridgeshire County Council,16-Sep-19,51301175485,"-2,019.97",ATLAS HOME SUPPORT,CARE ESTABLISHMENT,LD - City Locality - Cost of Care,LD - City - Special Needs,Supported Living
Cambridgeshire County Council,16-Sep-19,51301175499,"-2,019.97",ATLAS HOME SUPPORT,CARE ESTABLISHMENT,LD - City Locality - Cost of Care,LD - City - Special Needs,Supported Living
Cambridgeshire County Council,16-Sep-19,51301175491,"-2,019.97",ATLAS HOME SUPPORT,CARE ESTABLISHMENT,LD - City Locality - Cost of Care,LD - City - Special Needs,Supported Living
Cambridgeshire County Council,16-Sep-19,51301175487,"-2,019.97",ATLAS HOME SUPPORT,CARE ESTABLISHMENT,LD - City Locality - Cost of Care,LD - City - Special Needs,Supported Living
Cambridgeshire County Council,16-Sep-19,51301175500,"-2,019.97",ATLAS HOME SUPPORT,CARE ESTABLISHMENT,LD - City Locality - Cost of Care,LD - City - Special Needs,Supported Living
Cambridgeshire County Council,16-Sep-19,51301175495,"-2,019.97",ATLAS HOME SUPPORT,CARE ESTABLISHMENT,LD - City Locality - Cost of Care,LD - City - Special Needs,Supported Living
Cambridgeshire County Council,16-Sep-19,51301175488,"-2,019.97",ATLAS HOME SUPPORT,CARE ESTABLISHMENT,LD - City Locality - Cost of Care,LD - City - Special Needs,Supported Living
Cambridgeshire County Council,16-Sep-19,51301175502,"-2,019.97",ATLAS HOME SUPPORT,CARE ESTABLISHMENT,LD - City Locality - Cost of Care,LD - City - Special Needs,Supported Living
Cambridgeshire County Council,16-Sep-19,51301175498,"-2,019.97",ATLAS HOME SUPPORT,CARE ESTABLISHMENT,LD - City Locality - Cost of Care,LD - City - Special Needs,Supported Living
Cambridgeshire County Council,16-Sep-19,51301175497,"-2,019.97",ATLAS HOME SUPPORT,CARE ESTABLISHMENT,LD - City Locality - Cost of Care,LD - City - Special Needs,Supported Living
Cambridgeshire County Council,16-Sep-19,51301175490,"-2,019.97",ATLAS HOME SUPPORT,CARE ESTABLISHMENT,LD - City Locality - Cost of Care,LD - City - Special Needs,Supported Living
Cambridgeshire County Council,16-Sep-19,51301175505,"-2,019.97",ATLAS HOME SUPPORT,CARE ESTABLISHMENT,LD - City Locality - Cost of Care,LD - City - Special Needs,Supported Living
Cambridgeshire County Council,16-Sep-19,51301175496,"-2,019.97",ATLAS HOME SUPPORT,CARE ESTABLISHMENT,LD - City Locality - Cost of Care,LD - City - Special Needs,Supported Living
Cambridgeshire County Council,16-Sep-19,51301175494,"-2,019.97",ATLAS HOME SUPPORT,CARE ESTABLISHMENT,LD - City Locality - Cost of Care,LD - City - Special Needs,Supported Living
Cambridgeshire County Council,16-Sep-19,51301175503,"-2,019.97",ATLAS HOME SUPPORT,CARE ESTABLISHMENT,LD - City Locality - Cost of Care,LD - City - Special Needs,Supported Living
Cambridgeshire County Council,17-Sep-19,51301188397,"-1,989.46",WINGS EDUCATION LTD,TRADE SUPPLIER,LAC Placements,Placements - residential schools,Agency Placements - Out of  County
Cambridgeshire County Council,06-Sep-19,51300819090,"-1,941.00",GRETTON HOMES,CARE ESTABLISHMENT,LD - South Locality - Cost of Care,LD - South Cambs - Special Needs,Residential Care
Cambridgeshire County Council,06-Sep-19,51300817548,"-1,902.33",GRIFFIN LODGE,CARE ESTABLISHMENT,LD - South Locality - Cost of Care,LD - South Cambs - Special Needs,Residential Care
Cambridgeshire County Council,06-Sep-19,51300817543,"-1,902.33",GRIFFIN LODGE,CARE ESTABLISHMENT,LD - South Locality - Cost of Care,LD - South Cambs - Special Needs,Residential Care
Cambridgeshire County Council,06-Sep-19,51300817540,"-1,902.33",GRIFFIN LODGE,CARE ESTABLISHMENT,LD - South Locality - Cost of Care,LD - South Cambs - Special Needs,Residential Care
Cambridgeshire County Council,06-Sep-19,51300817544,"-1,902.33",GRIFFIN LODGE,CARE ESTABLISHMENT,LD - South Locality - Cost of Care,LD - South Cambs - Special Needs,Residential Care
Cambridgeshire County Council,06-Sep-19,51300817545,"-1,902.33",GRIFFIN LODGE,CARE ESTABLISHMENT,LD - South Locality - Cost of Care,LD - South Cambs - Special Needs,Residential Care
Cambridgeshire County Council,06-Sep-19,51300817542,"-1,902.33",GRIFFIN LODGE,CARE ESTABLISHMENT,LD - South Locality - Cost of Care,LD - South Cambs - Special Needs,Residential Care
Cambridgeshire County Council,06-Sep-19,51300817547,"-1,902.33",GRIFFIN LODGE,CARE ESTABLISHMENT,LD - South Locality - Cost of Care,LD - South Cambs - Special Needs,Residential Care
Cambridgeshire County Council,06-Sep-19,51300817541,"-1,902.33",GRIFFIN LODGE,CARE ESTABLISHMENT,LD - South Locality - Cost of Care,LD - South Cambs - Special Needs,Residential Care
Cambridgeshire County Council,06-Sep-19,51300829962,"-1,882.24",SENSE (MIDLANDS),CARE ESTABLISHMENT,LD - City Locality - Cost of Care,LD - City - Care,Residential Care
Cambridgeshire County Council,06-Sep-19,51300830013,"-1,882.24",SENSE (MIDLANDS),CARE ESTABLISHMENT,LD - City Locality - Cost of Care,LD - City - Care,Residential Care
Cambridgeshire County Council,06-Sep-19,51300830044,"-1,882.24",SENSE (MIDLANDS),CARE ESTABLISHMENT,LD - City Locality - Cost of Care,LD - City - Care,Residential Care
Cambridgeshire County Council,06-Sep-19,51300830024,"-1,882.24",SENSE (MIDLANDS),CARE ESTABLISHMENT,LD - City Locality - Cost of Care,LD - City - Care,Residential Care
Cambridgeshire County Council,06-Sep-19,51300830061,"-1,882.24",SENSE (MIDLANDS),CARE ESTABLISHMENT,LD - City Locality - Cost of Care,LD - City - Care,Residential Care
Cambridgeshire County Council,06-Sep-19,51300830043,"-1,882.24",SENSE (MIDLANDS),CARE ESTABLISHMENT,LD - City Locality - Cost of Care,LD - City - Care,Residential Care
Cambridgeshire County Council,06-Sep-19,51300829981,"-1,882.24",SENSE (MIDLANDS),CARE ESTABLISHMENT,LD - City Locality - Cost of Care,LD - City - Care,Residential Care
Cambridgeshire County Council,06-Sep-19,51300830002,"-1,882.24",SENSE (MIDLANDS),CARE ESTABLISHMENT,LD - City Locality - Cost of Care,LD - City - Care,Residential Care
Cambridgeshire County Council,12-Sep-19,51301168109,"-1,850.00",THE MARBROOK CENTRE,CARE ESTABLISHMENT,Physical Disablity - Cost of Care,Countywide PD Service - Care,Residential Care
Cambridgeshire County Council,12-Sep-19,51301168109,"-1,850.00",THE MARBROOK CENTRE,CARE ESTABLISHMENT,Physical Disablity - Cost of Care,Countywide PD Service - Care,Residential Care
Cambridgeshire County Council,12-Sep-19,51301168109,"-1,850.00",THE MARBROOK CENTRE,CARE ESTABLISHMENT,Physical Disablity - Cost of Care,Countywide PD Service - Care,Residential Care
Cambridgeshire County Council,12-Sep-19,51301168109,"-1,850.00",THE MARBROOK CENTRE,CARE ESTABLISHMENT,Physical Disablity - Cost of Care,Countywide PD Service - Care,Residential Care
Cambridgeshire County Council,12-Sep-19,51301168109,"-1,850.00",THE MARBROOK CENTRE,CARE ESTABLISHMENT,Physical Disablity - Cost of Care,Countywide PD Service - Care,Residential Care
Cambridgeshire County Council,12-Sep-19,51301168109,"-1,850.00",THE MARBROOK CENTRE,CARE ESTABLISHMENT,Physical Disablity - Cost of Care,Countywide PD Service - Care,Residential Care
Cambridgeshire County Council,12-Sep-19,51301168109,"-1,850.00",THE MARBROOK CENTRE,CARE ESTABLISHMENT,Physical Disablity - Cost of Care,Countywide PD Service - Care,Residential Care
Cambridgeshire County Council,12-Sep-19,51301168109,"-1,850.00",THE MARBROOK CENTRE,CARE ESTABLISHMENT,Physical Disablity - Cost of Care,Countywide PD Service - Care,Residential Care
Cambridgeshire County Council,12-Sep-19,51301168109,"-1,850.00",THE MARBROOK CENTRE,CARE ESTABLISHMENT,Physical Disablity - Cost of Care,Countywide PD Service - Care,Residential Care
Cambridgeshire County Council,12-Sep-19,51301168109,"-1,850.00",THE MARBROOK CENTRE,CARE ESTABLISHMENT,Physical Disablity - Cost of Care,Countywide PD Service - Care,Residential Care
Cambridgeshire County Council,12-Sep-19,51301168109,"-1,850.00",THE MARBROOK CENTRE,CARE ESTABLISHMENT,Physical Disablity - Cost of Care,Countywide PD Service - Care,Residential Care
Cambridgeshire County Council,12-Sep-19,51301168109,"-1,850.00",THE MARBROOK CENTRE,CARE ESTABLISHMENT,Physical Disablity - Cost of Care,Countywide PD Service - Care,Residential Care
Cambridgeshire County Council,12-Sep-19,51301168109,"-1,850.00",THE MARBROOK CENTRE,CARE ESTABLISHMENT,Physical Disablity - Cost of Care,Countywide PD Service - Care,Residential Care
Cambridgeshire County Council,06-Sep-19,51300833355,"-1,848.60",CONSENSUS (CROMER HOUSE),CARE ESTABLISHMENT,LD - South Locality - Cost of Care,LD - South Cambs - Care,Residential Care
Cambridgeshire County Council,06-Sep-19,51300812296,"-1,844.45",REDMOND HOUSE (VOYAGE),CARE ESTABLISHMENT,LD - City Locality - Cost of Care,LD - City - Care,Residential Care
Cambridgeshire County Council,06-Sep-19,51300812276,"-1,844.45",REDMOND HOUSE (VOYAGE),CARE ESTABLISHMENT,LD - City Locality - Cost of Care,LD - City - Care,Residential Care
Cambridgeshire County Council,06-Sep-19,51300812280,"-1,844.45",REDMOND HOUSE (VOYAGE),CARE ESTABLISHMENT,LD - City Locality - Cost of Care,LD - City - Care,Residential Care
Cambridgeshire County Council,06-Sep-19,51300812298,"-1,844.45",REDMOND HOUSE (VOYAGE),CARE ESTABLISHMENT,LD - City Locality - Cost of Care,LD - City - Care,Residential Care
Cambridgeshire County Council,06-Sep-19,51300812287,"-1,844.45",REDMOND HOUSE (VOYAGE),CARE ESTABLISHMENT,LD - City Locality - Cost of Care,LD - City - Care,Residential Care
Cambridgeshire County Council,06-Sep-19,51300812291,"-1,844.45",REDMOND HOUSE (VOYAGE),CARE ESTABLISHMENT,LD - City Locality - Cost of Care,LD - City - Care,Residential Care
Cambridgeshire County Council,06-Sep-19,51300812297,"-1,844.45",REDMOND HOUSE (VOYAGE),CARE ESTABLISHMENT,LD - City Locality - Cost of Care,LD - City - Care,Residential Care
Cambridgeshire County Council,06-Sep-19,51300834660,"-1,831.18",EYNESBURY HOUSE,CARE ESTABLISHMENT,AMH - Hunts & Fens,Hunts Mental Health Team,Residential Care
Cambridgeshire County Council,06-Sep-19,51300834666,"-1,831.18",EYNESBURY HOUSE,CARE ESTABLISHMENT,AMH - Hunts & Fens,Hunts Mental Health Team,Residential Care
Cambridgeshire County Council,06-Sep-19,51300834665,"-1,831.18",EYNESBURY HOUSE,CARE ESTABLISHMENT,AMH - Hunts & Fens,Hunts Mental Health Team,Residential Care
Cambridgeshire County Council,06-Sep-19,51300834656,"-1,831.18",EYNESBURY HOUSE,CARE ESTABLISHMENT,AMH - Hunts & Fens,Hunts Mental Health Team,Residential Care
Cambridgeshire County Council,06-Sep-19,51300834658,"-1,831.18",EYNESBURY HOUSE,CARE ESTABLISHMENT,AMH - Hunts & Fens,Hunts Mental Health Team,Residential Care
Cambridgeshire County Council,06-Sep-19,51300834661,"-1,831.18",EYNESBURY HOUSE,CARE ESTABLISHMENT,AMH - Hunts & Fens,Hunts Mental Health Team,Residential Care
Cambridgeshire County Council,06-Sep-19,51300834662,"-1,831.18",EYNESBURY HOUSE,CARE ESTABLISHMENT,AMH - Hunts & Fens,Hunts Mental Health Team,Residential Care
Cambridgeshire County Council,06-Sep-19,51300834651,"-1,831.18",EYNESBURY HOUSE,CARE ESTABLISHMENT,AMH - Hunts & Fens,Hunts Mental Health Team,Residential Care
Cambridgeshire County Council,05-Sep-19,51301138600,"-1,803.01",Redacted Personal Data ,SERVICE USER,Physical Disablity - Cost of Care,Countywide PD Service - Care,Direct Payments
Cambridgeshire County Council,27-Sep-19,51301202628,"-1,799.00",VOYAGE,CARE ESTABLISHMENT,LD - South Locality - Cost of Care,LD - South Cambs - Care,Residential Client Care Contributions
Cambridgeshire County Council,27-Sep-19,51301202628,"-1,799.00",VOYAGE,CARE ESTABLISHMENT,LD - South Locality - Cost of Care,LD - South Cambs - Care,Residential Client Care Contributions
Cambridgeshire County Council,27-Sep-19,51301202628,"-1,799.00",VOYAGE,CARE ESTABLISHMENT,LD - South Locality - Cost of Care,LD - South Cambs - Care,Residential Client Care Contributions
Cambridgeshire County Council,06-Sep-19,51300823189,"-1,790.29",AN DARACH HOUSE ( KISIMUL GROUP LTD),CARE ESTABLISHMENT,LD - City Locality - Cost of Care,LD - City - Special Needs,Residential Care
Cambridgeshire County Council,16-Sep-19,51301175504,"-1,731.40",ATLAS HOME SUPPORT,CARE ESTABLISHMENT,LD - City Locality - Cost of Care,LD - City - Special Needs,Supported Living
Cambridgeshire County Council,06-Sep-19,51300827625,"-1,718.71",HOLLYBANK TRUST,CARE ESTABLISHMENT,LD - South Locality - Cost of Care,LD - South Cambs - Care,Residential Care
Cambridgeshire County Council,06-Sep-19,51300827629,"-1,718.71",HOLLYBANK TRUST,CARE ESTABLISHMENT,LD - South Locality - Cost of Care,LD - South Cambs - Care,Residential Care
Cambridgeshire County Council,06-Sep-19,51300827620,"-1,718.71",HOLLYBANK TRUST,CARE ESTABLISHMENT,LD - South Locality - Cost of Care,LD - South Cambs - Care,Residential Care
Cambridgeshire County Council,06-Sep-19,51300827621,"-1,718.71",HOLLYBANK TRUST,CARE ESTABLISHMENT,LD - South Locality - Cost of Care,LD - South Cambs - Care,Residential Care
Cambridgeshire County Council,06-Sep-19,51300827619,"-1,718.71",HOLLYBANK TRUST,CARE ESTABLISHMENT,LD - South Locality - Cost of Care,LD - South Cambs - Care,Residential Care
Cambridgeshire County Council,06-Sep-19,51300827628,"-1,718.71",HOLLYBANK TRUST,CARE ESTABLISHMENT,LD - South Locality - Cost of Care,LD - South Cambs - Care,Residential Care
Cambridgeshire County Council,06-Sep-19,51300827618,"-1,718.71",HOLLYBANK TRUST,CARE ESTABLISHMENT,LD - South Locality - Cost of Care,LD - South Cambs - Care,Residential Care
Cambridgeshire County Council,06-Sep-19,51300827630,"-1,718.71",HOLLYBANK TRUST,CARE ESTABLISHMENT,LD - South Locality - Cost of Care,LD - South Cambs - Care,Residential Care
Cambridgeshire County Council,13-Sep-19,51301156205,"-1,711.36",AFFINITY TRUST,CARE ESTABLISHMENT,LD - Fenland Locality - Cost of Care,LD - Fenland  - Special Needs,Supported Living
Cambridgeshire County Council,13-Sep-19,51301156214,"-1,711.36",AFFINITY TRUST,CARE ESTABLISHMENT,LD - Fenland Locality - Cost of Care,LD - Fenland  - Special Needs,Supported Living
Cambridgeshire County Council,13-Sep-19,51301156225,"-1,711.36",AFFINITY TRUST,CARE ESTABLISHMENT,LD - Fenland Locality - Cost of Care,LD - Fenland  - Special Needs,Supported Living
Cambridgeshire County Council,13-Sep-19,51301138663,"-1,711.36",AFFINITY TRUST,CARE ESTABLISHMENT,LD - Fenland Locality - Cost of Care,LD - Fenland  - Special Needs,Supported Living
Cambridgeshire County Council,13-Sep-19,51301138656,"-1,711.36",AFFINITY TRUST,CARE ESTABLISHMENT,LD - Fenland Locality - Cost of Care,LD - Fenland  - Special Needs,Supported Living
Cambridgeshire County Council,13-Sep-19,51301156198,"-1,711.36",AFFINITY TRUST,CARE ESTABLISHMENT,LD - Fenland Locality - Cost of Care,LD - Fenland  - Special Needs,Supported Living
Cambridgeshire County Council,13-Sep-19,51301138632,"-1,711.36",AFFINITY TRUST,CARE ESTABLISHMENT,LD - Fenland Locality - Cost of Care,LD - Fenland  - Special Needs,Supported Living
Cambridgeshire County Council,13-Sep-19,51301156207,"-1,711.36",AFFINITY TRUST,CARE ESTABLISHMENT,LD - Fenland Locality - Cost of Care,LD - Fenland  - Special Needs,Supported Living
Cambridgeshire County Council,13-Sep-19,51301156216,"-1,711.36",AFFINITY TRUST,CARE ESTABLISHMENT,LD - Fenland Locality - Cost of Care,LD - Fenland  - Special Needs,Supported Living
Cambridgeshire County Council,13-Sep-19,51301138653,"-1,711.36",AFFINITY TRUST,CARE ESTABLISHMENT,LD - Fenland Locality - Cost of Care,LD - Fenland  - Special Needs,Supported Living
Cambridgeshire County Council,13-Sep-19,51301156201,"-1,711.36",AFFINITY TRUST,CARE ESTABLISHMENT,LD - Fenland Locality - Cost of Care,LD - Fenland  - Special Needs,Supported Living
Cambridgeshire County Council,13-Sep-19,51301156210,"-1,711.36",AFFINITY TRUST,CARE ESTABLISHMENT,LD - Fenland Locality - Cost of Care,LD - Fenland  - Special Needs,Supported Living
Cambridgeshire County Council,13-Sep-19,51301156219,"-1,711.36",AFFINITY TRUST,CARE ESTABLISHMENT,LD - Fenland Locality - Cost of Care,LD - Fenland  - Special Needs,Supported Living
Cambridgeshire County Council,13-Sep-19,51301156206,"-1,711.36",AFFINITY TRUST,CARE ESTABLISHMENT,LD - Fenland Locality - Cost of Care,LD - Fenland  - Special Needs,Supported Living
Cambridgeshire County Council,13-Sep-19,51301156208,"-1,711.36",AFFINITY TRUST,CARE ESTABLISHMENT,LD - Fenland Locality - Cost of Care,LD - Fenland  - Care,Supported Living
Cambridgeshire County Council,13-Sep-19,51301138649,"-1,711.36",AFFINITY TRUST,CARE ESTABLISHMENT,LD - Fenland Locality - Cost of Care,LD - Fenland  - Care,Supported Living
Cambridgeshire County Council,13-Sep-19,51301138648,"-1,711.36",AFFINITY TRUST,CARE ESTABLISHMENT,LD - Fenland Locality - Cost of Care,LD - Fenland  - Care,Supported Living
Cambridgeshire County Council,13-Sep-19,51301138636,"-1,711.36",AFFINITY TRUST,CARE ESTABLISHMENT,LD - Fenland Locality - Cost of Care,LD - Fenland  - Care,Supported Living
Cambridgeshire County Council,13-Sep-19,51301138635,"-1,711.36",AFFINITY TRUST,CARE ESTABLISHMENT,LD - Fenland Locality - Cost of Care,LD - Fenland  - Care,Supported Living
Cambridgeshire County Council,13-Sep-19,51301156213,"-1,711.36",AFFINITY TRUST,CARE ESTABLISHMENT,LD - Fenland Locality - Cost of Care,LD - Fenland  - Care,Supported Living
Cambridgeshire County Council,13-Sep-19,51301138643,"-1,711.36",AFFINITY TRUST,CARE ESTABLISHMENT,LD - Fenland Locality - Cost of Care,LD - Fenland  - Care,Supported Living
Cambridgeshire County Council,13-Sep-19,51301138650,"-1,711.36",AFFINITY TRUST,CARE ESTABLISHMENT,LD - Fenland Locality - Cost of Care,LD - Fenland  - Care,Supported Living
Cambridgeshire County Council,13-Sep-19,51301156226,"-1,711.36",AFFINITY TRUST,CARE ESTABLISHMENT,LD - Fenland Locality - Cost of Care,LD - Fenland  - Care,Supported Living
Cambridgeshire County Council,13-Sep-19,51301156222,"-1,711.36",AFFINITY TRUST,CARE ESTABLISHMENT,LD - Fenland Locality - Cost of Care,LD - Fenland  - Care,Supported Living
Cambridgeshire County Council,13-Sep-19,51301138642,"-1,711.36",AFFINITY TRUST,CARE ESTABLISHMENT,LD - Fenland Locality - Cost of Care,LD - Fenland  - Care,Supported Living
Cambridgeshire County Council,13-Sep-19,51301138659,"-1,711.36",AFFINITY TRUST,CARE ESTABLISHMENT,LD - Fenland Locality - Cost of Care,LD - Fenland  - Care,Supported Living
Cambridgeshire County Council,13-Sep-19,51301138651,"-1,711.36",AFFINITY TRUST,CARE ESTABLISHMENT,LD - Fenland Locality - Cost of Care,LD - Fenland  - Care,Supported Living
Cambridgeshire County Council,13-Sep-19,51301156217,"-1,711.36",AFFINITY TRUST,CARE ESTABLISHMENT,LD - Fenland Locality - Cost of Care,LD - Fenland  - Care,Supported Living
Cambridgeshire County Council,13-Sep-19,51301156199,"-1,711.36",AFFINITY TRUST,CARE ESTABLISHMENT,LD - Fenland Locality - Cost of Care,LD - Fenland  - Care,Supported Living
Cambridgeshire County Council,13-Sep-19,51301138644,"-1,711.36",AFFINITY TRUST,CARE ESTABLISHMENT,LD - Fenland Locality - Cost of Care,LD - Fenland  - Care,Supported Living
Cambridgeshire County Council,13-Sep-19,51301138641,"-1,711.36",AFFINITY TRUST,CARE ESTABLISHMENT,LD - Fenland Locality - Cost of Care,LD - Fenland  - Care,Supported Living
Cambridgeshire County Council,13-Sep-19,51301138633,"-1,711.36",AFFINITY TRUST,CARE ESTABLISHMENT,LD - Fenland Locality - Cost of Care,LD - Fenland  - Care,Supported Living
Cambridgeshire County Council,16-Sep-19,51301188230,"-1,711.36",AFFINITY TRUST,CARE ESTABLISHMENT,LD - Fenland Locality - Cost of Care,LD - Fenland  - Special Needs,Supported Living
Cambridgeshire County Council,16-Sep-19,51301188215,"-1,711.36",AFFINITY TRUST,CARE ESTABLISHMENT,LD - Fenland Locality - Cost of Care,LD - Fenland  - Special Needs,Supported Living
Cambridgeshire County Council,16-Sep-19,51301188220,"-1,711.36",AFFINITY TRUST,CARE ESTABLISHMENT,LD - Fenland Locality - Cost of Care,LD - Fenland  - Special Needs,Supported Living
Cambridgeshire County Council,16-Sep-19,51301188235,"-1,711.36",AFFINITY TRUST,CARE ESTABLISHMENT,LD - Fenland Locality - Cost of Care,LD - Fenland  - Special Needs,Supported Living
Cambridgeshire County Council,16-Sep-19,51301188212,"-1,711.36",AFFINITY TRUST,CARE ESTABLISHMENT,LD - Fenland Locality - Cost of Care,LD - Fenland  - Special Needs,Supported Living
Cambridgeshire County Council,16-Sep-19,51301188229,"-1,711.36",AFFINITY TRUST,CARE ESTABLISHMENT,LD - Fenland Locality - Cost of Care,LD - Fenland  - Special Needs,Supported Living
Cambridgeshire County Council,16-Sep-19,51301188231,"-1,711.36",AFFINITY TRUST,CARE ESTABLISHMENT,LD - Fenland Locality - Cost of Care,LD - Fenland  - Special Needs,Supported Living
Cambridgeshire County Council,16-Sep-19,51301188199,"-1,711.36",AFFINITY TRUST,CARE ESTABLISHMENT,LD - Fenland Locality - Cost of Care,LD - Fenland  - Care,Supported Living
Cambridgeshire County Council,16-Sep-19,51301188227,"-1,711.36",AFFINITY TRUST,CARE ESTABLISHMENT,LD - Fenland Locality - Cost of Care,LD - Fenland  - Care,Supported Living
Cambridgeshire County Council,16-Sep-19,51301188216,"-1,711.36",AFFINITY TRUST,CARE ESTABLISHMENT,LD - Fenland Locality - Cost of Care,LD - Fenland  - Care,Supported Living
Cambridgeshire County Council,16-Sep-19,51301188221,"-1,711.36",AFFINITY TRUST,CARE ESTABLISHMENT,LD - Fenland Locality - Cost of Care,LD - Fenland  - Care,Supported Living
Cambridgeshire County Council,16-Sep-19,51301188201,"-1,711.36",AFFINITY TRUST,CARE ESTABLISHMENT,LD - Fenland Locality - Cost of Care,LD - Fenland  - Care,Supported Living
Cambridgeshire County Council,16-Sep-19,51301188226,"-1,711.36",AFFINITY TRUST,CARE ESTABLISHMENT,LD - Fenland Locality - Cost of Care,LD - Fenland  - Care,Supported Living
Cambridgeshire County Council,16-Sep-19,51301188236,"-1,711.36",AFFINITY TRUST,CARE ESTABLISHMENT,LD - Fenland Locality - Cost of Care,LD - Fenland  - Care,Supported Living
Cambridgeshire County Council,16-Sep-19,51301188223,"-1,711.36",AFFINITY TRUST,CARE ESTABLISHMENT,LD - Fenland Locality - Cost of Care,LD - Fenland  - Care,Supported Living
Cambridgeshire County Council,16-Sep-19,51301188205,"-1,711.36",AFFINITY TRUST,CARE ESTABLISHMENT,LD - Fenland Locality - Cost of Care,LD - Fenland  - Care,Supported Living
Cambridgeshire County Council,19-Sep-19,51301191919,"-1,711.36",AFFINITY TRUST,CARE ESTABLISHMENT,LD - Fenland Locality - Cost of Care,LD - Fenland  - Special Needs,Supported Living
Cambridgeshire County Council,19-Sep-19,51301191916,"-1,711.36",AFFINITY TRUST,CARE ESTABLISHMENT,LD - Fenland Locality - Cost of Care,LD - Fenland  - Special Needs,Supported Living
Cambridgeshire County Council,19-Sep-19,51301191918,"-1,711.36",AFFINITY TRUST,CARE ESTABLISHMENT,LD - Fenland Locality - Cost of Care,LD - Fenland  - Special Needs,Supported Living
Cambridgeshire County Council,19-Sep-19,51301191934,"-1,711.36",AFFINITY TRUST,CARE ESTABLISHMENT,LD - Fenland Locality - Cost of Care,LD - Fenland  - Care,Supported Living
Cambridgeshire County Council,19-Sep-19,51301191914,"-1,711.36",AFFINITY TRUST,CARE ESTABLISHMENT,LD - Fenland Locality - Cost of Care,LD - Fenland  - Care,Supported Living
Cambridgeshire County Council,20-Sep-19,51301194504,"-1,676.20",DAME HANNAH ROGERS TRUST,TRUST (OTHER),LD - South Locality - Cost of Care,LD - South Cambs - Care,Residential Care
Cambridgeshire County Council,06-Sep-19,51300839499,"-1,644.99",SENSE WEST,CARE ESTABLISHMENT,LD - City Locality - Cost of Care,LD - City - Care,Residential Care
Cambridgeshire County Council,06-Sep-19,51300839493,"-1,644.99",SENSE WEST,CARE ESTABLISHMENT,LD - City Locality - Cost of Care,LD - City - Care,Residential Care
Cambridgeshire County Council,06-Sep-19,51300839481,"-1,644.99",SENSE WEST,CARE ESTABLISHMENT,LD - City Locality - Cost of Care,LD - City - Care,Residential Care
Cambridgeshire County Council,06-Sep-19,51300839495,"-1,644.99",SENSE WEST,CARE ESTABLISHMENT,LD - City Locality - Cost of Care,LD - City - Care,Residential Care
Cambridgeshire County Council,06-Sep-19,51300839484,"-1,644.99",SENSE WEST,CARE ESTABLISHMENT,LD - City Locality - Cost of Care,LD - City - Care,Residential Care
Cambridgeshire County Council,06-Sep-19,51300839498,"-1,644.99",SENSE WEST,CARE ESTABLISHMENT,LD - City Locality - Cost of Care,LD - City - Care,Residential Care
Cambridgeshire County Council,06-Sep-19,51300839504,"-1,644.99",SENSE WEST,CARE ESTABLISHMENT,LD - City Locality - Cost of Care,LD - City - Care,Residential Care
Cambridgeshire County Council,06-Sep-19,51300839489,"-1,644.99",SENSE WEST,CARE ESTABLISHMENT,LD - City Locality - Cost of Care,LD - City - Care,Residential Care
Cambridgeshire County Council,06-Sep-19,51300817539,"-1,630.57",GRIFFIN LODGE,CARE ESTABLISHMENT,LD - South Locality - Cost of Care,LD - South Cambs - Special Needs,Residential Care
Cambridgeshire County Council,06-Sep-19,51300830051,"-1,613.35",SENSE (MIDLANDS),CARE ESTABLISHMENT,LD - City Locality - Cost of Care,LD - City - Care,Residential Care
Cambridgeshire County Council,06-Sep-19,51301165717,"-1,609.84",EDEN VIEW,CARE ESTABLISHMENT,OP - East Cambs Locality - Cost of Care,East Cambs - O P Team - Care,Nursing Care
Cambridgeshire County Council,06-Sep-19,51301165717,"-1,609.84",EDEN VIEW,CARE ESTABLISHMENT,OP - East Cambs Locality - Cost of Care,East Cambs - O P Team - Care,Nursing Care
Cambridgeshire County Council,06-Sep-19,51301165717,"-1,609.84",EDEN VIEW,CARE ESTABLISHMENT,OP - East Cambs Locality - Cost of Care,East Cambs - O P Team - Care,Nursing Care
Cambridgeshire County Council,06-Sep-19,51301165717,"-1,609.84",EDEN VIEW,CARE ESTABLISHMENT,OP - East Cambs Locality - Cost of Care,East Cambs - O P Team - Care,Nursing Care
Cambridgeshire County Council,06-Sep-19,51301165717,"-1,609.84",EDEN VIEW,CARE ESTABLISHMENT,OP - East Cambs Locality - Cost of Care,East Cambs - O P Team - Care,Nursing Care
Cambridgeshire County Council,06-Sep-19,51301165717,"-1,609.84",EDEN VIEW,CARE ESTABLISHMENT,OP - East Cambs Locality - Cost of Care,East Cambs - O P Team - Care,Nursing Care
Cambridgeshire County Council,06-Sep-19,51301165717,"-1,609.84",EDEN VIEW,CARE ESTABLISHMENT,OP - East Cambs Locality - Cost of Care,East Cambs - O P Team - Care,Nursing Care
Cambridgeshire County Council,06-Sep-19,51300829682,"-1,588.00",SENSE (MIDLANDS),CARE ESTABLISHMENT,Physical Disablity - Cost of Care,Countywide PD Service - Care,Residential Care
Cambridgeshire County Council,06-Sep-19,51300829689,"-1,588.00",SENSE (MIDLANDS),CARE ESTABLISHMENT,Physical Disablity - Cost of Care,Countywide PD Service - Care,Residential Care
Cambridgeshire County Council,06-Sep-19,51300829675,"-1,588.00",SENSE (MIDLANDS),CARE ESTABLISHMENT,Physical Disablity - Cost of Care,Countywide PD Service - Care,Residential Care
Cambridgeshire County Council,06-Sep-19,51300829676,"-1,588.00",SENSE (MIDLANDS),CARE ESTABLISHMENT,Physical Disablity - Cost of Care,Countywide PD Service - Care,Residential Care
Cambridgeshire County Council,06-Sep-19,51300829681,"-1,588.00",SENSE (MIDLANDS),CARE ESTABLISHMENT,Physical Disablity - Cost of Care,Countywide PD Service - Care,Residential Care
Cambridgeshire County Council,06-Sep-19,51300829683,"-1,588.00",SENSE (MIDLANDS),CARE ESTABLISHMENT,Physical Disablity - Cost of Care,Countywide PD Service - Care,Residential Care
Cambridgeshire County Council,06-Sep-19,51300812272,"-1,580.96",REDMOND HOUSE (VOYAGE),CARE ESTABLISHMENT,LD - City Locality - Cost of Care,LD - City - Care,Residential Care
Cambridgeshire County Council,06-Sep-19,51300834655,"-1,569.58",EYNESBURY HOUSE,CARE ESTABLISHMENT,AMH - Hunts & Fens,Hunts Mental Health Team,Residential Care
Cambridgeshire County Council,16-Sep-19,51301142678,"-1,550.00",HC-ONE,CARE ESTABLISHMENT,OPMH - Hunts & Fens,Older People Mental Health Fenland,Residential Care
Cambridgeshire County Council,26-Sep-19,51301191288,"-1,528.79",DIMENSIONS (UK) LTD,CARE ESTABLISHMENT,LD - South Locality - Cost of Care,LD - South Cambs - Special Needs,Supported Living
Cambridgeshire County Council,06-Sep-19,51300827617,"-1,473.18",HOLLYBANK TRUST,CARE ESTABLISHMENT,LD - South Locality - Cost of Care,LD - South Cambs - Care,Residential Care
Cambridgeshire County Council,20-Sep-19,51301195285,"-1,457.88",THE HILLINGS LIMITED,CARE ESTABLISHMENT,OP - Hunts Blocks,Hunts - Long term blocks,Residential Care
Cambridgeshire County Council,20-Sep-19,51301195285,"-1,457.88",THE HILLINGS LIMITED,CARE ESTABLISHMENT,OP - Hunts Blocks,Hunts - Long term blocks,Residential Care
Cambridgeshire County Council,20-Sep-19,51301195285,"-1,457.88",THE HILLINGS LIMITED,CARE ESTABLISHMENT,OP - Hunts Blocks,Hunts - Long term blocks,Residential Care
Cambridgeshire County Council,20-Sep-19,51301195285,"-1,457.88",THE HILLINGS LIMITED,CARE ESTABLISHMENT,OP - Hunts Blocks,Hunts - Long term blocks,Residential Care
Cambridgeshire County Council,20-Sep-19,51301195285,"-1,457.88",THE HILLINGS LIMITED,CARE ESTABLISHMENT,OP - Hunts Blocks,Hunts - Long term blocks,Residential Care
Cambridgeshire County Council,20-Sep-19,51301195285,"-1,457.88",THE HILLINGS LIMITED,CARE ESTABLISHMENT,OP - Hunts Blocks,Hunts - Long term blocks,Residential Care
Cambridgeshire County Council,06-Sep-19,51301152993,"-1,450.59",VOYAGE,CARE ESTABLISHMENT,LD - South Locality - Cost of Care,LD - South Cambs - Special Needs,Supported Living
Cambridgeshire County Council,06-Sep-19,51301152988,"-1,450.59",VOYAGE,CARE ESTABLISHMENT,LD - South Locality - Cost of Care,LD - South Cambs - Special Needs,Supported Living
Cambridgeshire County Council,06-Sep-19,51301153004,"-1,450.59",VOYAGE,CARE ESTABLISHMENT,LD - South Locality - Cost of Care,LD - South Cambs - Special Needs,Supported Living
Cambridgeshire County Council,06-Sep-19,51301152998,"-1,450.59",VOYAGE,CARE ESTABLISHMENT,LD - South Locality - Cost of Care,LD - South Cambs - Special Needs,Supported Living
Cambridgeshire County Council,06-Sep-19,51301153000,"-1,450.59",VOYAGE,CARE ESTABLISHMENT,LD - South Locality - Cost of Care,LD - South Cambs - Special Needs,Supported Living
Cambridgeshire County Council,06-Sep-19,51301152999,"-1,450.59",VOYAGE,CARE ESTABLISHMENT,LD - South Locality - Cost of Care,LD - South Cambs - Special Needs,Supported Living
Cambridgeshire County Council,06-Sep-19,51300830358,"-1,431.33",SEEABILITY (DENECROFT),CARE ESTABLISHMENT,LD - Hunts Locality - Cost of Care,LD - Huntingdonshire - Special Needs,Residential Care
Cambridgeshire County Council,06-Sep-19,51300830350,"-1,431.33",SEEABILITY (DENECROFT),CARE ESTABLISHMENT,LD - Hunts Locality - Cost of Care,LD - Huntingdonshire - Special Needs,Residential Care
Cambridgeshire County Council,06-Sep-19,51300830340,"-1,431.33",SEEABILITY (DENECROFT),CARE ESTABLISHMENT,LD - Hunts Locality - Cost of Care,LD - Huntingdonshire - Special Needs,Residential Care
Cambridgeshire County Council,06-Sep-19,51300830349,"-1,431.33",SEEABILITY (DENECROFT),CARE ESTABLISHMENT,LD - Hunts Locality - Cost of Care,LD - Huntingdonshire - Special Needs,Residential Care
Cambridgeshire County Council,06-Sep-19,51300830346,"-1,431.33",SEEABILITY (DENECROFT),CARE ESTABLISHMENT,LD - Hunts Locality - Cost of Care,LD - Huntingdonshire - Special Needs,Residential Care
Cambridgeshire County Council,06-Sep-19,51300830351,"-1,431.33",SEEABILITY (DENECROFT),CARE ESTABLISHMENT,LD - Hunts Locality - Cost of Care,LD - Huntingdonshire - Special Needs,Residential Care
Cambridgeshire County Council,06-Sep-19,51300830359,"-1,431.33",SEEABILITY (DENECROFT),CARE ESTABLISHMENT,LD - Hunts Locality - Cost of Care,LD - Huntingdonshire - Special Needs,Residential Care
Cambridgeshire County Council,06-Sep-19,51300830341,"-1,431.33",SEEABILITY (DENECROFT),CARE ESTABLISHMENT,LD - Hunts Locality - Cost of Care,LD - Huntingdonshire - Special Needs,Residential Care
Cambridgeshire County Council,20-Sep-19,51301195286,"-1,427.73",AISLING LODGE (MD CARE HOMES),CARE ESTABLISHMENT,OP - Hunts Blocks,Hunts - Long term blocks,Residential Care
Cambridgeshire County Council,20-Sep-19,51301195286,"-1,427.73",AISLING LODGE (MD CARE HOMES),CARE ESTABLISHMENT,OP - Hunts Blocks,Hunts - Long term blocks,Residential Care
Cambridgeshire County Council,20-Sep-19,51301195286,"-1,427.73",AISLING LODGE (MD CARE HOMES),CARE ESTABLISHMENT,OP - Hunts Blocks,Hunts - Long term blocks,Residential Care
Cambridgeshire County Council,20-Sep-19,51301195286,"-1,427.73",AISLING LODGE (MD CARE HOMES),CARE ESTABLISHMENT,OP - Hunts Blocks,Hunts - Long term blocks,Residential Care
Cambridgeshire County Council,20-Sep-19,51301195286,"-1,427.73",AISLING LODGE (MD CARE HOMES),CARE ESTABLISHMENT,OP - Hunts Blocks,Hunts - Long term blocks,Residential Care
Cambridgeshire County Council,20-Sep-19,51301195286,"-1,427.73",AISLING LODGE (MD CARE HOMES),CARE ESTABLISHMENT,OP - Hunts Blocks,Hunts - Long term blocks,Residential Care
Cambridgeshire County Council,20-Sep-19,51301195286,"-1,427.73",AISLING LODGE (MD CARE HOMES),CARE ESTABLISHMENT,OP - Hunts Blocks,Hunts - Long term blocks,Residential Care
Cambridgeshire County Council,20-Sep-19,51301195286,"-1,427.73",AISLING LODGE (MD CARE HOMES),CARE ESTABLISHMENT,OP - Hunts Blocks,Hunts - Long term blocks,Residential Care
Cambridgeshire County Council,20-Sep-19,51301195286,"-1,427.73",AISLING LODGE (MD CARE HOMES),CARE ESTABLISHMENT,OP - Hunts Blocks,Hunts - Long term blocks,Residential Care
Cambridgeshire County Council,20-Sep-19,51301195286,"-1,427.73",AISLING LODGE (MD CARE HOMES),CARE ESTABLISHMENT,OP - Hunts Blocks,Hunts - Long term blocks,Residential Care
Cambridgeshire County Council,20-Sep-19,51301195286,"-1,427.73",AISLING LODGE (MD CARE HOMES),CARE ESTABLISHMENT,OP - Hunts Blocks,Hunts - Long term blocks,Residential Care
Cambridgeshire County Council,20-Sep-19,51301195286,"-1,427.73",AISLING LODGE (MD CARE HOMES),CARE ESTABLISHMENT,OP - Hunts Blocks,Hunts - Long term blocks,Residential Care
Cambridgeshire County Council,20-Sep-19,51301195286,"-1,427.73",AISLING LODGE (MD CARE HOMES),CARE ESTABLISHMENT,OP - Hunts Blocks,Hunts - Long term blocks,Residential Care
Cambridgeshire County Council,20-Sep-19,51301195286,"-1,427.73",AISLING LODGE (MD CARE HOMES),CARE ESTABLISHMENT,OP - Hunts Blocks,Hunts - Long term blocks,Residential Care
Cambridgeshire County Council,20-Sep-19,51301195286,"-1,427.73",AISLING LODGE (MD CARE HOMES),CARE ESTABLISHMENT,OP - Hunts Blocks,Hunts - Long term blocks,Residential Care
Cambridgeshire County Council,20-Sep-19,51301195286,"-1,427.73",AISLING LODGE (MD CARE HOMES),CARE ESTABLISHMENT,OP - Hunts Blocks,Hunts - Long term blocks,Residential Care
Cambridgeshire County Council,20-Sep-19,51301195286,"-1,427.73",AISLING LODGE (MD CARE HOMES),CARE ESTABLISHMENT,OP - Hunts Blocks,Hunts - Long term blocks,Residential Care
Cambridgeshire County Council,20-Sep-19,51301195286,"-1,427.73",AISLING LODGE (MD CARE HOMES),CARE ESTABLISHMENT,OP - Hunts Blocks,Hunts - Long term blocks,Residential Care
Cambridgeshire County Council,20-Sep-19,51301195286,"-1,427.73",AISLING LODGE (MD CARE HOMES),CARE ESTABLISHMENT,OP - Hunts Blocks,Hunts - Long term blocks,Residential Care
Cambridgeshire County Council,20-Sep-19,51301195286,"-1,427.73",AISLING LODGE (MD CARE HOMES),CARE ESTABLISHMENT,OP - Hunts Blocks,Hunts - Long term blocks,Residential Care
Cambridgeshire County Council,20-Sep-19,51301195286,"-1,427.73",AISLING LODGE (MD CARE HOMES),CARE ESTABLISHMENT,OP - Hunts Blocks,Hunts - Long term blocks,Residential Care
Cambridgeshire County Council,20-Sep-19,51301195286,"-1,427.73",AISLING LODGE (MD CARE HOMES),CARE ESTABLISHMENT,OP - Hunts Blocks,Hunts - Long term blocks,Residential Care
Cambridgeshire County Council,20-Sep-19,51301195286,"-1,427.73",AISLING LODGE (MD CARE HOMES),CARE ESTABLISHMENT,OP - Hunts Blocks,Hunts - Long term blocks,Residential Care
Cambridgeshire County Council,06-Sep-19,51300812392,"-1,421.14",CHOICECARE 2000 LTD,CARE ESTABLISHMENT,Physical Disablity - Cost of Care,Countywide PD Service - Care,Residential Care
Cambridgeshire County Council,06-Sep-19,51300812378,"-1,421.14",CHOICECARE 2000 LTD,CARE ESTABLISHMENT,Physical Disablity - Cost of Care,Countywide PD Service - Care,Residential Care
Cambridgeshire County Council,06-Sep-19,51300812377,"-1,421.14",CHOICECARE 2000 LTD,CARE ESTABLISHMENT,Physical Disablity - Cost of Care,Countywide PD Service - Care,Residential Care
Cambridgeshire County Council,06-Sep-19,51300812383,"-1,421.14",CHOICECARE 2000 LTD,CARE ESTABLISHMENT,Physical Disablity - Cost of Care,Countywide PD Service - Care,Residential Care
Cambridgeshire County Council,06-Sep-19,51300812338,"-1,421.14",CHOICECARE 2000 LTD,CARE ESTABLISHMENT,Physical Disablity - Cost of Care,Countywide PD Service - Care,Residential Care
Cambridgeshire County Council,06-Sep-19,51300812390,"-1,421.14",CHOICECARE 2000 LTD,CARE ESTABLISHMENT,Physical Disablity - Cost of Care,Countywide PD Service - Care,Residential Care
Cambridgeshire County Council,06-Sep-19,51300812355,"-1,421.14",CHOICECARE 2000 LTD,CARE ESTABLISHMENT,Physical Disablity - Cost of Care,Countywide PD Service - Care,Residential Care
Cambridgeshire County Council,06-Sep-19,51300812367,"-1,421.14",CHOICECARE 2000 LTD,CARE ESTABLISHMENT,Physical Disablity - Cost of Care,Countywide PD Service - Care,Residential Care
Cambridgeshire County Council,03-Sep-19,51301010874,"-1,419.46",Cambridgeshire Publishers Ltd,COMPANY,Strategic Management - Adults,Service Director - OP and MH,Recruitment Advertising
Cambridgeshire County Council,06-Sep-19,51300839486,"-1,409.99",SENSE WEST,CARE ESTABLISHMENT,LD - City Locality - Cost of Care,LD - City - Care,Residential Care
Cambridgeshire County Council,06-Sep-19,51300824010,"-1,389.26",HILL HOUSE,CARE ESTABLISHMENT,LD - Hunts Locality - Cost of Care,LD - Huntingdonshire - Special Needs,Residential Care
Cambridgeshire County Council,06-Sep-19,51300824014,"-1,389.26",HILL HOUSE,CARE ESTABLISHMENT,LD - Hunts Locality - Cost of Care,LD - Huntingdonshire - Special Needs,Residential Care
Cambridgeshire County Council,06-Sep-19,51300824018,"-1,389.26",HILL HOUSE,CARE ESTABLISHMENT,LD - Hunts Locality - Cost of Care,LD - Huntingdonshire - Special Needs,Residential Care
Cambridgeshire County Council,06-Sep-19,51300824011,"-1,389.26",HILL HOUSE,CARE ESTABLISHMENT,LD - Hunts Locality - Cost of Care,LD - Huntingdonshire - Special Needs,Residential Care
Cambridgeshire County Council,06-Sep-19,51300824013,"-1,389.26",HILL HOUSE,CARE ESTABLISHMENT,LD - Hunts Locality - Cost of Care,LD - Huntingdonshire - Special Needs,Residential Care
Cambridgeshire County Council,06-Sep-19,51300824012,"-1,389.26",HILL HOUSE,CARE ESTABLISHMENT,LD - Hunts Locality - Cost of Care,LD - Huntingdonshire - Special Needs,Residential Care
Cambridgeshire County Council,06-Sep-19,51300824019,"-1,389.26",HILL HOUSE,CARE ESTABLISHMENT,LD - Hunts Locality - Cost of Care,LD - Huntingdonshire - Special Needs,Residential Care
Cambridgeshire County Council,06-Sep-19,51300824017,"-1,389.26",HILL HOUSE,CARE ESTABLISHMENT,LD - Hunts Locality - Cost of Care,LD - Huntingdonshire - Special Needs,Residential Care
Cambridgeshire County Council,06-Sep-19,51301165717,"-1,379.86",EDEN VIEW,CARE ESTABLISHMENT,OP - East Cambs Locality - Cost of Care,East Cambs - O P Team - Care,Nursing Care
Cambridgeshire County Council,06-Sep-19,51300829684,"-1,361.14",SENSE (MIDLANDS),CARE ESTABLISHMENT,Physical Disablity - Cost of Care,Countywide PD Service - Care,Residential Care
Cambridgeshire County Council,06-Sep-19,51300836116,"-1,348.37",CARE MANAGEMENT GROUP (64-66 CARLTON),CARE ESTABLISHMENT,LD - East Locality - Cost of Care,LD - East Cambs - Special Needs,Residential Care
Cambridgeshire County Council,06-Sep-19,51300836106,"-1,348.37",CARE MANAGEMENT GROUP (64-66 CARLTON),CARE ESTABLISHMENT,LD - East Locality - Cost of Care,LD - East Cambs - Special Needs,Residential Care
Cambridgeshire County Council,06-Sep-19,51300836160,"-1,348.37",CARE MANAGEMENT GROUP (64-66 CARLTON),CARE ESTABLISHMENT,LD - East Locality - Cost of Care,LD - East Cambs - Special Needs,Residential Care
Cambridgeshire County Council,06-Sep-19,51300836138,"-1,348.37",CARE MANAGEMENT GROUP (64-66 CARLTON),CARE ESTABLISHMENT,LD - East Locality - Cost of Care,LD - East Cambs - Special Needs,Residential Care
Cambridgeshire County Council,06-Sep-19,51300836008,"-1,348.37",CARE MANAGEMENT GROUP (64-66 CARLTON),CARE ESTABLISHMENT,LD - East Locality - Cost of Care,LD - East Cambs - Special Needs,Residential Care
Cambridgeshire County Council,06-Sep-19,51300836060,"-1,348.37",CARE MANAGEMENT GROUP (64-66 CARLTON),CARE ESTABLISHMENT,LD - East Locality - Cost of Care,LD - East Cambs - Special Needs,Residential Care
Cambridgeshire County Council,06-Sep-19,51300836041,"-1,348.37",CARE MANAGEMENT GROUP (64-66 CARLTON),CARE ESTABLISHMENT,LD - East Locality - Cost of Care,LD - East Cambs - Special Needs,Residential Care
Cambridgeshire County Council,06-Sep-19,51300836161,"-1,348.37",CARE MANAGEMENT GROUP (64-66 CARLTON),CARE ESTABLISHMENT,LD - East Locality - Cost of Care,LD - East Cambs - Special Needs,Residential Care
Cambridgeshire County Council,20-Sep-19,51301195282,"-1,335.71",ST GEORGE'S COURT,CARE ESTABLISHMENT,OP - City & South Blocks,City and South - Long term blocks,Residential Care
Cambridgeshire County Council,12-Sep-19,51301167807,"-1,333.46",EAGLE WOOD NEUROLOGICAL CARE,CARE ESTABLISHMENT,OPMH - City & South,Older People Mental Health City & South,Nursing Care
Cambridgeshire County Council,12-Sep-19,51301167807,"-1,333.46",EAGLE WOOD NEUROLOGICAL CARE,CARE ESTABLISHMENT,OPMH - City & South,Older People Mental Health City & South,Nursing Care
Cambridgeshire County Council,12-Sep-19,51301167807,"-1,333.46",EAGLE WOOD NEUROLOGICAL CARE,CARE ESTABLISHMENT,OPMH - City & South,Older People Mental Health City & South,Nursing Care
Cambridgeshire County Council,12-Sep-19,51301167807,"-1,333.46",EAGLE WOOD NEUROLOGICAL CARE,CARE ESTABLISHMENT,OPMH - City & South,Older People Mental Health City & South,Nursing Care
Cambridgeshire County Council,12-Sep-19,51301167807,"-1,333.46",EAGLE WOOD NEUROLOGICAL CARE,CARE ESTABLISHMENT,OPMH - City & South,Older People Mental Health City & South,Nursing Care
Cambridgeshire County Council,12-Sep-19,51301167807,"-1,333.46",EAGLE WOOD NEUROLOGICAL CARE,CARE ESTABLISHMENT,OPMH - City & South,Older People Mental Health City & South,Nursing Care
Cambridgeshire County Council,12-Sep-19,51301167807,"-1,333.46",EAGLE WOOD NEUROLOGICAL CARE,CARE ESTABLISHMENT,OPMH - City & South,Older People Mental Health City & South,Nursing Care
Cambridgeshire County Council,12-Sep-19,51301167807,"-1,333.46",EAGLE WOOD NEUROLOGICAL CARE,CARE ESTABLISHMENT,OPMH - City & South,Older People Mental Health City & South,Nursing Care
Cambridgeshire County Council,12-Sep-19,51301167807,"-1,333.46",EAGLE WOOD NEUROLOGICAL CARE,CARE ESTABLISHMENT,OPMH - City & South,Older People Mental Health City & South,Nursing Care
Cambridgeshire County Council,12-Sep-19,51301167807,"-1,333.46",EAGLE WOOD NEUROLOGICAL CARE,CARE ESTABLISHMENT,OPMH - City & South,Older People Mental Health City & South,Nursing Care
Cambridgeshire County Council,12-Sep-19,51301167807,"-1,333.46",EAGLE WOOD NEUROLOGICAL CARE,CARE ESTABLISHMENT,OPMH - City & South,Older People Mental Health City & South,Nursing Care
Cambridgeshire County Council,12-Sep-19,51301167807,"-1,333.46",EAGLE WOOD NEUROLOGICAL CARE,CARE ESTABLISHMENT,OPMH - City & South,Older People Mental Health City & South,Nursing Care
Cambridgeshire County Council,12-Sep-19,51301167807,"-1,333.46",EAGLE WOOD NEUROLOGICAL CARE,CARE ESTABLISHMENT,OPMH - City & South,Older People Mental Health City & South,Nursing Care
Cambridgeshire County Council,12-Sep-19,51301167807,"-1,333.46",EAGLE WOOD NEUROLOGICAL CARE,CARE ESTABLISHMENT,OPMH - City & South,Older People Mental Health City & South,Nursing Care
Cambridgeshire County Council,12-Sep-19,51301167807,"-1,333.46",EAGLE WOOD NEUROLOGICAL CARE,CARE ESTABLISHMENT,OPMH - City & South,Older People Mental Health City & South,Nursing Care
Cambridgeshire County Council,06-Sep-19,51300867523,"-1,328.44",CARE MANAGEMENT GROUP (64-66 CARLTON),CARE ESTABLISHMENT,LD - East Locality - Cost of Care,LD - East Cambs - Special Needs,Residential Care
Cambridgeshire County Council,06-Sep-19,51301159999,"-1,328.44",CARE MANAGEMENT GROUP (64-66 CARLTON),CARE ESTABLISHMENT,LD - East Locality - Cost of Care,LD - East Cambs - Special Needs,Residential Care
Cambridgeshire County Council,06-Sep-19,51300850364,"-1,328.44",CARE MANAGEMENT GROUP (64-66 CARLTON),CARE ESTABLISHMENT,LD - East Locality - Cost of Care,LD - East Cambs - Special Needs,Residential Care
Cambridgeshire County Council,06-Sep-19,51300967197,"-1,328.44",CARE MANAGEMENT GROUP (64-66 CARLTON),CARE ESTABLISHMENT,LD - East Locality - Cost of Care,LD - East Cambs - Special Needs,Residential Care
Cambridgeshire County Council,06-Sep-19,51300920859,"-1,328.44",CARE MANAGEMENT GROUP (64-66 CARLTON),CARE ESTABLISHMENT,LD - East Locality - Cost of Care,LD - East Cambs - Special Needs,Residential Care
Cambridgeshire County Council,06-Sep-19,51301089950,"-1,328.44",CARE MANAGEMENT GROUP (64-66 CARLTON),CARE ESTABLISHMENT,LD - East Locality - Cost of Care,LD - East Cambs - Special Needs,Residential Care
Cambridgeshire County Council,06-Sep-19,51301027691,"-1,328.44",CARE MANAGEMENT GROUP (64-66 CARLTON),CARE ESTABLISHMENT,LD - East Locality - Cost of Care,LD - East Cambs - Special Needs,Residential Care
Cambridgeshire County Council,06-Sep-19,51301114397,"-1,328.44",CARE MANAGEMENT GROUP (64-66 CARLTON),CARE ESTABLISHMENT,LD - East Locality - Cost of Care,LD - East Cambs - Special Needs,Residential Care
Cambridgeshire County Council,06-Sep-19,51301132929,"-1,328.44",CARE MANAGEMENT GROUP (64-66 CARLTON),CARE ESTABLISHMENT,LD - East Locality - Cost of Care,LD - East Cambs - Special Needs,Residential Care
Cambridgeshire County Council,06-Sep-19,51301114315,"-1,328.44",CARE MANAGEMENT GROUP (64-66 CARLTON),CARE ESTABLISHMENT,LD - East Locality - Cost of Care,LD - East Cambs - Special Needs,Residential Care
Cambridgeshire County Council,06-Sep-19,51301140235,"-1,328.44",CARE MANAGEMENT GROUP (64-66 CARLTON),CARE ESTABLISHMENT,LD - East Locality - Cost of Care,LD - East Cambs - Special Needs,Residential Care
Cambridgeshire County Council,06-Sep-19,51300984296,"-1,328.44",CARE MANAGEMENT GROUP (64-66 CARLTON),CARE ESTABLISHMENT,LD - East Locality - Cost of Care,LD - East Cambs - Special Needs,Residential Care
Cambridgeshire County Council,06-Sep-19,51301005529,"-1,328.44",CARE MANAGEMENT GROUP (64-66 CARLTON),CARE ESTABLISHMENT,LD - East Locality - Cost of Care,LD - East Cambs - Special Needs,Residential Care
Cambridgeshire County Council,06-Sep-19,51300920824,"-1,328.44",CARE MANAGEMENT GROUP (64-66 CARLTON),CARE ESTABLISHMENT,LD - East Locality - Cost of Care,LD - East Cambs - Special Needs,Residential Care
Cambridgeshire County Council,06-Sep-19,51301059046,"-1,328.44",CARE MANAGEMENT GROUP (64-66 CARLTON),CARE ESTABLISHMENT,LD - East Locality - Cost of Care,LD - East Cambs - Special Needs,Residential Care
Cambridgeshire County Council,06-Sep-19,51301019079,"-1,328.44",CARE MANAGEMENT GROUP (64-66 CARLTON),CARE ESTABLISHMENT,LD - East Locality - Cost of Care,LD - East Cambs - Special Needs,Residential Care
Cambridgeshire County Council,06-Sep-19,51300984259,"-1,328.44",CARE MANAGEMENT GROUP (64-66 CARLTON),CARE ESTABLISHMENT,LD - East Locality - Cost of Care,LD - East Cambs - Special Needs,Residential Care
Cambridgeshire County Council,06-Sep-19,51300867477,"-1,328.44",CARE MANAGEMENT GROUP (64-66 CARLTON),CARE ESTABLISHMENT,LD - East Locality - Cost of Care,LD - East Cambs - Special Needs,Residential Care
Cambridgeshire County Council,06-Sep-19,51300920800,"-1,328.44",CARE MANAGEMENT GROUP (64-66 CARLTON),CARE ESTABLISHMENT,LD - East Locality - Cost of Care,LD - East Cambs - Special Needs,Residential Care
Cambridgeshire County Council,06-Sep-19,51300859086,"-1,328.44",CARE MANAGEMENT GROUP (64-66 CARLTON),CARE ESTABLISHMENT,LD - East Locality - Cost of Care,LD - East Cambs - Special Needs,Residential Care
Cambridgeshire County Council,06-Sep-19,51300888684,"-1,328.44",CARE MANAGEMENT GROUP (64-66 CARLTON),CARE ESTABLISHMENT,LD - East Locality - Cost of Care,LD - East Cambs - Special Needs,Residential Care
Cambridgeshire County Council,06-Sep-19,51300967187,"-1,328.44",CARE MANAGEMENT GROUP (64-66 CARLTON),CARE ESTABLISHMENT,LD - East Locality - Cost of Care,LD - East Cambs - Special Needs,Residential Care
Cambridgeshire County Council,06-Sep-19,51301159995,"-1,328.44",CARE MANAGEMENT GROUP (64-66 CARLTON),CARE ESTABLISHMENT,LD - East Locality - Cost of Care,LD - East Cambs - Special Needs,Residential Care
Cambridgeshire County Council,06-Sep-19,51300947982,"-1,328.44",CARE MANAGEMENT GROUP (64-66 CARLTON),CARE ESTABLISHMENT,LD - East Locality - Cost of Care,LD - East Cambs - Special Needs,Residential Care
Cambridgeshire County Council,06-Sep-19,51300859003,"-1,328.44",CARE MANAGEMENT GROUP (64-66 CARLTON),CARE ESTABLISHMENT,LD - East Locality - Cost of Care,LD - East Cambs - Special Needs,Residential Care
Cambridgeshire County Council,06-Sep-19,51301005622,"-1,328.44",CARE MANAGEMENT GROUP (64-66 CARLTON),CARE ESTABLISHMENT,LD - East Locality - Cost of Care,LD - East Cambs - Special Needs,Residential Care
Cambridgeshire County Council,06-Sep-19,51300976548,"-1,328.44",CARE MANAGEMENT GROUP (64-66 CARLTON),CARE ESTABLISHMENT,LD - East Locality - Cost of Care,LD - East Cambs - Special Needs,Residential Care
Cambridgeshire County Council,06-Sep-19,51301114276,"-1,328.44",CARE MANAGEMENT GROUP (64-66 CARLTON),CARE ESTABLISHMENT,LD - East Locality - Cost of Care,LD - East Cambs - Special Needs,Residential Care
Cambridgeshire County Council,06-Sep-19,51300911522,"-1,328.44",CARE MANAGEMENT GROUP (64-66 CARLTON),CARE ESTABLISHMENT,LD - East Locality - Cost of Care,LD - East Cambs - Special Needs,Residential Care
Cambridgeshire County Council,06-Sep-19,51301082160,"-1,328.44",CARE MANAGEMENT GROUP (64-66 CARLTON),CARE ESTABLISHMENT,LD - East Locality - Cost of Care,LD - East Cambs - Special Needs,Residential Care
Cambridgeshire County Council,06-Sep-19,51301114417,"-1,328.44",CARE MANAGEMENT GROUP (64-66 CARLTON),CARE ESTABLISHMENT,LD - East Locality - Cost of Care,LD - East Cambs - Special Needs,Residential Care
Cambridgeshire County Council,06-Sep-19,51301089896,"-1,328.44",CARE MANAGEMENT GROUP (64-66 CARLTON),CARE ESTABLISHMENT,LD - East Locality - Cost of Care,LD - East Cambs - Special Needs,Residential Care
Cambridgeshire County Council,06-Sep-19,51301114390,"-1,328.44",CARE MANAGEMENT GROUP (64-66 CARLTON),CARE ESTABLISHMENT,LD - East Locality - Cost of Care,LD - East Cambs - Special Needs,Residential Care
Cambridgeshire County Council,06-Sep-19,51301019032,"-1,328.44",CARE MANAGEMENT GROUP (64-66 CARLTON),CARE ESTABLISHMENT,LD - East Locality - Cost of Care,LD - East Cambs - Special Needs,Residential Care
Cambridgeshire County Council,06-Sep-19,51301019054,"-1,328.44",CARE MANAGEMENT GROUP (64-66 CARLTON),CARE ESTABLISHMENT,LD - East Locality - Cost of Care,LD - East Cambs - Special Needs,Residential Care
Cambridgeshire County Council,06-Sep-19,51300850402,"-1,328.44",CARE MANAGEMENT GROUP (64-66 CARLTON),CARE ESTABLISHMENT,LD - East Locality - Cost of Care,LD - East Cambs - Special Needs,Residential Care
Cambridgeshire County Council,06-Sep-19,51300850410,"-1,328.44",CARE MANAGEMENT GROUP (64-66 CARLTON),CARE ESTABLISHMENT,LD - East Locality - Cost of Care,LD - East Cambs - Special Needs,Residential Care
Cambridgeshire County Council,06-Sep-19,51300850481,"-1,328.44",CARE MANAGEMENT GROUP (64-66 CARLTON),CARE ESTABLISHMENT,LD - East Locality - Cost of Care,LD - East Cambs - Special Needs,Residential Care
Cambridgeshire County Council,06-Sep-19,51300850466,"-1,328.44",CARE MANAGEMENT GROUP (64-66 CARLTON),CARE ESTABLISHMENT,LD - East Locality - Cost of Care,LD - East Cambs - Special Needs,Residential Care
Cambridgeshire County Council,06-Sep-19,51300858975,"-1,328.44",CARE MANAGEMENT GROUP (64-66 CARLTON),CARE ESTABLISHMENT,LD - East Locality - Cost of Care,LD - East Cambs - Special Needs,Residential Care
Cambridgeshire County Council,06-Sep-19,51300836056,"-1,328.44",CARE MANAGEMENT GROUP (64-66 CARLTON),CARE ESTABLISHMENT,LD - East Locality - Cost of Care,LD - East Cambs - Special Needs,Residential Care
Cambridgeshire County Council,06-Sep-19,51300836122,"-1,328.44",CARE MANAGEMENT GROUP (64-66 CARLTON),CARE ESTABLISHMENT,LD - East Locality - Cost of Care,LD - East Cambs - Special Needs,Residential Care
Cambridgeshire County Council,06-Sep-19,51300836158,"-1,328.44",CARE MANAGEMENT GROUP (64-66 CARLTON),CARE ESTABLISHMENT,LD - East Locality - Cost of Care,LD - East Cambs - Special Needs,Residential Care
Cambridgeshire County Council,06-Sep-19,51300850477,"-1,328.44",CARE MANAGEMENT GROUP (64-66 CARLTON),CARE ESTABLISHMENT,LD - East Locality - Cost of Care,LD - East Cambs - Special Needs,Residential Care
Cambridgeshire County Council,06-Sep-19,51300859019,"-1,328.44",CARE MANAGEMENT GROUP (64-66 CARLTON),CARE ESTABLISHMENT,LD - East Locality - Cost of Care,LD - East Cambs - Special Needs,Residential Care
Cambridgeshire County Council,06-Sep-19,51301035991,"-1,328.44",CARE MANAGEMENT GROUP (64-66 CARLTON),CARE ESTABLISHMENT,LD - East Locality - Cost of Care,LD - East Cambs - Special Needs,Residential Care
Cambridgeshire County Council,06-Sep-19,51300859004,"-1,328.44",CARE MANAGEMENT GROUP (64-66 CARLTON),CARE ESTABLISHMENT,LD - East Locality - Cost of Care,LD - East Cambs - Special Needs,Residential Care
Cambridgeshire County Council,06-Sep-19,51300836024,"-1,328.44",CARE MANAGEMENT GROUP (64-66 CARLTON),CARE ESTABLISHMENT,LD - East Locality - Cost of Care,LD - East Cambs - Special Needs,Residential Care
Cambridgeshire County Council,06-Sep-19,51300836049,"-1,328.44",CARE MANAGEMENT GROUP (64-66 CARLTON),CARE ESTABLISHMENT,LD - East Locality - Cost of Care,LD - East Cambs - Special Needs,Residential Care
Cambridgeshire County Council,06-Sep-19,51300911571,"-1,328.44",CARE MANAGEMENT GROUP (64-66 CARLTON),CARE ESTABLISHMENT,LD - East Locality - Cost of Care,LD - East Cambs - Special Needs,Residential Care
Cambridgeshire County Council,06-Sep-19,51300911534,"-1,328.44",CARE MANAGEMENT GROUP (64-66 CARLTON),CARE ESTABLISHMENT,LD - East Locality - Cost of Care,LD - East Cambs - Special Needs,Residential Care
Cambridgeshire County Council,06-Sep-19,51300903793,"-1,328.44",CARE MANAGEMENT GROUP (64-66 CARLTON),CARE ESTABLISHMENT,LD - East Locality - Cost of Care,LD - East Cambs - Special Needs,Residential Care
Cambridgeshire County Council,06-Sep-19,51301089917,"-1,328.44",CARE MANAGEMENT GROUP (64-66 CARLTON),CARE ESTABLISHMENT,LD - East Locality - Cost of Care,LD - East Cambs - Special Needs,Residential Care
Cambridgeshire County Council,06-Sep-19,51300859047,"-1,328.44",CARE MANAGEMENT GROUP (64-66 CARLTON),CARE ESTABLISHMENT,LD - East Locality - Cost of Care,LD - East Cambs - Special Needs,Residential Care
Cambridgeshire County Council,06-Sep-19,51300859015,"-1,328.44",CARE MANAGEMENT GROUP (64-66 CARLTON),CARE ESTABLISHMENT,LD - East Locality - Cost of Care,LD - East Cambs - Special Needs,Residential Care
Cambridgeshire County Council,06-Sep-19,51300836085,"-1,328.44",CARE MANAGEMENT GROUP (64-66 CARLTON),CARE ESTABLISHMENT,LD - East Locality - Cost of Care,LD - East Cambs - Special Needs,Residential Care
Cambridgeshire County Council,06-Sep-19,51300903718,"-1,328.44",CARE MANAGEMENT GROUP (64-66 CARLTON),CARE ESTABLISHMENT,LD - East Locality - Cost of Care,LD - East Cambs - Special Needs,Residential Care
Cambridgeshire County Council,06-Sep-19,51300867568,"-1,328.44",CARE MANAGEMENT GROUP (64-66 CARLTON),CARE ESTABLISHMENT,LD - East Locality - Cost of Care,LD - East Cambs - Special Needs,Residential Care
Cambridgeshire County Council,06-Sep-19,51300976518,"-1,328.44",CARE MANAGEMENT GROUP (64-66 CARLTON),CARE ESTABLISHMENT,LD - East Locality - Cost of Care,LD - East Cambs - Special Needs,Residential Care
Cambridgeshire County Council,06-Sep-19,51301082125,"-1,328.44",CARE MANAGEMENT GROUP (64-66 CARLTON),CARE ESTABLISHMENT,LD - East Locality - Cost of Care,LD - East Cambs - Special Needs,Residential Care
Cambridgeshire County Council,06-Sep-19,51300850350,"-1,328.44",CARE MANAGEMENT GROUP (64-66 CARLTON),CARE ESTABLISHMENT,LD - East Locality - Cost of Care,LD - East Cambs - Special Needs,Residential Care
Cambridgeshire County Council,06-Sep-19,51301140270,"-1,328.44",CARE MANAGEMENT GROUP (64-66 CARLTON),CARE ESTABLISHMENT,LD - East Locality - Cost of Care,LD - East Cambs - Special Needs,Residential Care
Cambridgeshire County Council,06-Sep-19,51301027785,"-1,328.44",CARE MANAGEMENT GROUP (64-66 CARLTON),CARE ESTABLISHMENT,LD - East Locality - Cost of Care,LD - East Cambs - Special Needs,Residential Care
Cambridgeshire County Council,06-Sep-19,51301059069,"-1,328.44",CARE MANAGEMENT GROUP (64-66 CARLTON),CARE ESTABLISHMENT,LD - East Locality - Cost of Care,LD - East Cambs - Special Needs,Residential Care
Cambridgeshire County Council,06-Sep-19,51300967260,"-1,328.44",CARE MANAGEMENT GROUP (64-66 CARLTON),CARE ESTABLISHMENT,LD - East Locality - Cost of Care,LD - East Cambs - Special Needs,Residential Care
Cambridgeshire County Council,06-Sep-19,51301132930,"-1,328.44",CARE MANAGEMENT GROUP (64-66 CARLTON),CARE ESTABLISHMENT,LD - East Locality - Cost of Care,LD - East Cambs - Special Needs,Residential Care
Cambridgeshire County Council,06-Sep-19,51301140251,"-1,328.44",CARE MANAGEMENT GROUP (64-66 CARLTON),CARE ESTABLISHMENT,LD - East Locality - Cost of Care,LD - East Cambs - Special Needs,Residential Care
Cambridgeshire County Council,06-Sep-19,51301140140,"-1,328.44",CARE MANAGEMENT GROUP (64-66 CARLTON),CARE ESTABLISHMENT,LD - East Locality - Cost of Care,LD - East Cambs - Special Needs,Residential Care
Cambridgeshire County Council,06-Sep-19,51300984277,"-1,328.44",CARE MANAGEMENT GROUP (64-66 CARLTON),CARE ESTABLISHMENT,LD - East Locality - Cost of Care,LD - East Cambs - Special Needs,Residential Care
Cambridgeshire County Council,06-Sep-19,51301005548,"-1,328.44",CARE MANAGEMENT GROUP (64-66 CARLTON),CARE ESTABLISHMENT,LD - East Locality - Cost of Care,LD - East Cambs - Special Needs,Residential Care
Cambridgeshire County Council,06-Sep-19,51301082211,"-1,328.44",CARE MANAGEMENT GROUP (64-66 CARLTON),CARE ESTABLISHMENT,LD - East Locality - Cost of Care,LD - East Cambs - Special Needs,Residential Care
Cambridgeshire County Council,06-Sep-19,51301140221,"-1,328.44",CARE MANAGEMENT GROUP (64-66 CARLTON),CARE ESTABLISHMENT,LD - East Locality - Cost of Care,LD - East Cambs - Special Needs,Residential Care
Cambridgeshire County Council,06-Sep-19,51301160022,"-1,328.44",CARE MANAGEMENT GROUP (64-66 CARLTON),CARE ESTABLISHMENT,LD - East Locality - Cost of Care,LD - East Cambs - Special Needs,Residential Care
Cambridgeshire County Council,06-Sep-19,51300903847,"-1,328.44",CARE MANAGEMENT GROUP (64-66 CARLTON),CARE ESTABLISHMENT,LD - East Locality - Cost of Care,LD - East Cambs - Special Needs,Residential Care
Cambridgeshire County Council,06-Sep-19,51301082180,"-1,328.44",CARE MANAGEMENT GROUP (64-66 CARLTON),CARE ESTABLISHMENT,LD - East Locality - Cost of Care,LD - East Cambs - Special Needs,Residential Care
Cambridgeshire County Council,06-Sep-19,51300911540,"-1,328.44",CARE MANAGEMENT GROUP (64-66 CARLTON),CARE ESTABLISHMENT,LD - East Locality - Cost of Care,LD - East Cambs - Special Needs,Residential Care
Cambridgeshire County Council,06-Sep-19,51300903865,"-1,328.44",CARE MANAGEMENT GROUP (64-66 CARLTON),CARE ESTABLISHMENT,LD - East Locality - Cost of Care,LD - East Cambs - Special Needs,Residential Care
Cambridgeshire County Council,06-Sep-19,51300911460,"-1,328.44",CARE MANAGEMENT GROUP (64-66 CARLTON),CARE ESTABLISHMENT,LD - East Locality - Cost of Care,LD - East Cambs - Special Needs,Residential Care
Cambridgeshire County Council,06-Sep-19,51301073898,"-1,328.44",CARE MANAGEMENT GROUP (64-66 CARLTON),CARE ESTABLISHMENT,LD - East Locality - Cost of Care,LD - East Cambs - Special Needs,Residential Care
Cambridgeshire County Council,06-Sep-19,51301132891,"-1,328.44",CARE MANAGEMENT GROUP (64-66 CARLTON),CARE ESTABLISHMENT,LD - East Locality - Cost of Care,LD - East Cambs - Special Needs,Residential Care
Cambridgeshire County Council,06-Sep-19,51301114401,"-1,328.44",CARE MANAGEMENT GROUP (64-66 CARLTON),CARE ESTABLISHMENT,LD - East Locality - Cost of Care,LD - East Cambs - Special Needs,Residential Care
Cambridgeshire County Council,06-Sep-19,51301089850,"-1,328.44",CARE MANAGEMENT GROUP (64-66 CARLTON),CARE ESTABLISHMENT,LD - East Locality - Cost of Care,LD - East Cambs - Special Needs,Residential Care
Cambridgeshire County Council,06-Sep-19,51301089873,"-1,328.44",CARE MANAGEMENT GROUP (64-66 CARLTON),CARE ESTABLISHMENT,LD - East Locality - Cost of Care,LD - East Cambs - Special Needs,Residential Care
Cambridgeshire County Council,06-Sep-19,51301089958,"-1,328.44",CARE MANAGEMENT GROUP (64-66 CARLTON),CARE ESTABLISHMENT,LD - East Locality - Cost of Care,LD - East Cambs - Special Needs,Residential Care
Cambridgeshire County Council,06-Sep-19,51301036003,"-1,328.44",CARE MANAGEMENT GROUP (64-66 CARLTON),CARE ESTABLISHMENT,LD - East Locality - Cost of Care,LD - East Cambs - Special Needs,Residential Care
Cambridgeshire County Council,06-Sep-19,51301089860,"-1,328.44",CARE MANAGEMENT GROUP (64-66 CARLTON),CARE ESTABLISHMENT,LD - East Locality - Cost of Care,LD - East Cambs - Special Needs,Residential Care
Cambridgeshire County Council,06-Sep-19,51301114377,"-1,328.44",CARE MANAGEMENT GROUP (64-66 CARLTON),CARE ESTABLISHMENT,LD - East Locality - Cost of Care,LD - East Cambs - Special Needs,Residential Care
Cambridgeshire County Council,06-Sep-19,51301132797,"-1,328.44",CARE MANAGEMENT GROUP (64-66 CARLTON),CARE ESTABLISHMENT,LD - East Locality - Cost of Care,LD - East Cambs - Special Needs,Residential Care
Cambridgeshire County Council,06-Sep-19,51301160021,"-1,328.44",CARE MANAGEMENT GROUP (64-66 CARLTON),CARE ESTABLISHMENT,LD - East Locality - Cost of Care,LD - East Cambs - Special Needs,Residential Care
Cambridgeshire County Council,06-Sep-19,51301159962,"-1,328.44",CARE MANAGEMENT GROUP (64-66 CARLTON),CARE ESTABLISHMENT,LD - East Locality - Cost of Care,LD - East Cambs - Special Needs,Residential Care
Cambridgeshire County Council,06-Sep-19,51301114296,"-1,328.44",CARE MANAGEMENT GROUP (64-66 CARLTON),CARE ESTABLISHMENT,LD - East Locality - Cost of Care,LD - East Cambs - Special Needs,Residential Care
Cambridgeshire County Council,06-Sep-19,51301114354,"-1,328.44",CARE MANAGEMENT GROUP (64-66 CARLTON),CARE ESTABLISHMENT,LD - East Locality - Cost of Care,LD - East Cambs - Special Needs,Residential Care
Cambridgeshire County Council,06-Sep-19,51301132898,"-1,328.44",CARE MANAGEMENT GROUP (64-66 CARLTON),CARE ESTABLISHMENT,LD - East Locality - Cost of Care,LD - East Cambs - Special Needs,Residential Care
Cambridgeshire County Council,06-Sep-19,51301140204,"-1,328.44",CARE MANAGEMENT GROUP (64-66 CARLTON),CARE ESTABLISHMENT,LD - East Locality - Cost of Care,LD - East Cambs - Special Needs,Residential Care
Cambridgeshire County Council,06-Sep-19,51300850344,"-1,328.44",CARE MANAGEMENT GROUP (64-66 CARLTON),CARE ESTABLISHMENT,LD - East Locality - Cost of Care,LD - East Cambs - Special Needs,Residential Care
Cambridgeshire County Council,06-Sep-19,51300836092,"-1,328.44",CARE MANAGEMENT GROUP (64-66 CARLTON),CARE ESTABLISHMENT,LD - East Locality - Cost of Care,LD - East Cambs - Special Needs,Residential Care
Cambridgeshire County Council,06-Sep-19,51300836139,"-1,328.44",CARE MANAGEMENT GROUP (64-66 CARLTON),CARE ESTABLISHMENT,LD - East Locality - Cost of Care,LD - East Cambs - Special Needs,Residential Care
Cambridgeshire County Council,06-Sep-19,51301019051,"-1,328.44",CARE MANAGEMENT GROUP (64-66 CARLTON),CARE ESTABLISHMENT,LD - East Locality - Cost of Care,LD - East Cambs - Special Needs,Residential Care
Cambridgeshire County Council,06-Sep-19,51300911474,"-1,328.44",CARE MANAGEMENT GROUP (64-66 CARLTON),CARE ESTABLISHMENT,LD - East Locality - Cost of Care,LD - East Cambs - Special Needs,Residential Care
Cambridgeshire County Council,06-Sep-19,51300911488,"-1,328.44",CARE MANAGEMENT GROUP (64-66 CARLTON),CARE ESTABLISHMENT,LD - East Locality - Cost of Care,LD - East Cambs - Special Needs,Residential Care
Cambridgeshire County Council,06-Sep-19,51300911483,"-1,328.44",CARE MANAGEMENT GROUP (64-66 CARLTON),CARE ESTABLISHMENT,LD - East Locality - Cost of Care,LD - East Cambs - Special Needs,Residential Care
Cambridgeshire County Council,06-Sep-19,51300911551,"-1,328.44",CARE MANAGEMENT GROUP (64-66 CARLTON),CARE ESTABLISHMENT,LD - East Locality - Cost of Care,LD - East Cambs - Special Needs,Residential Care
Cambridgeshire County Council,06-Sep-19,51301114352,"-1,328.44",CARE MANAGEMENT GROUP (64-66 CARLTON),CARE ESTABLISHMENT,LD - East Locality - Cost of Care,LD - East Cambs - Special Needs,Residential Care
Cambridgeshire County Council,06-Sep-19,51301140200,"-1,328.44",CARE MANAGEMENT GROUP (64-66 CARLTON),CARE ESTABLISHMENT,LD - East Locality - Cost of Care,LD - East Cambs - Special Needs,Residential Care
Cambridgeshire County Council,06-Sep-19,51300903835,"-1,328.44",CARE MANAGEMENT GROUP (64-66 CARLTON),CARE ESTABLISHMENT,LD - East Locality - Cost of Care,LD - East Cambs - Special Needs,Residential Care
Cambridgeshire County Council,06-Sep-19,51300903792,"-1,328.44",CARE MANAGEMENT GROUP (64-66 CARLTON),CARE ESTABLISHMENT,LD - East Locality - Cost of Care,LD - East Cambs - Special Needs,Residential Care
Cambridgeshire County Council,06-Sep-19,51300903734,"-1,328.44",CARE MANAGEMENT GROUP (64-66 CARLTON),CARE ESTABLISHMENT,LD - East Locality - Cost of Care,LD - East Cambs - Special Needs,Residential Care
Cambridgeshire County Council,06-Sep-19,51300850348,"-1,328.44",CARE MANAGEMENT GROUP (64-66 CARLTON),CARE ESTABLISHMENT,LD - East Locality - Cost of Care,LD - East Cambs - Special Needs,Residential Care
Cambridgeshire County Council,06-Sep-19,51301159986,"-1,328.44",CARE MANAGEMENT GROUP (64-66 CARLTON),CARE ESTABLISHMENT,LD - East Locality - Cost of Care,LD - East Cambs - Special Needs,Residential Care
Cambridgeshire County Council,06-Sep-19,51300888648,"-1,328.44",CARE MANAGEMENT GROUP (64-66 CARLTON),CARE ESTABLISHMENT,LD - East Locality - Cost of Care,LD - East Cambs - Special Needs,Residential Care
Cambridgeshire County Council,06-Sep-19,51300888649,"-1,328.44",CARE MANAGEMENT GROUP (64-66 CARLTON),CARE ESTABLISHMENT,LD - East Locality - Cost of Care,LD - East Cambs - Special Needs,Residential Care
Cambridgeshire County Council,06-Sep-19,51300867502,"-1,328.44",CARE MANAGEMENT GROUP (64-66 CARLTON),CARE ESTABLISHMENT,LD - East Locality - Cost of Care,LD - East Cambs - Special Needs,Residential Care
Cambridgeshire County Council,06-Sep-19,51301082135,"-1,328.44",CARE MANAGEMENT GROUP (64-66 CARLTON),CARE ESTABLISHMENT,LD - East Locality - Cost of Care,LD - East Cambs - Special Needs,Residential Care
Cambridgeshire County Council,06-Sep-19,51301132823,"-1,328.44",CARE MANAGEMENT GROUP (64-66 CARLTON),CARE ESTABLISHMENT,LD - East Locality - Cost of Care,LD - East Cambs - Special Needs,Residential Care
Cambridgeshire County Council,06-Sep-19,51301019034,"-1,328.44",CARE MANAGEMENT GROUP (64-66 CARLTON),CARE ESTABLISHMENT,LD - East Locality - Cost of Care,LD - East Cambs - Special Needs,Residential Care
Cambridgeshire County Council,06-Sep-19,51300984253,"-1,328.44",CARE MANAGEMENT GROUP (64-66 CARLTON),CARE ESTABLISHMENT,LD - East Locality - Cost of Care,LD - East Cambs - Special Needs,Residential Care
Cambridgeshire County Council,06-Sep-19,51300984271,"-1,328.44",CARE MANAGEMENT GROUP (64-66 CARLTON),CARE ESTABLISHMENT,LD - East Locality - Cost of Care,LD - East Cambs - Special Needs,Residential Care
Cambridgeshire County Council,06-Sep-19,51300984279,"-1,328.44",CARE MANAGEMENT GROUP (64-66 CARLTON),CARE ESTABLISHMENT,LD - East Locality - Cost of Care,LD - East Cambs - Special Needs,Residential Care
Cambridgeshire County Council,06-Sep-19,51301005666,"-1,328.44",CARE MANAGEMENT GROUP (64-66 CARLTON),CARE ESTABLISHMENT,LD - East Locality - Cost of Care,LD - East Cambs - Special Needs,Residential Care
Cambridgeshire County Council,06-Sep-19,51301005549,"-1,328.44",CARE MANAGEMENT GROUP (64-66 CARLTON),CARE ESTABLISHMENT,LD - East Locality - Cost of Care,LD - East Cambs - Special Needs,Residential Care
Cambridgeshire County Council,06-Sep-19,51300858944,"-1,328.44",CARE MANAGEMENT GROUP (64-66 CARLTON),CARE ESTABLISHMENT,LD - East Locality - Cost of Care,LD - East Cambs - Special Needs,Residential Care
Cambridgeshire County Council,06-Sep-19,51300850462,"-1,328.44",CARE MANAGEMENT GROUP (64-66 CARLTON),CARE ESTABLISHMENT,LD - East Locality - Cost of Care,LD - East Cambs - Special Needs,Residential Care
Cambridgeshire County Council,06-Sep-19,51301082142,"-1,328.44",CARE MANAGEMENT GROUP (64-66 CARLTON),CARE ESTABLISHMENT,LD - East Locality - Cost of Care,LD - East Cambs - Special Needs,Residential Care
Cambridgeshire County Council,06-Sep-19,51300976596,"-1,328.44",CARE MANAGEMENT GROUP (64-66 CARLTON),CARE ESTABLISHMENT,LD - East Locality - Cost of Care,LD - East Cambs - Special Needs,Residential Care
Cambridgeshire County Council,06-Sep-19,51300976555,"-1,328.44",CARE MANAGEMENT GROUP (64-66 CARLTON),CARE ESTABLISHMENT,LD - East Locality - Cost of Care,LD - East Cambs - Special Needs,Residential Care
Cambridgeshire County Council,06-Sep-19,51300976464,"-1,328.44",CARE MANAGEMENT GROUP (64-66 CARLTON),CARE ESTABLISHMENT,LD - East Locality - Cost of Care,LD - East Cambs - Special Needs,Residential Care
Cambridgeshire County Council,06-Sep-19,51300976470,"-1,328.44",CARE MANAGEMENT GROUP (64-66 CARLTON),CARE ESTABLISHMENT,LD - East Locality - Cost of Care,LD - East Cambs - Special Needs,Residential Care
Cambridgeshire County Council,06-Sep-19,51300920902,"-1,328.44",CARE MANAGEMENT GROUP (64-66 CARLTON),CARE ESTABLISHMENT,LD - East Locality - Cost of Care,LD - East Cambs - Special Needs,Residential Care
Cambridgeshire County Council,06-Sep-19,51300911485,"-1,328.44",CARE MANAGEMENT GROUP (64-66 CARLTON),CARE ESTABLISHMENT,LD - East Locality - Cost of Care,LD - East Cambs - Special Needs,Residential Care
Cambridgeshire County Council,06-Sep-19,51300920906,"-1,328.44",CARE MANAGEMENT GROUP (64-66 CARLTON),CARE ESTABLISHMENT,LD - East Locality - Cost of Care,LD - East Cambs - Special Needs,Residential Care
Cambridgeshire County Council,06-Sep-19,51301089956,"-1,328.44",CARE MANAGEMENT GROUP (64-66 CARLTON),CARE ESTABLISHMENT,LD - East Locality - Cost of Care,LD - East Cambs - Special Needs,Residential Care
Cambridgeshire County Council,06-Sep-19,51301082239,"-1,328.44",CARE MANAGEMENT GROUP (64-66 CARLTON),CARE ESTABLISHMENT,LD - East Locality - Cost of Care,LD - East Cambs - Special Needs,Residential Care
Cambridgeshire County Council,06-Sep-19,51301082163,"-1,328.44",CARE MANAGEMENT GROUP (64-66 CARLTON),CARE ESTABLISHMENT,LD - East Locality - Cost of Care,LD - East Cambs - Special Needs,Residential Care
Cambridgeshire County Council,06-Sep-19,51301114305,"-1,328.44",CARE MANAGEMENT GROUP (64-66 CARLTON),CARE ESTABLISHMENT,LD - East Locality - Cost of Care,LD - East Cambs - Special Needs,Residential Care
Cambridgeshire County Council,06-Sep-19,51301082178,"-1,328.44",CARE MANAGEMENT GROUP (64-66 CARLTON),CARE ESTABLISHMENT,LD - East Locality - Cost of Care,LD - East Cambs - Special Needs,Residential Care
Cambridgeshire County Council,06-Sep-19,51301073933,"-1,328.44",CARE MANAGEMENT GROUP (64-66 CARLTON),CARE ESTABLISHMENT,LD - East Locality - Cost of Care,LD - East Cambs - Special Needs,Residential Care
Cambridgeshire County Council,06-Sep-19,51301073934,"-1,328.44",CARE MANAGEMENT GROUP (64-66 CARLTON),CARE ESTABLISHMENT,LD - East Locality - Cost of Care,LD - East Cambs - Special Needs,Residential Care
Cambridgeshire County Council,06-Sep-19,51301132922,"-1,328.44",CARE MANAGEMENT GROUP (64-66 CARLTON),CARE ESTABLISHMENT,LD - East Locality - Cost of Care,LD - East Cambs - Special Needs,Residential Care
Cambridgeshire County Council,06-Sep-19,51301089907,"-1,328.44",CARE MANAGEMENT GROUP (64-66 CARLTON),CARE ESTABLISHMENT,LD - East Locality - Cost of Care,LD - East Cambs - Special Needs,Residential Care
Cambridgeshire County Council,06-Sep-19,51301114420,"-1,328.44",CARE MANAGEMENT GROUP (64-66 CARLTON),CARE ESTABLISHMENT,LD - East Locality - Cost of Care,LD - East Cambs - Special Needs,Residential Care
Cambridgeshire County Council,06-Sep-19,51301114393,"-1,328.44",CARE MANAGEMENT GROUP (64-66 CARLTON),CARE ESTABLISHMENT,LD - East Locality - Cost of Care,LD - East Cambs - Special Needs,Residential Care
Cambridgeshire County Council,06-Sep-19,51301114357,"-1,328.44",CARE MANAGEMENT GROUP (64-66 CARLTON),CARE ESTABLISHMENT,LD - East Locality - Cost of Care,LD - East Cambs - Special Needs,Residential Care
Cambridgeshire County Council,06-Sep-19,51301132847,"-1,328.44",CARE MANAGEMENT GROUP (64-66 CARLTON),CARE ESTABLISHMENT,LD - East Locality - Cost of Care,LD - East Cambs - Special Needs,Residential Care
Cambridgeshire County Council,06-Sep-19,51301089913,"-1,328.44",CARE MANAGEMENT GROUP (64-66 CARLTON),CARE ESTABLISHMENT,LD - East Locality - Cost of Care,LD - East Cambs - Special Needs,Residential Care
Cambridgeshire County Council,06-Sep-19,51301089881,"-1,328.44",CARE MANAGEMENT GROUP (64-66 CARLTON),CARE ESTABLISHMENT,LD - East Locality - Cost of Care,LD - East Cambs - Special Needs,Residential Care
Cambridgeshire County Council,06-Sep-19,51301089886,"-1,328.44",CARE MANAGEMENT GROUP (64-66 CARLTON),CARE ESTABLISHMENT,LD - East Locality - Cost of Care,LD - East Cambs - Special Needs,Residential Care
Cambridgeshire County Council,06-Sep-19,51301089955,"-1,328.44",CARE MANAGEMENT GROUP (64-66 CARLTON),CARE ESTABLISHMENT,LD - East Locality - Cost of Care,LD - East Cambs - Special Needs,Residential Care
Cambridgeshire County Council,06-Sep-19,51301159955,"-1,328.44",CARE MANAGEMENT GROUP (64-66 CARLTON),CARE ESTABLISHMENT,LD - East Locality - Cost of Care,LD - East Cambs - Special Needs,Residential Care
Cambridgeshire County Council,06-Sep-19,51301140142,"-1,328.44",CARE MANAGEMENT GROUP (64-66 CARLTON),CARE ESTABLISHMENT,LD - East Locality - Cost of Care,LD - East Cambs - Special Needs,Residential Care
Cambridgeshire County Council,06-Sep-19,51301140156,"-1,328.44",CARE MANAGEMENT GROUP (64-66 CARLTON),CARE ESTABLISHMENT,LD - East Locality - Cost of Care,LD - East Cambs - Special Needs,Residential Care
Cambridgeshire County Council,06-Sep-19,51301140243,"-1,328.44",CARE MANAGEMENT GROUP (64-66 CARLTON),CARE ESTABLISHMENT,LD - East Locality - Cost of Care,LD - East Cambs - Special Needs,Residential Care
Cambridgeshire County Council,06-Sep-19,51300836066,"-1,328.44",CARE MANAGEMENT GROUP (64-66 CARLTON),CARE ESTABLISHMENT,LD - East Locality - Cost of Care,LD - East Cambs - Special Needs,Residential Care
Cambridgeshire County Council,06-Sep-19,51301019111,"-1,328.44",CARE MANAGEMENT GROUP (64-66 CARLTON),CARE ESTABLISHMENT,LD - East Locality - Cost of Care,LD - East Cambs - Special Needs,Residential Care
Cambridgeshire County Council,06-Sep-19,51301019089,"-1,328.44",CARE MANAGEMENT GROUP (64-66 CARLTON),CARE ESTABLISHMENT,LD - East Locality - Cost of Care,LD - East Cambs - Special Needs,Residential Care
Cambridgeshire County Council,06-Sep-19,51301005637,"-1,328.44",CARE MANAGEMENT GROUP (64-66 CARLTON),CARE ESTABLISHMENT,LD - East Locality - Cost of Care,LD - East Cambs - Special Needs,Residential Care
Cambridgeshire County Council,06-Sep-19,51301005575,"-1,328.44",CARE MANAGEMENT GROUP (64-66 CARLTON),CARE ESTABLISHMENT,LD - East Locality - Cost of Care,LD - East Cambs - Special Needs,Residential Care
Cambridgeshire County Council,06-Sep-19,51301005624,"-1,328.44",CARE MANAGEMENT GROUP (64-66 CARLTON),CARE ESTABLISHMENT,LD - East Locality - Cost of Care,LD - East Cambs - Special Needs,Residential Care
Cambridgeshire County Council,06-Sep-19,51301005625,"-1,328.44",CARE MANAGEMENT GROUP (64-66 CARLTON),CARE ESTABLISHMENT,LD - East Locality - Cost of Care,LD - East Cambs - Special Needs,Residential Care
Cambridgeshire County Council,06-Sep-19,51301005534,"-1,328.44",CARE MANAGEMENT GROUP (64-66 CARLTON),CARE ESTABLISHMENT,LD - East Locality - Cost of Care,LD - East Cambs - Special Needs,Residential Care
Cambridgeshire County Council,06-Sep-19,51301027750,"-1,328.44",CARE MANAGEMENT GROUP (64-66 CARLTON),CARE ESTABLISHMENT,LD - East Locality - Cost of Care,LD - East Cambs - Special Needs,Residential Care
Cambridgeshire County Council,06-Sep-19,51301027790,"-1,328.44",CARE MANAGEMENT GROUP (64-66 CARLTON),CARE ESTABLISHMENT,LD - East Locality - Cost of Care,LD - East Cambs - Special Needs,Residential Care
Cambridgeshire County Council,06-Sep-19,51301027747,"-1,328.44",CARE MANAGEMENT GROUP (64-66 CARLTON),CARE ESTABLISHMENT,LD - East Locality - Cost of Care,LD - East Cambs - Special Needs,Residential Care
Cambridgeshire County Council,06-Sep-19,51301035916,"-1,328.44",CARE MANAGEMENT GROUP (64-66 CARLTON),CARE ESTABLISHMENT,LD - East Locality - Cost of Care,LD - East Cambs - Special Needs,Residential Care
Cambridgeshire County Council,06-Sep-19,51301059071,"-1,328.44",CARE MANAGEMENT GROUP (64-66 CARLTON),CARE ESTABLISHMENT,LD - East Locality - Cost of Care,LD - East Cambs - Special Needs,Residential Care
Cambridgeshire County Council,06-Sep-19,51301019060,"-1,328.44",CARE MANAGEMENT GROUP (64-66 CARLTON),CARE ESTABLISHMENT,LD - East Locality - Cost of Care,LD - East Cambs - Special Needs,Residential Care
Cambridgeshire County Council,06-Sep-19,51301082231,"-1,328.44",CARE MANAGEMENT GROUP (64-66 CARLTON),CARE ESTABLISHMENT,LD - East Locality - Cost of Care,LD - East Cambs - Special Needs,Residential Care
Cambridgeshire County Council,06-Sep-19,51300911532,"-1,328.44",CARE MANAGEMENT GROUP (64-66 CARLTON),CARE ESTABLISHMENT,LD - East Locality - Cost of Care,LD - East Cambs - Special Needs,Residential Care
Cambridgeshire County Council,06-Sep-19,51301035908,"-1,328.44",CARE MANAGEMENT GROUP (64-66 CARLTON),CARE ESTABLISHMENT,LD - East Locality - Cost of Care,LD - East Cambs - Special Needs,Residential Care
Cambridgeshire County Council,06-Sep-19,51300836067,"-1,328.44",CARE MANAGEMENT GROUP (64-66 CARLTON),CARE ESTABLISHMENT,LD - East Locality - Cost of Care,LD - East Cambs - Special Needs,Residential Care
Cambridgeshire County Council,06-Sep-19,51301140237,"-1,328.44",CARE MANAGEMENT GROUP (64-66 CARLTON),CARE ESTABLISHMENT,LD - East Locality - Cost of Care,LD - East Cambs - Special Needs,Residential Care
Cambridgeshire County Council,06-Sep-19,51300920825,"-1,328.44",CARE MANAGEMENT GROUP (64-66 CARLTON),CARE ESTABLISHMENT,LD - East Locality - Cost of Care,LD - East Cambs - Special Needs,Residential Care
Cambridgeshire County Council,06-Sep-19,51300888667,"-1,328.44",CARE MANAGEMENT GROUP (64-66 CARLTON),CARE ESTABLISHMENT,LD - East Locality - Cost of Care,LD - East Cambs - Special Needs,Residential Care
Cambridgeshire County Council,06-Sep-19,51300903854,"-1,328.44",CARE MANAGEMENT GROUP (64-66 CARLTON),CARE ESTABLISHMENT,LD - East Locality - Cost of Care,LD - East Cambs - Special Needs,Residential Care
Cambridgeshire County Council,06-Sep-19,51301059165,"-1,328.44",CARE MANAGEMENT GROUP (64-66 CARLTON),CARE ESTABLISHMENT,LD - East Locality - Cost of Care,LD - East Cambs - Special Needs,Residential Care
Cambridgeshire County Council,06-Sep-19,51300888597,"-1,328.44",CARE MANAGEMENT GROUP (64-66 CARLTON),CARE ESTABLISHMENT,LD - East Locality - Cost of Care,LD - East Cambs - Special Needs,Residential Care
Cambridgeshire County Council,06-Sep-19,51301059131,"-1,328.44",CARE MANAGEMENT GROUP (64-66 CARLTON),CARE ESTABLISHMENT,LD - East Locality - Cost of Care,LD - East Cambs - Special Needs,Residential Care
Cambridgeshire County Council,06-Sep-19,51301027749,"-1,328.44",CARE MANAGEMENT GROUP (64-66 CARLTON),CARE ESTABLISHMENT,LD - East Locality - Cost of Care,LD - East Cambs - Special Needs,Residential Care
Cambridgeshire County Council,06-Sep-19,51301019114,"-1,328.44",CARE MANAGEMENT GROUP (64-66 CARLTON),CARE ESTABLISHMENT,LD - East Locality - Cost of Care,LD - East Cambs - Special Needs,Residential Care
Cambridgeshire County Council,06-Sep-19,51301019120,"-1,328.44",CARE MANAGEMENT GROUP (64-66 CARLTON),CARE ESTABLISHMENT,LD - East Locality - Cost of Care,LD - East Cambs - Special Needs,Residential Care
Cambridgeshire County Council,06-Sep-19,51301019044,"-1,328.44",CARE MANAGEMENT GROUP (64-66 CARLTON),CARE ESTABLISHMENT,LD - East Locality - Cost of Care,LD - East Cambs - Special Needs,Residential Care
Cambridgeshire County Council,06-Sep-19,51301132799,"-1,328.44",CARE MANAGEMENT GROUP (64-66 CARLTON),CARE ESTABLISHMENT,LD - East Locality - Cost of Care,LD - East Cambs - Special Needs,Residential Care
Cambridgeshire County Council,06-Sep-19,51301132888,"-1,328.44",CARE MANAGEMENT GROUP (64-66 CARLTON),CARE ESTABLISHMENT,LD - East Locality - Cost of Care,LD - East Cambs - Special Needs,Residential Care
Cambridgeshire County Council,06-Sep-19,51300984254,"-1,328.44",CARE MANAGEMENT GROUP (64-66 CARLTON),CARE ESTABLISHMENT,LD - East Locality - Cost of Care,LD - East Cambs - Special Needs,Residential Care
Cambridgeshire County Council,06-Sep-19,51301035967,"-1,328.44",CARE MANAGEMENT GROUP (64-66 CARLTON),CARE ESTABLISHMENT,LD - East Locality - Cost of Care,LD - East Cambs - Special Needs,Residential Care
Cambridgeshire County Council,06-Sep-19,51300984391,"-1,328.44",CARE MANAGEMENT GROUP (64-66 CARLTON),CARE ESTABLISHMENT,LD - East Locality - Cost of Care,LD - East Cambs - Special Needs,Residential Care
Cambridgeshire County Council,06-Sep-19,51301140267,"-1,328.44",CARE MANAGEMENT GROUP (64-66 CARLTON),CARE ESTABLISHMENT,LD - East Locality - Cost of Care,LD - East Cambs - Special Needs,Residential Care
Cambridgeshire County Council,06-Sep-19,51301159958,"-1,328.44",CARE MANAGEMENT GROUP (64-66 CARLTON),CARE ESTABLISHMENT,LD - East Locality - Cost of Care,LD - East Cambs - Special Needs,Residential Care
Cambridgeshire County Council,06-Sep-19,51300859012,"-1,328.44",CARE MANAGEMENT GROUP (64-66 CARLTON),CARE ESTABLISHMENT,LD - East Locality - Cost of Care,LD - East Cambs - Special Needs,Residential Care
Cambridgeshire County Council,06-Sep-19,51300859037,"-1,328.44",CARE MANAGEMENT GROUP (64-66 CARLTON),CARE ESTABLISHMENT,LD - East Locality - Cost of Care,LD - East Cambs - Special Needs,Residential Care
Cambridgeshire County Council,06-Sep-19,51301159969,"-1,328.44",CARE MANAGEMENT GROUP (64-66 CARLTON),CARE ESTABLISHMENT,LD - East Locality - Cost of Care,LD - East Cambs - Special Needs,Residential Care
Cambridgeshire County Council,06-Sep-19,51301132816,"-1,328.44",CARE MANAGEMENT GROUP (64-66 CARLTON),CARE ESTABLISHMENT,LD - East Locality - Cost of Care,LD - East Cambs - Special Needs,Residential Care
Cambridgeshire County Council,06-Sep-19,51301132834,"-1,328.44",CARE MANAGEMENT GROUP (64-66 CARLTON),CARE ESTABLISHMENT,LD - East Locality - Cost of Care,LD - East Cambs - Special Needs,Residential Care
Cambridgeshire County Council,06-Sep-19,51301132921,"-1,328.44",CARE MANAGEMENT GROUP (64-66 CARLTON),CARE ESTABLISHMENT,LD - East Locality - Cost of Care,LD - East Cambs - Special Needs,Residential Care
Cambridgeshire County Council,06-Sep-19,51301019099,"-1,328.44",CARE MANAGEMENT GROUP (64-66 CARLTON),CARE ESTABLISHMENT,LD - East Locality - Cost of Care,LD - East Cambs - Special Needs,Residential Care
Cambridgeshire County Council,06-Sep-19,51301019035,"-1,328.44",CARE MANAGEMENT GROUP (64-66 CARLTON),CARE ESTABLISHMENT,LD - East Locality - Cost of Care,LD - East Cambs - Special Needs,Residential Care
Cambridgeshire County Council,06-Sep-19,51301035901,"-1,328.44",CARE MANAGEMENT GROUP (64-66 CARLTON),CARE ESTABLISHMENT,LD - East Locality - Cost of Care,LD - East Cambs - Special Needs,Residential Care
Cambridgeshire County Council,06-Sep-19,51301132884,"-1,328.44",CARE MANAGEMENT GROUP (64-66 CARLTON),CARE ESTABLISHMENT,LD - East Locality - Cost of Care,LD - East Cambs - Special Needs,Residential Care
Cambridgeshire County Council,06-Sep-19,51301140211,"-1,328.44",CARE MANAGEMENT GROUP (64-66 CARLTON),CARE ESTABLISHMENT,LD - East Locality - Cost of Care,LD - East Cambs - Special Needs,Residential Care
Cambridgeshire County Council,06-Sep-19,51301159930,"-1,328.44",CARE MANAGEMENT GROUP (64-66 CARLTON),CARE ESTABLISHMENT,LD - East Locality - Cost of Care,LD - East Cambs - Special Needs,Residential Care
Cambridgeshire County Council,06-Sep-19,51301005585,"-1,328.44",CARE MANAGEMENT GROUP (64-66 CARLTON),CARE ESTABLISHMENT,LD - East Locality - Cost of Care,LD - East Cambs - Special Needs,Residential Care
Cambridgeshire County Council,06-Sep-19,51301114380,"-1,328.44",CARE MANAGEMENT GROUP (64-66 CARLTON),CARE ESTABLISHMENT,LD - East Locality - Cost of Care,LD - East Cambs - Special Needs,Residential Care
Cambridgeshire County Council,06-Sep-19,51301082115,"-1,328.44",CARE MANAGEMENT GROUP (64-66 CARLTON),CARE ESTABLISHMENT,LD - East Locality - Cost of Care,LD - East Cambs - Special Needs,Residential Care
Cambridgeshire County Council,06-Sep-19,51300850392,"-1,328.44",CARE MANAGEMENT GROUP (64-66 CARLTON),CARE ESTABLISHMENT,LD - East Locality - Cost of Care,LD - East Cambs - Special Needs,Residential Care
Cambridgeshire County Council,06-Sep-19,51300903724,"-1,328.44",CARE MANAGEMENT GROUP (64-66 CARLTON),CARE ESTABLISHMENT,LD - East Locality - Cost of Care,LD - East Cambs - Special Needs,Residential Care
Cambridgeshire County Council,06-Sep-19,51300911494,"-1,328.44",CARE MANAGEMENT GROUP (64-66 CARLTON),CARE ESTABLISHMENT,LD - East Locality - Cost of Care,LD - East Cambs - Special Needs,Residential Care
Cambridgeshire County Council,06-Sep-19,51300947943,"-1,328.44",CARE MANAGEMENT GROUP (64-66 CARLTON),CARE ESTABLISHMENT,LD - East Locality - Cost of Care,LD - East Cambs - Special Needs,Residential Care
Cambridgeshire County Council,06-Sep-19,51300903781,"-1,328.44",CARE MANAGEMENT GROUP (64-66 CARLTON),CARE ESTABLISHMENT,LD - East Locality - Cost of Care,LD - East Cambs - Special Needs,Residential Care
Cambridgeshire County Council,06-Sep-19,51300911595,"-1,328.44",CARE MANAGEMENT GROUP (64-66 CARLTON),CARE ESTABLISHMENT,LD - East Locality - Cost of Care,LD - East Cambs - Special Needs,Residential Care
Cambridgeshire County Council,06-Sep-19,51301159959,"-1,328.44",CARE MANAGEMENT GROUP (64-66 CARLTON),CARE ESTABLISHMENT,LD - East Locality - Cost of Care,LD - East Cambs - Special Needs,Residential Care
Cambridgeshire County Council,06-Sep-19,51300850353,"-1,328.44",CARE MANAGEMENT GROUP (64-66 CARLTON),CARE ESTABLISHMENT,LD - East Locality - Cost of Care,LD - East Cambs - Special Needs,Residential Care
Cambridgeshire County Council,06-Sep-19,51300836001,"-1,328.44",CARE MANAGEMENT GROUP (64-66 CARLTON),CARE ESTABLISHMENT,LD - East Locality - Cost of Care,LD - East Cambs - Special Needs,Residential Care
Cambridgeshire County Council,06-Sep-19,51301059170,"-1,328.44",CARE MANAGEMENT GROUP (64-66 CARLTON),CARE ESTABLISHMENT,LD - East Locality - Cost of Care,LD - East Cambs - Special Needs,Residential Care
Cambridgeshire County Council,06-Sep-19,51301027703,"-1,328.44",CARE MANAGEMENT GROUP (64-66 CARLTON),CARE ESTABLISHMENT,LD - East Locality - Cost of Care,LD - East Cambs - Special Needs,Residential Care
Cambridgeshire County Council,06-Sep-19,51301035974,"-1,328.44",CARE MANAGEMENT GROUP (64-66 CARLTON),CARE ESTABLISHMENT,LD - East Locality - Cost of Care,LD - East Cambs - Special Needs,Residential Care
Cambridgeshire County Council,06-Sep-19,51301035984,"-1,328.44",CARE MANAGEMENT GROUP (64-66 CARLTON),CARE ESTABLISHMENT,LD - East Locality - Cost of Care,LD - East Cambs - Special Needs,Residential Care
Cambridgeshire County Council,06-Sep-19,51301027722,"-1,328.44",CARE MANAGEMENT GROUP (64-66 CARLTON),CARE ESTABLISHMENT,LD - East Locality - Cost of Care,LD - East Cambs - Special Needs,Residential Care
Cambridgeshire County Council,06-Sep-19,51300967264,"-1,328.44",CARE MANAGEMENT GROUP (64-66 CARLTON),CARE ESTABLISHMENT,LD - East Locality - Cost of Care,LD - East Cambs - Special Needs,Residential Care
Cambridgeshire County Council,06-Sep-19,51301005531,"-1,328.44",CARE MANAGEMENT GROUP (64-66 CARLTON),CARE ESTABLISHMENT,LD - East Locality - Cost of Care,LD - East Cambs - Special Needs,Residential Care
Cambridgeshire County Council,06-Sep-19,51301005561,"-1,328.44",CARE MANAGEMENT GROUP (64-66 CARLTON),CARE ESTABLISHMENT,LD - East Locality - Cost of Care,LD - East Cambs - Special Needs,Residential Care
Cambridgeshire County Council,06-Sep-19,51300967304,"-1,328.44",CARE MANAGEMENT GROUP (64-66 CARLTON),CARE ESTABLISHMENT,LD - East Locality - Cost of Care,LD - East Cambs - Special Needs,Residential Care
Cambridgeshire County Council,06-Sep-19,51300903799,"-1,328.44",CARE MANAGEMENT GROUP (64-66 CARLTON),CARE ESTABLISHMENT,LD - East Locality - Cost of Care,LD - East Cambs - Special Needs,Residential Care
Cambridgeshire County Council,06-Sep-19,51300858945,"-1,328.44",CARE MANAGEMENT GROUP (64-66 CARLTON),CARE ESTABLISHMENT,LD - East Locality - Cost of Care,LD - East Cambs - Special Needs,Residential Care
Cambridgeshire County Council,06-Sep-19,51301073985,"-1,328.44",CARE MANAGEMENT GROUP (64-66 CARLTON),CARE ESTABLISHMENT,LD - East Locality - Cost of Care,LD - East Cambs - Special Needs,Residential Care
Cambridgeshire County Council,06-Sep-19,51300967303,"-1,328.44",CARE MANAGEMENT GROUP (64-66 CARLTON),CARE ESTABLISHMENT,LD - East Locality - Cost of Care,LD - East Cambs - Special Needs,Residential Care
Cambridgeshire County Council,06-Sep-19,51300976469,"-1,328.44",CARE MANAGEMENT GROUP (64-66 CARLTON),CARE ESTABLISHMENT,LD - East Locality - Cost of Care,LD - East Cambs - Special Needs,Residential Care
Cambridgeshire County Council,06-Sep-19,51301132837,"-1,328.44",CARE MANAGEMENT GROUP (64-66 CARLTON),CARE ESTABLISHMENT,LD - East Locality - Cost of Care,LD - East Cambs - Special Needs,Residential Care
Cambridgeshire County Council,06-Sep-19,51301019036,"-1,328.44",CARE MANAGEMENT GROUP (64-66 CARLTON),CARE ESTABLISHMENT,LD - East Locality - Cost of Care,LD - East Cambs - Special Needs,Residential Care
Cambridgeshire County Council,06-Sep-19,51300867524,"-1,328.44",CARE MANAGEMENT GROUP (64-66 CARLTON),CARE ESTABLISHMENT,LD - East Locality - Cost of Care,LD - East Cambs - Special Needs,Residential Care
Cambridgeshire County Council,06-Sep-19,51300836057,"-1,328.44",CARE MANAGEMENT GROUP (64-66 CARLTON),CARE ESTABLISHMENT,LD - East Locality - Cost of Care,LD - East Cambs - Special Needs,Residential Care
Cambridgeshire County Council,06-Sep-19,51301082149,"-1,328.44",CARE MANAGEMENT GROUP (64-66 CARLTON),CARE ESTABLISHMENT,LD - East Locality - Cost of Care,LD - East Cambs - Special Needs,Residential Care
Cambridgeshire County Council,06-Sep-19,51300850456,"-1,328.44",CARE MANAGEMENT GROUP (64-66 CARLTON),CARE ESTABLISHMENT,LD - East Locality - Cost of Care,LD - East Cambs - Special Needs,Residential Care
Cambridgeshire County Council,06-Sep-19,51301073913,"-1,328.44",CARE MANAGEMENT GROUP (64-66 CARLTON),CARE ESTABLISHMENT,LD - East Locality - Cost of Care,LD - East Cambs - Special Needs,Residential Care
Cambridgeshire County Council,06-Sep-19,51301073939,"-1,328.44",CARE MANAGEMENT GROUP (64-66 CARLTON),CARE ESTABLISHMENT,LD - East Locality - Cost of Care,LD - East Cambs - Special Needs,Residential Care
Cambridgeshire County Council,06-Sep-19,51301082159,"-1,328.44",CARE MANAGEMENT GROUP (64-66 CARLTON),CARE ESTABLISHMENT,LD - East Locality - Cost of Care,LD - East Cambs - Special Needs,Residential Care
Cambridgeshire County Council,06-Sep-19,51301089946,"-1,328.44",CARE MANAGEMENT GROUP (64-66 CARLTON),CARE ESTABLISHMENT,LD - East Locality - Cost of Care,LD - East Cambs - Special Needs,Residential Care
Cambridgeshire County Council,06-Sep-19,51301089893,"-1,328.44",CARE MANAGEMENT GROUP (64-66 CARLTON),CARE ESTABLISHMENT,LD - East Locality - Cost of Care,LD - East Cambs - Special Needs,Residential Care
Cambridgeshire County Council,06-Sep-19,51301160036,"-1,328.44",CARE MANAGEMENT GROUP (64-66 CARLTON),CARE ESTABLISHMENT,LD - East Locality - Cost of Care,LD - East Cambs - Special Needs,Residential Care
Cambridgeshire County Council,06-Sep-19,51301159985,"-1,328.44",CARE MANAGEMENT GROUP (64-66 CARLTON),CARE ESTABLISHMENT,LD - East Locality - Cost of Care,LD - East Cambs - Special Needs,Residential Care
Cambridgeshire County Council,06-Sep-19,51301114321,"-1,328.44",CARE MANAGEMENT GROUP (64-66 CARLTON),CARE ESTABLISHMENT,LD - East Locality - Cost of Care,LD - East Cambs - Special Needs,Residential Care
Cambridgeshire County Council,06-Sep-19,51301114337,"-1,328.44",CARE MANAGEMENT GROUP (64-66 CARLTON),CARE ESTABLISHMENT,LD - East Locality - Cost of Care,LD - East Cambs - Special Needs,Residential Care
Cambridgeshire County Council,06-Sep-19,51301140203,"-1,328.44",CARE MANAGEMENT GROUP (64-66 CARLTON),CARE ESTABLISHMENT,LD - East Locality - Cost of Care,LD - East Cambs - Special Needs,Residential Care
Cambridgeshire County Council,06-Sep-19,51301140127,"-1,328.44",CARE MANAGEMENT GROUP (64-66 CARLTON),CARE ESTABLISHMENT,LD - East Locality - Cost of Care,LD - East Cambs - Special Needs,Residential Care
Cambridgeshire County Council,06-Sep-19,51300850446,"-1,328.44",CARE MANAGEMENT GROUP (64-66 CARLTON),CARE ESTABLISHMENT,LD - East Locality - Cost of Care,LD - East Cambs - Special Needs,Residential Care
Cambridgeshire County Council,06-Sep-19,51300967169,"-1,328.44",CARE MANAGEMENT GROUP (64-66 CARLTON),CARE ESTABLISHMENT,LD - East Locality - Cost of Care,LD - East Cambs - Special Needs,Residential Care
Cambridgeshire County Council,06-Sep-19,51300976566,"-1,328.44",CARE MANAGEMENT GROUP (64-66 CARLTON),CARE ESTABLISHMENT,LD - East Locality - Cost of Care,LD - East Cambs - Special Needs,Residential Care
Cambridgeshire County Council,06-Sep-19,51300976578,"-1,328.44",CARE MANAGEMENT GROUP (64-66 CARLTON),CARE ESTABLISHMENT,LD - East Locality - Cost of Care,LD - East Cambs - Special Needs,Residential Care
Cambridgeshire County Council,06-Sep-19,51300967164,"-1,328.44",CARE MANAGEMENT GROUP (64-66 CARLTON),CARE ESTABLISHMENT,LD - East Locality - Cost of Care,LD - East Cambs - Special Needs,Residential Care
Cambridgeshire County Council,06-Sep-19,51301089887,"-1,328.44",CARE MANAGEMENT GROUP (64-66 CARLTON),CARE ESTABLISHMENT,LD - East Locality - Cost of Care,LD - East Cambs - Special Needs,Residential Care
Cambridgeshire County Council,06-Sep-19,51301082171,"-1,328.44",CARE MANAGEMENT GROUP (64-66 CARLTON),CARE ESTABLISHMENT,LD - East Locality - Cost of Care,LD - East Cambs - Special Needs,Residential Care
Cambridgeshire County Council,06-Sep-19,51301073973,"-1,328.44",CARE MANAGEMENT GROUP (64-66 CARLTON),CARE ESTABLISHMENT,LD - East Locality - Cost of Care,LD - East Cambs - Special Needs,Residential Care
Cambridgeshire County Council,06-Sep-19,51301059158,"-1,328.44",CARE MANAGEMENT GROUP (64-66 CARLTON),CARE ESTABLISHMENT,LD - East Locality - Cost of Care,LD - East Cambs - Special Needs,Residential Care
Cambridgeshire County Council,06-Sep-19,51301027767,"-1,328.44",CARE MANAGEMENT GROUP (64-66 CARLTON),CARE ESTABLISHMENT,LD - East Locality - Cost of Care,LD - East Cambs - Special Needs,Residential Care
Cambridgeshire County Council,06-Sep-19,51300984345,"-1,328.44",CARE MANAGEMENT GROUP (64-66 CARLTON),CARE ESTABLISHMENT,LD - East Locality - Cost of Care,LD - East Cambs - Special Needs,Residential Care
Cambridgeshire County Council,06-Sep-19,51301132790,"-1,328.44",CARE MANAGEMENT GROUP (64-66 CARLTON),CARE ESTABLISHMENT,LD - East Locality - Cost of Care,LD - East Cambs - Special Needs,Residential Care
Cambridgeshire County Council,06-Sep-19,51301132935,"-1,328.44",CARE MANAGEMENT GROUP (64-66 CARLTON),CARE ESTABLISHMENT,LD - East Locality - Cost of Care,LD - East Cambs - Special Needs,Residential Care
Cambridgeshire County Council,06-Sep-19,51301132936,"-1,328.44",CARE MANAGEMENT GROUP (64-66 CARLTON),CARE ESTABLISHMENT,LD - East Locality - Cost of Care,LD - East Cambs - Special Needs,Residential Care
Cambridgeshire County Council,06-Sep-19,51301059075,"-1,328.44",CARE MANAGEMENT GROUP (64-66 CARLTON),CARE ESTABLISHMENT,LD - East Locality - Cost of Care,LD - East Cambs - Special Needs,Residential Care
Cambridgeshire County Council,06-Sep-19,51301073932,"-1,328.44",CARE MANAGEMENT GROUP (64-66 CARLTON),CARE ESTABLISHMENT,LD - East Locality - Cost of Care,LD - East Cambs - Special Needs,Residential Care
Cambridgeshire County Council,06-Sep-19,51301059141,"-1,328.44",CARE MANAGEMENT GROUP (64-66 CARLTON),CARE ESTABLISHMENT,LD - East Locality - Cost of Care,LD - East Cambs - Special Needs,Residential Care
Cambridgeshire County Council,06-Sep-19,51301073923,"-1,328.44",CARE MANAGEMENT GROUP (64-66 CARLTON),CARE ESTABLISHMENT,LD - East Locality - Cost of Care,LD - East Cambs - Special Needs,Residential Care
Cambridgeshire County Council,06-Sep-19,51301073943,"-1,328.44",CARE MANAGEMENT GROUP (64-66 CARLTON),CARE ESTABLISHMENT,LD - East Locality - Cost of Care,LD - East Cambs - Special Needs,Residential Care
Cambridgeshire County Council,06-Sep-19,51301073963,"-1,328.44",CARE MANAGEMENT GROUP (64-66 CARLTON),CARE ESTABLISHMENT,LD - East Locality - Cost of Care,LD - East Cambs - Special Needs,Residential Care
Cambridgeshire County Council,06-Sep-19,51301019086,"-1,328.44",CARE MANAGEMENT GROUP (64-66 CARLTON),CARE ESTABLISHMENT,LD - East Locality - Cost of Care,LD - East Cambs - Special Needs,Residential Care
Cambridgeshire County Council,06-Sep-19,51301019012,"-1,328.44",CARE MANAGEMENT GROUP (64-66 CARLTON),CARE ESTABLISHMENT,LD - East Locality - Cost of Care,LD - East Cambs - Special Needs,Residential Care
Cambridgeshire County Council,06-Sep-19,51301027809,"-1,328.44",CARE MANAGEMENT GROUP (64-66 CARLTON),CARE ESTABLISHMENT,LD - East Locality - Cost of Care,LD - East Cambs - Special Needs,Residential Care
Cambridgeshire County Council,06-Sep-19,51301027773,"-1,328.44",CARE MANAGEMENT GROUP (64-66 CARLTON),CARE ESTABLISHMENT,LD - East Locality - Cost of Care,LD - East Cambs - Special Needs,Residential Care
Cambridgeshire County Council,06-Sep-19,51300859021,"-1,328.44",CARE MANAGEMENT GROUP (64-66 CARLTON),CARE ESTABLISHMENT,LD - East Locality - Cost of Care,LD - East Cambs - Special Needs,Residential Care
Cambridgeshire County Council,06-Sep-19,51300859038,"-1,328.44",CARE MANAGEMENT GROUP (64-66 CARLTON),CARE ESTABLISHMENT,LD - East Locality - Cost of Care,LD - East Cambs - Special Needs,Residential Care
Cambridgeshire County Council,06-Sep-19,51300850337,"-1,328.44",CARE MANAGEMENT GROUP (64-66 CARLTON),CARE ESTABLISHMENT,LD - East Locality - Cost of Care,LD - East Cambs - Special Needs,Residential Care
Cambridgeshire County Council,06-Sep-19,51300850461,"-1,328.44",CARE MANAGEMENT GROUP (64-66 CARLTON),CARE ESTABLISHMENT,LD - East Locality - Cost of Care,LD - East Cambs - Special Needs,Residential Care
Cambridgeshire County Council,06-Sep-19,51300850362,"-1,328.44",CARE MANAGEMENT GROUP (64-66 CARLTON),CARE ESTABLISHMENT,LD - East Locality - Cost of Care,LD - East Cambs - Special Needs,Residential Care
Cambridgeshire County Council,06-Sep-19,51301160053,"-1,328.44",CARE MANAGEMENT GROUP (64-66 CARLTON),CARE ESTABLISHMENT,LD - East Locality - Cost of Care,LD - East Cambs - Special Needs,Residential Care
Cambridgeshire County Council,06-Sep-19,51301159972,"-1,328.44",CARE MANAGEMENT GROUP (64-66 CARLTON),CARE ESTABLISHMENT,LD - East Locality - Cost of Care,LD - East Cambs - Special Needs,Residential Care
Cambridgeshire County Council,06-Sep-19,51301159981,"-1,328.44",CARE MANAGEMENT GROUP (64-66 CARLTON),CARE ESTABLISHMENT,LD - East Locality - Cost of Care,LD - East Cambs - Special Needs,Residential Care
Cambridgeshire County Council,06-Sep-19,51301160071,"-1,328.44",CARE MANAGEMENT GROUP (64-66 CARLTON),CARE ESTABLISHMENT,LD - East Locality - Cost of Care,LD - East Cambs - Special Needs,Residential Care
Cambridgeshire County Council,06-Sep-19,51301140271,"-1,328.44",CARE MANAGEMENT GROUP (64-66 CARLTON),CARE ESTABLISHMENT,LD - East Locality - Cost of Care,LD - East Cambs - Special Needs,Residential Care
Cambridgeshire County Council,06-Sep-19,51301132827,"-1,328.44",CARE MANAGEMENT GROUP (64-66 CARLTON),CARE ESTABLISHMENT,LD - East Locality - Cost of Care,LD - East Cambs - Special Needs,Residential Care
Cambridgeshire County Council,06-Sep-19,51301089855,"-1,328.44",CARE MANAGEMENT GROUP (64-66 CARLTON),CARE ESTABLISHMENT,LD - East Locality - Cost of Care,LD - East Cambs - Special Needs,Residential Care
Cambridgeshire County Council,06-Sep-19,51300920855,"-1,328.44",CARE MANAGEMENT GROUP (64-66 CARLTON),CARE ESTABLISHMENT,LD - East Locality - Cost of Care,LD - East Cambs - Special Needs,Residential Care
Cambridgeshire County Council,06-Sep-19,51300920944,"-1,328.44",CARE MANAGEMENT GROUP (64-66 CARLTON),CARE ESTABLISHMENT,LD - East Locality - Cost of Care,LD - East Cambs - Special Needs,Residential Care
Cambridgeshire County Council,06-Sep-19,51301114295,"-1,328.44",CARE MANAGEMENT GROUP (64-66 CARLTON),CARE ESTABLISHMENT,LD - East Locality - Cost of Care,LD - East Cambs - Special Needs,Residential Care
Cambridgeshire County Council,06-Sep-19,51301082245,"-1,328.44",CARE MANAGEMENT GROUP (64-66 CARLTON),CARE ESTABLISHMENT,LD - East Locality - Cost of Care,LD - East Cambs - Special Needs,Residential Care
Cambridgeshire County Council,06-Sep-19,51301082140,"-1,328.44",CARE MANAGEMENT GROUP (64-66 CARLTON),CARE ESTABLISHMENT,LD - East Locality - Cost of Care,LD - East Cambs - Special Needs,Residential Care
Cambridgeshire County Council,06-Sep-19,51301082184,"-1,328.44",CARE MANAGEMENT GROUP (64-66 CARLTON),CARE ESTABLISHMENT,LD - East Locality - Cost of Care,LD - East Cambs - Special Needs,Residential Care
Cambridgeshire County Council,06-Sep-19,51301082146,"-1,328.44",CARE MANAGEMENT GROUP (64-66 CARLTON),CARE ESTABLISHMENT,LD - East Locality - Cost of Care,LD - East Cambs - Special Needs,Residential Care
Cambridgeshire County Council,06-Sep-19,51300911581,"-1,328.44",CARE MANAGEMENT GROUP (64-66 CARLTON),CARE ESTABLISHMENT,LD - East Locality - Cost of Care,LD - East Cambs - Special Needs,Residential Care
Cambridgeshire County Council,06-Sep-19,51300911503,"-1,328.44",CARE MANAGEMENT GROUP (64-66 CARLTON),CARE ESTABLISHMENT,LD - East Locality - Cost of Care,LD - East Cambs - Special Needs,Residential Care
Cambridgeshire County Council,06-Sep-19,51300911513,"-1,328.44",CARE MANAGEMENT GROUP (64-66 CARLTON),CARE ESTABLISHMENT,LD - East Locality - Cost of Care,LD - East Cambs - Special Needs,Residential Care
Cambridgeshire County Council,06-Sep-19,51300911464,"-1,328.44",CARE MANAGEMENT GROUP (64-66 CARLTON),CARE ESTABLISHMENT,LD - East Locality - Cost of Care,LD - East Cambs - Special Needs,Residential Care
Cambridgeshire County Council,06-Sep-19,51300888539,"-1,328.44",CARE MANAGEMENT GROUP (64-66 CARLTON),CARE ESTABLISHMENT,LD - East Locality - Cost of Care,LD - East Cambs - Special Needs,Residential Care
Cambridgeshire County Council,06-Sep-19,51301082114,"-1,328.44",CARE MANAGEMENT GROUP (64-66 CARLTON),CARE ESTABLISHMENT,LD - East Locality - Cost of Care,LD - East Cambs - Special Needs,Residential Care
Cambridgeshire County Council,06-Sep-19,51301082221,"-1,328.44",CARE MANAGEMENT GROUP (64-66 CARLTON),CARE ESTABLISHMENT,LD - East Locality - Cost of Care,LD - East Cambs - Special Needs,Residential Care
Cambridgeshire County Council,06-Sep-19,51300911594,"-1,328.44",CARE MANAGEMENT GROUP (64-66 CARLTON),CARE ESTABLISHMENT,LD - East Locality - Cost of Care,LD - East Cambs - Special Needs,Residential Care
Cambridgeshire County Council,06-Sep-19,51300911572,"-1,328.44",CARE MANAGEMENT GROUP (64-66 CARLTON),CARE ESTABLISHMENT,LD - East Locality - Cost of Care,LD - East Cambs - Special Needs,Residential Care
Cambridgeshire County Council,06-Sep-19,51300835997,"-1,328.44",CARE MANAGEMENT GROUP (64-66 CARLTON),CARE ESTABLISHMENT,LD - East Locality - Cost of Care,LD - East Cambs - Special Needs,Residential Care
Cambridgeshire County Council,06-Sep-19,51300836006,"-1,328.44",CARE MANAGEMENT GROUP (64-66 CARLTON),CARE ESTABLISHMENT,LD - East Locality - Cost of Care,LD - East Cambs - Special Needs,Residential Care
Cambridgeshire County Council,06-Sep-19,51300850370,"-1,328.44",CARE MANAGEMENT GROUP (64-66 CARLTON),CARE ESTABLISHMENT,LD - East Locality - Cost of Care,LD - East Cambs - Special Needs,Residential Care
Cambridgeshire County Council,06-Sep-19,51300858957,"-1,328.44",CARE MANAGEMENT GROUP (64-66 CARLTON),CARE ESTABLISHMENT,LD - East Locality - Cost of Care,LD - East Cambs - Special Needs,Residential Care
Cambridgeshire County Council,06-Sep-19,51300859079,"-1,328.44",CARE MANAGEMENT GROUP (64-66 CARLTON),CARE ESTABLISHMENT,LD - East Locality - Cost of Care,LD - East Cambs - Special Needs,Residential Care
Cambridgeshire County Council,06-Sep-19,51300859062,"-1,328.44",CARE MANAGEMENT GROUP (64-66 CARLTON),CARE ESTABLISHMENT,LD - East Locality - Cost of Care,LD - East Cambs - Special Needs,Residential Care
Cambridgeshire County Council,06-Sep-19,51300859052,"-1,328.44",CARE MANAGEMENT GROUP (64-66 CARLTON),CARE ESTABLISHMENT,LD - East Locality - Cost of Care,LD - East Cambs - Special Needs,Residential Care
Cambridgeshire County Council,06-Sep-19,51300836018,"-1,328.44",CARE MANAGEMENT GROUP (64-66 CARLTON),CARE ESTABLISHMENT,LD - East Locality - Cost of Care,LD - East Cambs - Special Needs,Residential Care
Cambridgeshire County Council,06-Sep-19,51300836013,"-1,328.44",CARE MANAGEMENT GROUP (64-66 CARLTON),CARE ESTABLISHMENT,LD - East Locality - Cost of Care,LD - East Cambs - Special Needs,Residential Care
Cambridgeshire County Council,06-Sep-19,51300888615,"-1,328.44",CARE MANAGEMENT GROUP (64-66 CARLTON),CARE ESTABLISHMENT,LD - East Locality - Cost of Care,LD - East Cambs - Special Needs,Residential Care
Cambridgeshire County Council,06-Sep-19,51300850358,"-1,328.44",CARE MANAGEMENT GROUP (64-66 CARLTON),CARE ESTABLISHMENT,LD - East Locality - Cost of Care,LD - East Cambs - Special Needs,Residential Care
Cambridgeshire County Council,06-Sep-19,51300850414,"-1,328.44",CARE MANAGEMENT GROUP (64-66 CARLTON),CARE ESTABLISHMENT,LD - East Locality - Cost of Care,LD - East Cambs - Special Needs,Residential Care
Cambridgeshire County Council,06-Sep-19,51300859034,"-1,328.44",CARE MANAGEMENT GROUP (64-66 CARLTON),CARE ESTABLISHMENT,LD - East Locality - Cost of Care,LD - East Cambs - Special Needs,Residential Care
Cambridgeshire County Council,06-Sep-19,51300867501,"-1,328.44",CARE MANAGEMENT GROUP (64-66 CARLTON),CARE ESTABLISHMENT,LD - East Locality - Cost of Care,LD - East Cambs - Special Needs,Residential Care
Cambridgeshire County Council,06-Sep-19,51301114273,"-1,328.44",CARE MANAGEMENT GROUP (64-66 CARLTON),CARE ESTABLISHMENT,LD - East Locality - Cost of Care,LD - East Cambs - Special Needs,Residential Care
Cambridgeshire County Council,06-Sep-19,51301114313,"-1,328.44",CARE MANAGEMENT GROUP (64-66 CARLTON),CARE ESTABLISHMENT,LD - East Locality - Cost of Care,LD - East Cambs - Special Needs,Residential Care
Cambridgeshire County Council,06-Sep-19,51301114294,"-1,328.44",CARE MANAGEMENT GROUP (64-66 CARLTON),CARE ESTABLISHMENT,LD - East Locality - Cost of Care,LD - East Cambs - Special Needs,Residential Care
Cambridgeshire County Council,06-Sep-19,51301140245,"-1,328.44",CARE MANAGEMENT GROUP (64-66 CARLTON),CARE ESTABLISHMENT,LD - East Locality - Cost of Care,LD - East Cambs - Special Needs,Residential Care
Cambridgeshire County Council,06-Sep-19,51301019029,"-1,328.44",CARE MANAGEMENT GROUP (64-66 CARLTON),CARE ESTABLISHMENT,LD - East Locality - Cost of Care,LD - East Cambs - Special Needs,Residential Care
Cambridgeshire County Council,06-Sep-19,51301019087,"-1,328.44",CARE MANAGEMENT GROUP (64-66 CARLTON),CARE ESTABLISHMENT,LD - East Locality - Cost of Care,LD - East Cambs - Special Needs,Residential Care
Cambridgeshire County Council,06-Sep-19,51300984275,"-1,328.44",CARE MANAGEMENT GROUP (64-66 CARLTON),CARE ESTABLISHMENT,LD - East Locality - Cost of Care,LD - East Cambs - Special Needs,Residential Care
Cambridgeshire County Council,06-Sep-19,51300976481,"-1,328.44",CARE MANAGEMENT GROUP (64-66 CARLTON),CARE ESTABLISHMENT,LD - East Locality - Cost of Care,LD - East Cambs - Special Needs,Residential Care
Cambridgeshire County Council,06-Sep-19,51301089975,"-1,328.44",CARE MANAGEMENT GROUP (64-66 CARLTON),CARE ESTABLISHMENT,LD - East Locality - Cost of Care,LD - East Cambs - Special Needs,Residential Care
Cambridgeshire County Council,06-Sep-19,51301059045,"-1,328.44",CARE MANAGEMENT GROUP (64-66 CARLTON),CARE ESTABLISHMENT,LD - East Locality - Cost of Care,LD - East Cambs - Special Needs,Residential Care
Cambridgeshire County Council,06-Sep-19,51301036020,"-1,328.44",CARE MANAGEMENT GROUP (64-66 CARLTON),CARE ESTABLISHMENT,LD - East Locality - Cost of Care,LD - East Cambs - Special Needs,Residential Care
Cambridgeshire County Council,06-Sep-19,51301159978,"-1,328.44",CARE MANAGEMENT GROUP (64-66 CARLTON),CARE ESTABLISHMENT,LD - East Locality - Cost of Care,LD - East Cambs - Special Needs,Residential Care
Cambridgeshire County Council,06-Sep-19,51300984337,"-1,328.44",CARE MANAGEMENT GROUP (64-66 CARLTON),CARE ESTABLISHMENT,LD - East Locality - Cost of Care,LD - East Cambs - Special Needs,Residential Care
Cambridgeshire County Council,06-Sep-19,51300984344,"-1,328.44",CARE MANAGEMENT GROUP (64-66 CARLTON),CARE ESTABLISHMENT,LD - East Locality - Cost of Care,LD - East Cambs - Special Needs,Residential Care
Cambridgeshire County Council,06-Sep-19,51300984317,"-1,328.44",CARE MANAGEMENT GROUP (64-66 CARLTON),CARE ESTABLISHMENT,LD - East Locality - Cost of Care,LD - East Cambs - Special Needs,Residential Care
Cambridgeshire County Council,06-Sep-19,51300984374,"-1,328.44",CARE MANAGEMENT GROUP (64-66 CARLTON),CARE ESTABLISHMENT,LD - East Locality - Cost of Care,LD - East Cambs - Special Needs,Residential Care
Cambridgeshire County Council,06-Sep-19,51301005649,"-1,328.44",CARE MANAGEMENT GROUP (64-66 CARLTON),CARE ESTABLISHMENT,LD - East Locality - Cost of Care,LD - East Cambs - Special Needs,Residential Care
Cambridgeshire County Council,06-Sep-19,51301005629,"-1,328.44",CARE MANAGEMENT GROUP (64-66 CARLTON),CARE ESTABLISHMENT,LD - East Locality - Cost of Care,LD - East Cambs - Special Needs,Residential Care
Cambridgeshire County Council,06-Sep-19,51300920924,"-1,328.44",CARE MANAGEMENT GROUP (64-66 CARLTON),CARE ESTABLISHMENT,LD - East Locality - Cost of Care,LD - East Cambs - Special Needs,Residential Care
Cambridgeshire County Council,06-Sep-19,51300947974,"-1,328.44",CARE MANAGEMENT GROUP (64-66 CARLTON),CARE ESTABLISHMENT,LD - East Locality - Cost of Care,LD - East Cambs - Special Needs,Residential Care
Cambridgeshire County Council,06-Sep-19,51301114285,"-1,328.44",CARE MANAGEMENT GROUP (64-66 CARLTON),CARE ESTABLISHMENT,LD - East Locality - Cost of Care,LD - East Cambs - Special Needs,Residential Care
Cambridgeshire County Council,06-Sep-19,51301114302,"-1,328.44",CARE MANAGEMENT GROUP (64-66 CARLTON),CARE ESTABLISHMENT,LD - East Locality - Cost of Care,LD - East Cambs - Special Needs,Residential Care
Cambridgeshire County Council,06-Sep-19,51301089835,"-1,328.44",CARE MANAGEMENT GROUP (64-66 CARLTON),CARE ESTABLISHMENT,LD - East Locality - Cost of Care,LD - East Cambs - Special Needs,Residential Care
Cambridgeshire County Council,06-Sep-19,51301089960,"-1,328.44",CARE MANAGEMENT GROUP (64-66 CARLTON),CARE ESTABLISHMENT,LD - East Locality - Cost of Care,LD - East Cambs - Special Needs,Residential Care
Cambridgeshire County Council,06-Sep-19,51301089899,"-1,328.44",CARE MANAGEMENT GROUP (64-66 CARLTON),CARE ESTABLISHMENT,LD - East Locality - Cost of Care,LD - East Cambs - Special Needs,Residential Care
Cambridgeshire County Council,06-Sep-19,51300859040,"-1,328.44",CARE MANAGEMENT GROUP (64-66 CARLTON),CARE ESTABLISHMENT,LD - East Locality - Cost of Care,LD - East Cambs - Special Needs,Residential Care
Cambridgeshire County Council,06-Sep-19,51300858976,"-1,328.44",CARE MANAGEMENT GROUP (64-66 CARLTON),CARE ESTABLISHMENT,LD - East Locality - Cost of Care,LD - East Cambs - Special Needs,Residential Care
Cambridgeshire County Council,06-Sep-19,51300867429,"-1,328.44",CARE MANAGEMENT GROUP (64-66 CARLTON),CARE ESTABLISHMENT,LD - East Locality - Cost of Care,LD - East Cambs - Special Needs,Residential Care
Cambridgeshire County Council,06-Sep-19,51301132814,"-1,328.44",CARE MANAGEMENT GROUP (64-66 CARLTON),CARE ESTABLISHMENT,LD - East Locality - Cost of Care,LD - East Cambs - Special Needs,Residential Care
Cambridgeshire County Council,06-Sep-19,51301114281,"-1,328.44",CARE MANAGEMENT GROUP (64-66 CARLTON),CARE ESTABLISHMENT,LD - East Locality - Cost of Care,LD - East Cambs - Special Needs,Residential Care
Cambridgeshire County Council,06-Sep-19,51301159948,"-1,328.44",CARE MANAGEMENT GROUP (64-66 CARLTON),CARE ESTABLISHMENT,LD - East Locality - Cost of Care,LD - East Cambs - Special Needs,Residential Care
Cambridgeshire County Council,06-Sep-19,51301140205,"-1,328.44",CARE MANAGEMENT GROUP (64-66 CARLTON),CARE ESTABLISHMENT,LD - East Locality - Cost of Care,LD - East Cambs - Special Needs,Residential Care
Cambridgeshire County Council,06-Sep-19,51301140149,"-1,328.44",CARE MANAGEMENT GROUP (64-66 CARLTON),CARE ESTABLISHMENT,LD - East Locality - Cost of Care,LD - East Cambs - Special Needs,Residential Care
Cambridgeshire County Council,06-Sep-19,51300836023,"-1,328.44",CARE MANAGEMENT GROUP (64-66 CARLTON),CARE ESTABLISHMENT,LD - East Locality - Cost of Care,LD - East Cambs - Special Needs,Residential Care
Cambridgeshire County Council,06-Sep-19,51300836140,"-1,328.44",CARE MANAGEMENT GROUP (64-66 CARLTON),CARE ESTABLISHMENT,LD - East Locality - Cost of Care,LD - East Cambs - Special Needs,Residential Care
Cambridgeshire County Council,06-Sep-19,51300967157,"-1,328.44",CARE MANAGEMENT GROUP (64-66 CARLTON),CARE ESTABLISHMENT,LD - East Locality - Cost of Care,LD - East Cambs - Special Needs,Residential Care
Cambridgeshire County Council,06-Sep-19,51300911583,"-1,328.44",CARE MANAGEMENT GROUP (64-66 CARLTON),CARE ESTABLISHMENT,LD - East Locality - Cost of Care,LD - East Cambs - Special Needs,Residential Care
Cambridgeshire County Council,06-Sep-19,51300888607,"-1,328.44",CARE MANAGEMENT GROUP (64-66 CARLTON),CARE ESTABLISHMENT,LD - East Locality - Cost of Care,LD - East Cambs - Special Needs,Residential Care
Cambridgeshire County Council,06-Sep-19,51300967230,"-1,328.44",CARE MANAGEMENT GROUP (64-66 CARLTON),CARE ESTABLISHMENT,LD - East Locality - Cost of Care,LD - East Cambs - Special Needs,Residential Care
Cambridgeshire County Council,06-Sep-19,51300903845,"-1,328.44",CARE MANAGEMENT GROUP (64-66 CARLTON),CARE ESTABLISHMENT,LD - East Locality - Cost of Care,LD - East Cambs - Special Needs,Residential Care
Cambridgeshire County Council,06-Sep-19,51301035973,"-1,328.44",CARE MANAGEMENT GROUP (64-66 CARLTON),CARE ESTABLISHMENT,LD - East Locality - Cost of Care,LD - East Cambs - Special Needs,Residential Care
Cambridgeshire County Council,06-Sep-19,51300984321,"-1,328.44",CARE MANAGEMENT GROUP (64-66 CARLTON),CARE ESTABLISHMENT,LD - East Locality - Cost of Care,LD - East Cambs - Special Needs,Residential Care
Cambridgeshire County Council,06-Sep-19,51301073924,"-1,328.44",CARE MANAGEMENT GROUP (64-66 CARLTON),CARE ESTABLISHMENT,LD - East Locality - Cost of Care,LD - East Cambs - Special Needs,Residential Care
Cambridgeshire County Council,06-Sep-19,51300911531,"-1,328.44",CARE MANAGEMENT GROUP (64-66 CARLTON),CARE ESTABLISHMENT,LD - East Locality - Cost of Care,LD - East Cambs - Special Needs,Residential Care
Cambridgeshire County Council,06-Sep-19,51300967297,"-1,328.44",CARE MANAGEMENT GROUP (64-66 CARLTON),CARE ESTABLISHMENT,LD - East Locality - Cost of Care,LD - East Cambs - Special Needs,Residential Care
Cambridgeshire County Council,06-Sep-19,51300850464,"-1,328.44",CARE MANAGEMENT GROUP (64-66 CARLTON),CARE ESTABLISHMENT,LD - East Locality - Cost of Care,LD - East Cambs - Special Needs,Residential Care
Cambridgeshire County Council,06-Sep-19,51301114400,"-1,328.44",CARE MANAGEMENT GROUP (64-66 CARLTON),CARE ESTABLISHMENT,LD - East Locality - Cost of Care,LD - East Cambs - Special Needs,Residential Care
Cambridgeshire County Council,06-Sep-19,51301132841,"-1,328.44",CARE MANAGEMENT GROUP (64-66 CARLTON),CARE ESTABLISHMENT,LD - East Locality - Cost of Care,LD - East Cambs - Special Needs,Residential Care
Cambridgeshire County Council,06-Sep-19,51301140210,"-1,328.44",CARE MANAGEMENT GROUP (64-66 CARLTON),CARE ESTABLISHMENT,LD - East Locality - Cost of Care,LD - East Cambs - Special Needs,Residential Care
Cambridgeshire County Council,06-Sep-19,51300911589,"-1,328.44",CARE MANAGEMENT GROUP (64-66 CARLTON),CARE ESTABLISHMENT,LD - East Locality - Cost of Care,LD - East Cambs - Special Needs,Residential Care
Cambridgeshire County Council,06-Sep-19,51301035891,"-1,328.44",CARE MANAGEMENT GROUP (64-66 CARLTON),CARE ESTABLISHMENT,LD - East Locality - Cost of Care,LD - East Cambs - Special Needs,Residential Care
Cambridgeshire County Council,06-Sep-19,51300920850,"-1,328.44",CARE MANAGEMENT GROUP (64-66 CARLTON),CARE ESTABLISHMENT,LD - East Locality - Cost of Care,LD - East Cambs - Special Needs,Residential Care
Cambridgeshire County Council,06-Sep-19,51300920828,"-1,328.44",CARE MANAGEMENT GROUP (64-66 CARLTON),CARE ESTABLISHMENT,LD - East Locality - Cost of Care,LD - East Cambs - Special Needs,Residential Care
Cambridgeshire County Council,06-Sep-19,51301027754,"-1,328.44",CARE MANAGEMENT GROUP (64-66 CARLTON),CARE ESTABLISHMENT,LD - East Locality - Cost of Care,LD - East Cambs - Special Needs,Residential Care
Cambridgeshire County Council,06-Sep-19,51300967226,"-1,328.44",CARE MANAGEMENT GROUP (64-66 CARLTON),CARE ESTABLISHMENT,LD - East Locality - Cost of Care,LD - East Cambs - Special Needs,Residential Care
Cambridgeshire County Council,06-Sep-19,51301082137,"-1,328.44",CARE MANAGEMENT GROUP (64-66 CARLTON),CARE ESTABLISHMENT,LD - East Locality - Cost of Care,LD - East Cambs - Special Needs,Residential Care
Cambridgeshire County Council,06-Sep-19,51300888585,"-1,328.44",CARE MANAGEMENT GROUP (64-66 CARLTON),CARE ESTABLISHMENT,LD - East Locality - Cost of Care,LD - East Cambs - Special Needs,Residential Care
Cambridgeshire County Council,06-Sep-19,51300911578,"-1,328.44",CARE MANAGEMENT GROUP (64-66 CARLTON),CARE ESTABLISHMENT,LD - East Locality - Cost of Care,LD - East Cambs - Special Needs,Residential Care
Cambridgeshire County Council,06-Sep-19,51300867543,"-1,328.44",CARE MANAGEMENT GROUP (64-66 CARLTON),CARE ESTABLISHMENT,LD - East Locality - Cost of Care,LD - East Cambs - Special Needs,Residential Care
Cambridgeshire County Council,06-Sep-19,51301035992,"-1,328.44",CARE MANAGEMENT GROUP (64-66 CARLTON),CARE ESTABLISHMENT,LD - East Locality - Cost of Care,LD - East Cambs - Special Needs,Residential Care
Cambridgeshire County Council,06-Sep-19,51301132851,"-1,328.44",CARE MANAGEMENT GROUP (64-66 CARLTON),CARE ESTABLISHMENT,LD - East Locality - Cost of Care,LD - East Cambs - Special Needs,Residential Care
Cambridgeshire County Council,06-Sep-19,51300967185,"-1,328.44",CARE MANAGEMENT GROUP (64-66 CARLTON),CARE ESTABLISHMENT,LD - East Locality - Cost of Care,LD - East Cambs - Special Needs,Residential Care
Cambridgeshire County Council,06-Sep-19,51301005593,"-1,328.44",CARE MANAGEMENT GROUP (64-66 CARLTON),CARE ESTABLISHMENT,LD - East Locality - Cost of Care,LD - East Cambs - Special Needs,Residential Care
Cambridgeshire County Council,06-Sep-19,51301114270,"-1,328.44",CARE MANAGEMENT GROUP (64-66 CARLTON),CARE ESTABLISHMENT,LD - East Locality - Cost of Care,LD - East Cambs - Special Needs,Residential Care
Cambridgeshire County Council,06-Sep-19,51301132787,"-1,328.44",CARE MANAGEMENT GROUP (64-66 CARLTON),CARE ESTABLISHMENT,LD - East Locality - Cost of Care,LD - East Cambs - Special Needs,Residential Care
Cambridgeshire County Council,06-Sep-19,51301132909,"-1,328.44",CARE MANAGEMENT GROUP (64-66 CARLTON),CARE ESTABLISHMENT,LD - East Locality - Cost of Care,LD - East Cambs - Special Needs,Residential Care
Cambridgeshire County Council,06-Sep-19,51301140208,"-1,328.44",CARE MANAGEMENT GROUP (64-66 CARLTON),CARE ESTABLISHMENT,LD - East Locality - Cost of Care,LD - East Cambs - Special Needs,Residential Care
Cambridgeshire County Council,06-Sep-19,51301140233,"-1,328.44",CARE MANAGEMENT GROUP (64-66 CARLTON),CARE ESTABLISHMENT,LD - East Locality - Cost of Care,LD - East Cambs - Special Needs,Residential Care
